Workbook

Sheet About
A1: Disclaimer:
A2: Not all pipes in this calculator are approved for use in Iowa. Please consult the latest Iowa NRCS construction specifications for the list of approved pipes.
A3: Purpose:
A4: The Pipe Weight Calculator assists with determining and documenting the weight of pipelines. The weight of a pipeline is directly proportional to the amount of material used in the pipe walls and is highly correlated to the pipe cost. Due to the vast options of pipe materials and dimensions, this tool was needed to streamline agency workload.
A5: User Instructions:
A6: To calculate pipe weight, users must input data into the tan cells. Data is to be entered starting at the left side of each pipe row and working to the right. Most of the tan cells incorporate pull down menus (Called Data Validation by Excel) and the adjacent cell to the right's menu will be a filtered-set based on the selected values to the left of it. The pipe weight per foot will be displayed in the yellow cell and the total weight for each pipe entry will be displayed in the blue cell.
A7: Two tabs, "Calc_Engr" and "Calc_Plan" have been created to accommodate user preferences; the "Calc_Plan" tab accommodates most users, and the "Calc_Engr" tab is available for users who have experience with pipe diameter types. The distinction between the two tabs is what appears in the second data entry column. Both tabs will provide the same pipe weight.
A8: Due to continuous advances in pipe materials, it is not possible to list all possible pipe options. It is also recognized that some pipe types are uncommon. For pipe types that are not found in the pull down menus, users can enter custom pipe information in Cells T7:Z8. There is also an option to adjust polyethylene resin between PE4710 and PE3408, located in Cell C5 of the Tables tab. PE4710 is approximately 25% stronger than PE3408 and can achieve a higher pressure class with thinner pipe walls and less weight. At the time this tool was developed, PE4710 had become more common than PE3408. The Tables tab may be a hidden tab. To unhide a tab, right click on any tab and select unhide.
A9: Actual pipe weights will vary slightly due to manufacturing tolerances. This tool has settings to calculate pipe weight based on the maximum allowable pipe wall thickness, minimum allowable pipe wall thickness, or the average wall thickness. Average pipe wall thickness is the default value and the selection should generally not be changed. This setting is found in Cell C9 of the Tables tab.
A10: Pipe Diameter Types:
A11: Actual pipe diameters usually vary from the nominal diameter. Below are the acronyms for the Diameter Types and other descriptions used in the tool:
A12: ABS = Acrylonitrile Butadiene Styrene
A13: CCP = Concrete Cylinder Pipe
A14: CIOD = Cast Iron Outside Diameter pipe size
A15: CPP = Concrete Pressure Pipe
A16: CSP = Corrugated Steel Pipe
A17: CTS = Copper Tubing Size
A18: DR = Dimension Ratio (outer diameter divided by wall thickness)
A19: DIPS = Ductile Iron Pipe Size
A20: IPS = Iron Pipe Size
A21: NRCP = Nonreinforced Concrete Pipe
A23: Pipe Diameter Types:
A24: PE = Polyethylene
A25: PEX = Crosslinked Polyethylene
A26: PIP = Plastic Irrigation Pipe size
A27: PSM = Pressure Sewer Mainline
A28: PVC = Poly Vinyl Chloride
A29: RCP = Reinforced Concrete Pipe
A30: SCH = Schedule
A31: SIDR = Standard Inside Diameter Ratio (inner diameter divided by wall thickness)
A33: Notes About Pipe Materials:
A34: Prior to plastic pipe becoming available in the 1930s, steel was the most commonly used pipe. Although steel is a strong and fire resistant material, it is prone to corrosion and water freeze damage. Polyvinyl chloride (PVC) became popular in the 1960s due to its corrosion resistance, lower cost, and the ability to be chemically welded. However, PVC pipe is vulnerable to water freeze damage and fire damage. Polyethylene (PE) pipe came slightly after PVC. It has good corrosion resistance, freeze tolerance, and offers more flexibility than PVC. PE cannot be chemically welded, but can be heat welded whereas this is not an option for PVC. As of the time this tool was developed, PE was slightly more expensive than PVC and significantly less expensive than steel in small diameter pipe. However, PE, like PVC, is not fire resistant. These three materials are the vast majority used for agricultural pipe.
A35: Future Recommendations:
A36: Due to the complexity of calculating pipe weight for every possible pipe material and diameter type, it may be appropriate to assume a typical pipe material for cost estimates. Where fire is not a concern, PE4710 is an appropriate and cost effective alternative for most pipe situations (as of 2025) and can be used to calculate a typical cost. Where fire is a concern, additional cost for steel or concrete pipe should be considered.
A37: Tool Development Team:
A38: Alan Gillespie, PE
A39: Clarence Prestwich, PE
A40: Hamid Farahani, PHD
A41: Jon Chilcote, PE
A42: Kelly Scott, PE
A45: Development Notes
A46: 2/17/2026-Tool was created by development team to address an urgent need to calculate pipe weights for conservation contract planning payment quantities.
A47: 3/4/2026-Corrected typo regarding CSP selections being IPS.
A48: 3/12/2026 - Added Iowa Disclaimer - S Gorbet

Sheet Calc_Plan
I1: Version 1.0 - 02-28-2026
R2: Resin used for polyethylene | T2: Method to estimate pipe weight
R3: pipe weight estimation | T3: for pipe types not in table
C4: Producer: | G4: Ref #: | R4: ="PE"&Tables!C5 -> PE4710 | T4: Pipe | U4: Specific | V4: Controlled | W4: Diameter | X4: Wall | Y4: Tolerance | Z4: Pipe
C5: Designed By: | E5: Checked By: | G5: County: | T5: Material | U5: Gravity | V5: In/Out | X5: Thickness | Z5: Weight
C6: Designed By Date: | E6: Checked By Date: | G6: Farm/Tract: | R6: Method used to estimate | U6: [-] | V6: Diameter | W6: [in] | X6: [in] | Y6: [in] | Z6: [lb/ft]
R7: average wall thickness | T7: Custom | U7: =VLOOKUP(T7,Tables!$G$5:$H$14,2,FALSE) -> 0.959 | V7: OD | W7: 6.5 | X7: 0.425 | Y7: 0.002 | Z7: =VLOOKUP(T7,Tables!$G$7:$H$14,2,FALSE)*IF(V7="ID",(W7+(X7+Y7*Tables!$C$6)),(W7-(X7+Y7*Tables!$C$6)))*(X7+Y7*Tables!$C$6)*1.36136 -> 3.378127054
R8: =Tables!C9 -> Ave WT | T8: Custom | U8: =VLOOKUP(T8,Tables!$G$5:$H$14,2,FALSE) -> 0.959 | V8: OD | W8: 6.5 | X8: 0.425 | Y8: 0.002 | Z8: =VLOOKUP(T8,Tables!$G$7:$H$14,2,FALSE)*IF(V8="ID",(W8+(X8+Y8*Tables!$C$6)),(W8-(X8+Y8*Tables!$C$6)))*(X8+Y8*Tables!$C$6)*1.36136 -> 3.378127054
B9: Pipe Material | C9: Pressure Class [psi] | D9: Nominal Diameter [in] | E9: Pipe Diameter Standard | F9: Pipe Length [ft] | G9: Unit Pipe Weight [lbs/ft] | H9: Pipe Weight [lbs] | I9: Notes | L9: Controlled Diameter ID/OD [in] | M9: Wall Thickness [in] | N9: Tolerance for Wall Thickness [in] | O9: ASTM, ASABE, & MRF | P9: Typical Flow Range (2ft/s to 5ft/s) [gpm]
A10: =IFERROR(G10,"") ->  | G10: =INDIRECT("RAW!R"&Tables!AT72) ->  | H10: =IFERROR(F10*G10,"") ->  | I10: =IFERROR(O10,"") ->  | L10: =INDIRECT("RAW!M"&Tables!AT72)&"-"&INDIRECT("RAW!N"&Tables!AT72) ->  | M10: =INDIRECT("RAW!P"&Tables!AT72) ->  | N10: =INDIRECT("RAW!Q"&Tables!AT72) ->  | O10: =INDIRECT("RAW!T"&Tables!AT72) ->  | P10: =ROUND(2*((INDIRECT("RAW!M"&Tables!AT72)+IF(INDIRECT("RAW!N"&Tables!AT72)="ID",1,-1)*(2*M10+2*N10*Tables!$C$6))/12)^2*PI()/4*448.8,0)&" to "&ROUND(5*((INDIRECT("RAW!M"&Tables!AT72)+IF(INDIRECT("RAW!N"&Tables!AT72)="ID",1,-1)*(M10+N10*Tables!$C$6))/12)^2*PI()/4*448.8,0) ->  | AB10: =IFERROR(AH10,"") -> 0
G11: =INDIRECT("RAW!R"&Tables!AX72) ->  | L11: =INDIRECT("RAW!M"&Tables!AX72)&"-"&INDIRECT("RAW!N"&Tables!AX72) ->  | M11: =INDIRECT("RAW!P"&Tables!AX72) ->  | N11: =INDIRECT("RAW!Q"&Tables!AX72) ->  | O11: =INDIRECT("RAW!T"&Tables!AX72) ->  | P11: =ROUND(2*((INDIRECT("RAW!M"&Tables!AX72)+IF(INDIRECT("RAW!N"&Tables!AX72)="ID",1,-1)*(2*M11+2*N11*Tables!$C$6))/12)^2*PI()/4*448.8,0)&" to "&ROUND(5*((INDIRECT("RAW!M"&Tables!AX72)+IF(INDIRECT("RAW!N"&Tables!AX72)="ID",1,-1)*(M11+N11*Tables!$C$6))/12)^2*PI()/4*448.8,0) ->  | AB11: 0
G12: =INDIRECT("RAW!R"&Tables!BB72) ->  | L12: =INDIRECT("RAW!M"&Tables!BB72)&"-"&INDIRECT("RAW!N"&Tables!BB72) ->  | M12: =INDIRECT("RAW!P"&Tables!BB72) ->  | N12: =INDIRECT("RAW!Q"&Tables!BB72) ->  | O12: =INDIRECT("RAW!T"&Tables!BB72) ->  | P12: =ROUND(2*((INDIRECT("RAW!M"&Tables!BB72)+IF(INDIRECT("RAW!N"&Tables!BB72)="ID",1,-1)*(2*M12+2*N12*Tables!$C$6))/12)^2*PI()/4*448.8,0)&" to "&ROUND(5*((INDIRECT("RAW!M"&Tables!BB72)+IF(INDIRECT("RAW!N"&Tables!BB72)="ID",1,-1)*(M12+N12*Tables!$C$6))/12)^2*PI()/4*448.8,0) ->  | AB12: 0
G13: =INDIRECT("RAW!R"&Tables!BF72) ->  | L13: =INDIRECT("RAW!M"&Tables!BF72)&"-"&INDIRECT("RAW!N"&Tables!BF72) ->  | M13: =INDIRECT("RAW!P"&Tables!BF72) ->  | N13: =INDIRECT("RAW!Q"&Tables!BF72) ->  | O13: =INDIRECT("RAW!T"&Tables!BF72) ->  | P13: =ROUND(2*((INDIRECT("RAW!M"&Tables!BF72)+IF(INDIRECT("RAW!N"&Tables!BF72)="ID",1,-1)*(2*M13+2*N13*Tables!$C$6))/12)^2*PI()/4*448.8,0)&" to "&ROUND(5*((INDIRECT("RAW!M"&Tables!BF72)+IF(INDIRECT("RAW!N"&Tables!BF72)="ID",1,-1)*(M13+N13*Tables!$C$6))/12)^2*PI()/4*448.8,0) ->  | AB13: 0
G14: =INDIRECT("RAW!R"&Tables!BJ72) ->  | L14: =INDIRECT("RAW!M"&Tables!BJ72)&"-"&INDIRECT("RAW!N"&Tables!BJ72) ->  | M14: =INDIRECT("RAW!P"&Tables!BJ72) ->  | N14: =INDIRECT("RAW!Q"&Tables!BJ72) ->  | O14: =INDIRECT("RAW!T"&Tables!BJ72) ->  | P14: =ROUND(2*((INDIRECT("RAW!M"&Tables!BJ72)+IF(INDIRECT("RAW!N"&Tables!BJ72)="ID",1,-1)*(2*M14+2*N14*Tables!$C$6))/12)^2*PI()/4*448.8,0)&" to "&ROUND(5*((INDIRECT("RAW!M"&Tables!BJ72)+IF(INDIRECT("RAW!N"&Tables!BJ72)="ID",1,-1)*(M14+N14*Tables!$C$6))/12)^2*PI()/4*448.8,0) ->  | AB14: 0
G15: =INDIRECT("RAW!R"&Tables!BN72) ->  | L15: =INDIRECT("RAW!M"&Tables!BN72)&"-"&INDIRECT("RAW!N"&Tables!BN72) ->  | M15: =INDIRECT("RAW!P"&Tables!BN72) ->  | N15: =INDIRECT("RAW!Q"&Tables!BN72) ->  | O15: =INDIRECT("RAW!T"&Tables!BN72) ->  | P15: =ROUND(2*((INDIRECT("RAW!M"&Tables!BN72)+IF(INDIRECT("RAW!N"&Tables!BN72)="ID",1,-1)*(2*M15+2*N15*Tables!$C$6))/12)^2*PI()/4*448.8,0)&" to "&ROUND(5*((INDIRECT("RAW!M"&Tables!BN72)+IF(INDIRECT("RAW!N"&Tables!BN72)="ID",1,-1)*(M15+N15*Tables!$C$6))/12)^2*PI()/4*448.8,0) ->  | AB15: 0
G16: =INDIRECT("RAW!R"&Tables!BR72) ->  | L16: =INDIRECT("RAW!M"&Tables!BR72)&"-"&INDIRECT("RAW!N"&Tables!BR72) ->  | M16: =INDIRECT("RAW!P"&Tables!BR72) ->  | N16: =INDIRECT("RAW!Q"&Tables!BR72) ->  | O16: =INDIRECT("RAW!T"&Tables!BR72) ->  | P16: =ROUND(2*((INDIRECT("RAW!M"&Tables!BR72)+IF(INDIRECT("RAW!N"&Tables!BR72)="ID",1,-1)*(2*M16+2*N16*Tables!$C$6))/12)^2*PI()/4*448.8,0)&" to "&ROUND(5*((INDIRECT("RAW!M"&Tables!BR72)+IF(INDIRECT("RAW!N"&Tables!BR72)="ID",1,-1)*(M16+N16*Tables!$C$6))/12)^2*PI()/4*448.8,0) ->  | AB16: 0
G17: =INDIRECT("RAW!R"&Tables!BV72) ->  | L17: =INDIRECT("RAW!M"&Tables!BV72)&"-"&INDIRECT("RAW!N"&Tables!BV72) ->  | M17: =INDIRECT("RAW!P"&Tables!BV72) ->  | N17: =INDIRECT("RAW!Q"&Tables!BV72) ->  | O17: =INDIRECT("RAW!T"&Tables!BV72) ->  | P17: =ROUND(2*((INDIRECT("RAW!M"&Tables!BV72)+IF(INDIRECT("RAW!N"&Tables!BV72)="ID",1,-1)*(2*M17+2*N17*Tables!$C$6))/12)^2*PI()/4*448.8,0)&" to "&ROUND(5*((INDIRECT("RAW!M"&Tables!BV72)+IF(INDIRECT("RAW!N"&Tables!BV72)="ID",1,-1)*(M17+N17*Tables!$C$6))/12)^2*PI()/4*448.8,0) ->  | AB17: 0
G18: =INDIRECT("RAW!R"&Tables!BZ72) ->  | L18: =INDIRECT("RAW!M"&Tables!BZ72)&"-"&INDIRECT("RAW!n"&Tables!BZ72) ->  | M18: =INDIRECT("RAW!P"&Tables!BZ72) ->  | N18: =INDIRECT("RAW!Q"&Tables!BZ72) ->  | O18: =INDIRECT("RAW!T"&Tables!BZ72) ->  | P18: =ROUND(2*((INDIRECT("RAW!M"&Tables!BZ72)+IF(INDIRECT("RAW!N"&Tables!BZ72)="ID",1,-1)*(2*M18+2*N18*Tables!$C$6))/12)^2*PI()/4*448.8,0)&" to "&ROUND(5*((INDIRECT("RAW!M"&Tables!BZ72)+IF(INDIRECT("RAW!N"&Tables!BZ72)="ID",1,-1)*(M18+N18*Tables!$C$6))/12)^2*PI()/4*448.8,0) ->  | AB18: 0
G19: =INDIRECT("RAW!R"&Tables!CD72) ->  | L19: =INDIRECT("RAW!M"&Tables!CD72)&"-"&INDIRECT("RAW!N"&Tables!CD72) ->  | M19: =INDIRECT("RAW!P"&Tables!CD72) ->  | N19: =INDIRECT("RAW!Q"&Tables!CD72) ->  | O19: =INDIRECT("RAW!T"&Tables!CD72) ->  | P19: =ROUND(2*((INDIRECT("RAW!M"&Tables!CD72)+IF(INDIRECT("RAW!N"&Tables!CD72)="ID",1,-1)*(2*M19+2*N19*Tables!$C$6))/12)^2*PI()/4*448.8,0)&" to "&ROUND(5*((INDIRECT("RAW!M"&Tables!CD72)+IF(INDIRECT("RAW!N"&Tables!CD72)="ID",1,-1)*(M19+N19*Tables!$C$6))/12)^2*PI()/4*448.8,0) ->  | AB19: 0
A20: =_xlfn.UNIQUE(B10:B19) -> 0 | B20: =IF(OR(A20=0,A20=""),""," Total Weight of "&IF(A20="PE",A20&"-"&$R$4,A20)&" [lbs]") ->  | H20: =SUMIF($B$10:$B$19,A20,$H$10:$H$19) -> 0 | K20: =IFERROR(VLOOKUP(A20,Tables!$G$5:$I$13,3,FALSE),"") -> 
B21: =IF(OR(A21=0,A21=""),""," Total Weight of "&IF(A21="PE",A21&"-"&$R$4,A21)&" [lbs]") ->  | H21: 0 | K21: =IFERROR(VLOOKUP(A21,Tables!$G$5:$I$13,3,FALSE),"") -> 
B22: =IF(OR(A22=0,A22=""),""," Total Weight of "&IF(A22="PE",A22&"-"&$R$4,A22)&" [lbs]") ->  | H22: 0 | K22: =IFERROR(VLOOKUP(A22,Tables!$G$5:$I$13,3,FALSE),"") -> 
H23: 0 | K23: =IFERROR(VLOOKUP(A23,Tables!$G$5:$I$13,3,FALSE),"") -> 
H24: 0 | K24: =IFERROR(VLOOKUP(A24,Tables!$G$5:$I$13,3,FALSE),"") -> 
H25: 0 | K25: =IFERROR(VLOOKUP(A25,Tables!$G$5:$I$13,3,FALSE),"") -> 
B26: =IF(AND(K20="",K21="",K22="",K23="",K24="",K25=""),"","WARNING: "&IF(K20="","",K20&"; ")&IF(K21="","",K21&"; ")&IF(K22="","",K22&"; ")&IF(K23="","",K23&"; ")&IF(K24="","",K24&"; ")&IF(K25="","",K25)) -> 

Sheet Calc_Engr
I1: Version 1.0 - 02-28-2026
R2: Resin used for polyethylene | T2: Method to estimate pipe weight
R3: pipe weight estimation | T3: for pipe types not in table
C4: Producer: | G4: Ref #: | R4: ="PE"&Tables!C5 -> PE4710 | T4: Pipe | U4: Specific | V4: Controlled | W4: Diameter | X4: Wall | Y4: Tolerance | Z4: Pipe
C5: Designed By: | E5: Checked By: | G5: County: | T5: Material | U5: Gravity | V5: In/Out | X5: Thickness | Z5: Weight
C6: Designed By Date: | E6: Checked By Date: | G6: Farm/Tract: | R6: Method used to estimate | U6: [-] | V6: Diameter | W6: [in] | X6: [in] | Y6: [in] | Z6: [lb/ft]
R7: average wall thickness | T7: Custom | U7: =VLOOKUP(T7,Tables!$G$5:$H$14,2,FALSE) -> 0.959 | V7: OD | W7: 12.75 | X7: 0.944 | Y7: 0.057 | Z7: =U7*IF(V7="ID",(W7+(X7+Y7*Tables!$C$6)),(W7-(X7+Y7*Tables!$C$6)))*(X7+Y7*Tables!$C$6)*1.36136 -> 14.95320599
R8: =Tables!C9 -> Ave WT | T8: Custom | U8: =VLOOKUP(T8,Tables!$G$5:$H$14,2,FALSE) -> 0.959 | V8: OD | W8: 12.75 | X8: 1.001 | Z8: =U8*IF(V8="ID",(W8+(X8+Y8*Tables!$C$6)),(W8-(X8+Y8*Tables!$C$6)))*(X8+Y8*Tables!$C$6)*1.36136 -> 15.35417812
B9: Pipe Material | C9: Pipe Diameter Standard | D9: Nominal Diameter [in] | E9: Pressure Class & Wall Thickness | F9: Pipe Length [ft] | G9: Unit Pipe Weight [lbs/ft] | H9: Pipe Weight [lbs] | I9: Notes | L9: Controlled Diameter ID/OD [in] | M9: Wall Thickness [in] | N9: Tolerance for Wall Thickness [in] | O9: ASTM, ASABE, & MRF | P9: Typical Flow Range (2ft/s to 5ft/s) [gpm]
A10: =IFERROR(G10,"") ->  | G10: =INDIRECT("RAW!R"&Tables!F72) ->  | H10: =IFERROR(F10*G10,"") ->  | I10: =IFERROR(O10,"") ->  | L10: =INDIRECT("RAW!M"&Tables!F72)&"-"&INDIRECT("RAW!n"&Tables!F72) ->  | M10: =INDIRECT("RAW!P"&Tables!F72) ->  | N10: =INDIRECT("RAW!Q"&Tables!F72) ->  | O10: =INDIRECT("RAW!T"&Tables!F72) ->  | P10: =ROUND(2*((INDIRECT("RAW!M"&Tables!F72)+IF(INDIRECT("RAW!N"&Tables!F72)="ID",1,-1)*(2*M10+2*N10*Tables!$C$6))/12)^2*PI()/4*448.8,0)&" to "&ROUND(5*((INDIRECT("RAW!M"&Tables!F72)+IF(INDIRECT("RAW!N"&Tables!F72)="ID",1,-1)*(2*M10+2*N10*Tables!$C$6))/12)^2*PI()/4*448.8,0) ->  | AB10: =IFERROR(AH10,"") -> 0
A11: =IFERROR(G11,"") ->  | G11: =INDIRECT("RAW!R"&Tables!J72) ->  | I11: =IFERROR(O11,"") ->  | L11: =INDIRECT("RAW!M"&Tables!J72)&"-"&INDIRECT("RAW!n"&Tables!J72) ->  | M11: =INDIRECT("RAW!P"&Tables!J72) ->  | N11: =INDIRECT("RAW!Q"&Tables!J72) ->  | O11: =INDIRECT("RAW!T"&Tables!J72) ->  | P11: =ROUND(2*((INDIRECT("RAW!M"&Tables!J72)+IF(INDIRECT("RAW!N"&Tables!J72)="ID",1,-1)*(2*M11+2*N11*Tables!$C$6))/12)^2*PI()/4*448.8,0)&" to "&ROUND(5*((INDIRECT("RAW!M"&Tables!J72)+IF(INDIRECT("RAW!N"&Tables!J72)="ID",1,-1)*(M11+N11*Tables!$C$6))/12)^2*PI()/4*448.8,0) ->  | AB11: =IFERROR(AH11,"") -> 0
G12: =INDIRECT("RAW!R"&Tables!N72) ->  | L12: =INDIRECT("RAW!M"&Tables!N72)&"-"&INDIRECT("RAW!n"&Tables!N72) ->  | M12: =INDIRECT("RAW!P"&Tables!N72) ->  | N12: =INDIRECT("RAW!Q"&Tables!N72) ->  | O12: =INDIRECT("RAW!T"&Tables!N72) ->  | P12: =ROUND(2*((INDIRECT("RAW!M"&Tables!N72)+IF(INDIRECT("RAW!N"&Tables!N72)="ID",1,-1)*(2*M12+2*N12*Tables!$C$6))/12)^2*PI()/4*448.8,0)&" to "&ROUND(5*((INDIRECT("RAW!M"&Tables!N72)+IF(INDIRECT("RAW!N"&Tables!N72)="ID",1,-1)*(M12+N12*Tables!$C$6))/12)^2*PI()/4*448.8,0) ->  | AB12: 0
G13: =INDIRECT("RAW!R"&Tables!R72) ->  | L13: =INDIRECT("RAW!M"&Tables!R72)&"_"&INDIRECT("RAW!n"&Tables!R72) ->  | M13: =INDIRECT("RAW!P"&Tables!R72) ->  | N13: =INDIRECT("RAW!Q"&Tables!R72) ->  | O13: =INDIRECT("RAW!T"&Tables!R72) ->  | P13: =ROUND(2*((INDIRECT("RAW!M"&Tables!R72)+IF(INDIRECT("RAW!N"&Tables!R72)="ID",1,-1)*(2*M13+2*N13*Tables!$C$6))/12)^2*PI()/4*448.8,0)&" to "&ROUND(5*((INDIRECT("RAW!M"&Tables!R72)+IF(INDIRECT("RAW!N"&Tables!R72)="ID",1,-1)*(M13+N13*Tables!$C$6))/12)^2*PI()/4*448.8,0) ->  | AB13: 0
G14: =INDIRECT("RAW!R"&Tables!V72) ->  | L14: =INDIRECT("RAW!M"&Tables!V72)&"-"&INDIRECT("RAW!n"&Tables!V72) ->  | M14: =INDIRECT("RAW!P"&Tables!V72) ->  | N14: =INDIRECT("RAW!Q"&Tables!V72) ->  | O14: =INDIRECT("RAW!T"&Tables!V72) ->  | P14: =ROUND(2*((INDIRECT("RAW!M"&Tables!V72)+IF(INDIRECT("RAW!N"&Tables!V72)="ID",1,-1)*(2*M14+2*N14*Tables!$C$6))/12)^2*PI()/4*448.8,0)&" to "&ROUND(5*((INDIRECT("RAW!M"&Tables!V72)+IF(INDIRECT("RAW!N"&Tables!V72)="ID",1,-1)*(M14+N14*Tables!$C$6))/12)^2*PI()/4*448.8,0) ->  | AB14: 0
G15: =INDIRECT("RAW!R"&Tables!Z72) ->  | L15: =INDIRECT("RAW!M"&Tables!Z72)&"-"&INDIRECT("RAW!n"&Tables!Z72) ->  | M15: =INDIRECT("RAW!P"&Tables!Z72) ->  | N15: =INDIRECT("RAW!Q"&Tables!V72) ->  | O15: =INDIRECT("RAW!T"&Tables!V72) ->  | P15: =ROUND(2*((INDIRECT("RAW!M"&Tables!Z72)+IF(INDIRECT("RAW!N"&Tables!Z72)="ID",1,-1)*(2*M15+2*N15*Tables!$C$6))/12)^2*PI()/4*448.8,0)&" to "&ROUND(5*((INDIRECT("RAW!M"&Tables!Z72)+IF(INDIRECT("RAW!N"&Tables!Z72)="ID",1,-1)*(M15+N15*Tables!$C$6))/12)^2*PI()/4*448.8,0) ->  | AB15: 0
G16: =INDIRECT("RAW!R"&Tables!AD72) ->  | L16: =INDIRECT("RAW!M"&Tables!AD72)&"-"&INDIRECT("RAW!n"&Tables!AD72) ->  | M16: =INDIRECT("RAW!P"&Tables!AD72) ->  | N16: =INDIRECT("RAW!Q"&Tables!AD72) ->  | O16: =INDIRECT("RAW!T"&Tables!AD72) ->  | P16: =ROUND(2*((INDIRECT("RAW!M"&Tables!AD72)+IF(INDIRECT("RAW!N"&Tables!AD72)="ID",1,-1)*(2*M16+2*N16*Tables!$C$6))/12)^2*PI()/4*448.8,0)&" to "&ROUND(5*((INDIRECT("RAW!M"&Tables!AD72)+IF(INDIRECT("RAW!N"&Tables!AD72)="ID",1,-1)*(M16+N16*Tables!$C$6))/12)^2*PI()/4*448.8,0) ->  | AB16: 0
G17: =INDIRECT("RAW!R"&Tables!AH72) ->  | L17: =INDIRECT("RAW!M"&Tables!AH72)&"-"&INDIRECT("RAW!n"&Tables!AH72) ->  | M17: =INDIRECT("RAW!P"&Tables!AH72) ->  | N17: =INDIRECT("RAW!Q"&Tables!AH72) ->  | O17: =INDIRECT("RAW!T"&Tables!AH72) ->  | P17: =ROUND(2*((INDIRECT("RAW!M"&Tables!AH72)+IF(INDIRECT("RAW!N"&Tables!AH72)="ID",1,-1)*(2*M17+2*N17*Tables!$C$6))/12)^2*PI()/4*448.8,0)&" to "&ROUND(5*((INDIRECT("RAW!M"&Tables!AH72)+IF(INDIRECT("RAW!N"&Tables!AH72)="ID",1,-1)*(M17+N17*Tables!$C$6))/12)^2*PI()/4*448.8,0) ->  | AB17: 0
G18: =INDIRECT("RAW!R"&Tables!AL72) ->  | L18: =INDIRECT("RAW!M"&Tables!AL72)&"-"&INDIRECT("RAW!n"&Tables!AL72) ->  | M18: =INDIRECT("RAW!P"&Tables!AL72) ->  | N18: =INDIRECT("RAW!Q"&Tables!AL72) ->  | O18: =INDIRECT("RAW!T"&Tables!AL72) ->  | P18: =ROUND(2*((INDIRECT("RAW!M"&Tables!AL72)+IF(INDIRECT("RAW!N"&Tables!AL72)="ID",1,-1)*(2*M18+2*N18*Tables!$C$6))/12)^2*PI()/4*448.8,0)&" to "&ROUND(5*((INDIRECT("RAW!M"&Tables!AL72)+IF(INDIRECT("RAW!N"&Tables!AL72)="ID",1,-1)*(M18+N18*Tables!$C$6))/12)^2*PI()/4*448.8,0) ->  | AB18: 0
A19: =IFERROR(G19,"") ->  | G19: =INDIRECT("RAW!R"&Tables!AP72) ->  | I19: =IFERROR(O19,"") ->  | L19: =INDIRECT("RAW!M"&Tables!AP72)&"-"&INDIRECT("RAW!n"&Tables!AP72) ->  | M19: =INDIRECT("RAW!P"&Tables!AP72) ->  | N19: =INDIRECT("RAW!Q"&Tables!AP72) ->  | O19: =INDIRECT("RAW!T"&Tables!AP72) ->  | P19: =ROUND(2*((INDIRECT("RAW!M"&Tables!AP72)+IF(INDIRECT("RAW!N"&Tables!AP72)="ID",1,-1)*(2*M19+2*N19*Tables!$C$6))/12)^2*PI()/4*448.8,0)&" to "&ROUND(5*((INDIRECT("RAW!M"&Tables!AP72)+IF(INDIRECT("RAW!N"&Tables!AP72)="ID",1,-1)*(M19+N19*Tables!$C$6))/12)^2*PI()/4*448.8,0) ->  | AB19: =IFERROR(AH19,"") -> 0
A20: =_xlfn.UNIQUE(B10:B19) -> 0 | B20: =IF(OR(A20=0,A20=""),""," Total Weight of "&IF(A20="PE",A20&"-"&$R$4,A20)&" [lbs]") ->  | H20: =SUMIF($B$10:$B$19,A20,$H$10:$H$19) -> 0 | K20: =IFERROR(VLOOKUP(A20,Tables!$G$5:$I$13,3,FALSE),"") -> 
H21: 0 | K21: =IFERROR(VLOOKUP(A21,Tables!$G$5:$I$13,3,FALSE),"") -> 
H22: 0 | K22: =IFERROR(VLOOKUP(A22,Tables!$G$5:$I$13,3,FALSE),"") -> 
H23: 0 | K23: =IFERROR(VLOOKUP(A23,Tables!$G$5:$I$13,3,FALSE),"") -> 
H24: 0 | K24: =IFERROR(VLOOKUP(A24,Tables!$G$5:$I$13,3,FALSE),"") -> 
H25: 0 | K25: =IFERROR(VLOOKUP(A25,Tables!$G$5:$I$13,3,FALSE),"") -> 
B26: =IF(AND(K20="",K21="",K22="",K23="",K24="",K25=""),"","WARNING: "&IF(K20="","",K20&"; ")&IF(K21="","",K21&"; ")&IF(K22="","",K22&"; ")&IF(K23="","",K23&"; ")&IF(K24="","",K24&"; ")&IF(K25="","",K25)) -> 

Sheet Calc_Adv (hidden)
I1: Version 1.0 - 02-28-2026
R2: Resin used for polyethylene | T2: Method to estimate pipe weight
R3: pipe weight estimation | T3: for pipe types not in table
C4: Producer: | G4: Ref #: | R4: ="PE"&Tables!C5 -> PE4710 | T4: Pipe | U4: Specific | V4: Controlled | W4: Diameter | X4: Wall | Y4: Tolerance | Z4: Pipe
C5: Designed By: | E5: Checked By: | G5: County: | T5: Material | U5: Gravity | V5: In/Out | X5: Thickness | Z5: Weight
C6: Designed By Date: | E6: Checked By Date: | G6: Farm/Tract: | R6: Method used to estimate | U6: [-] | V6: Diameter | W6: [in] | X6: [in] | Y6: [in] | Z6: [lb/ft]
R7: average wall thickness | T7: Custom | U7: =VLOOKUP(T7,Tables!$G$5:$H$14,2,FALSE) -> 0.959 | V7: OD | W7: 6.5 | X7: 0.425 | Y7: 0.002 | Z7: =VLOOKUP(T7,Tables!$G$7:$H$14,2,FALSE)*IF(V7="ID",(W7+(X7+Y7*Tables!$C$6)),(W7-(X7+Y7*Tables!$C$6)))*(X7+Y7*Tables!$C$6)*1.36136 -> 3.378127054
A8: =VALUE(LEFT(B9,1))*VALUE(LEFT(C9,1))*VALUE(LEFT(D9,1))*VALUE(LEFT(E9,1)) -> 24 | B8: =IF(A8=24,"","WARNING: Selected Headings in Cells B9:E9 should include a 1, 2, 3, and 4 in any order") ->  | R8: =Tables!C9 -> Ave WT | T8: Custom | U8: =VLOOKUP(T8,Tables!$G$5:$H$14,2,FALSE) -> 0.959 | V8: OD | W8: 6.5 | X8: 0.425 | Y8: 0.002 | Z8: =VLOOKUP(T8,Tables!$G$7:$H$14,2,FALSE)*IF(V8="ID",(W8+(X8+Y8*Tables!$C$6)),(W8-(X8+Y8*Tables!$C$6)))*(X8+Y8*Tables!$C$6)*1.36136 -> 3.378127054
B9: 3 Nominal Diameter [in] | C9: 2 Pressure [psi] | D9: 1 Pipe Material Type | E9: 4 SDR_Pressure Combined | F9: Pipe Length [ft] | G9: Unit Pipe Weight [lbs/ft] | H9: Pipe Weight [lbs] | I9: Notes | L9: Controlled Diameter ID/OD [in] | M9: Wall Thickness [in] | N9: Tolerance for Wall Thickness [in] | O9: ASTM, ASABE, & MRF | P9: Typical Flow Range (2ft/s to 5ft/s) [gpm]
A10: =IFERROR(G10,"") ->  | G10: =INDIRECT("RAW!R"&Tables!CI72) ->  | H10: =IFERROR(F10*G10,"") ->  | I10: =IFERROR(O10,"") ->  | J10: =IFERROR(IF(LEFT($B$9,1)="1",IF(LEFT($B$9,3)="1 A",VLOOKUP(B10,Tables!$U$4:$X$30,4,FALSE),B10),IF(LEFT($C$9,1)="1",IF(LEFT($C$9,3)="1 A",VLOOKUP(C10,Tables!$U$4:$X$30,4,FALSE),C10),IF(LEFT($D$9,1)="1",IF(LEFT($D$9,3)="1 A",VLOOKUP(D10,Tables!$U$4:$X$30,4,FALSE),D10),IF(LEFT($E$9,1)="1",IF(LEFT($E$9,3)="1 A",VLOOKUP(E10,Tables!$U$4:$X$30,4,FALSE),E10),"")))),0) -> 0 | L10: =INDIRECT("RAW!M"&Tables!CI72)&"-"&INDIRECT("RAW!N"&Tables!CI72) ->  | M10: =INDIRECT("RAW!P"&Tables!CI72) ->  | N10: =INDIRECT("RAW!Q"&Tables!CI72) ->  | O10: =INDIRECT("RAW!T"&Tables!CI72) ->  | P10: =ROUND(2*((INDIRECT("RAW!M"&Tables!CI72)+IF(INDIRECT("RAW!N"&Tables!CI72)="ID",1,-1)*(2*M10+2*N10*Tables!$C$6))/12)^2*PI()/4*448.8,0)&" to "&ROUND(5*((INDIRECT("RAW!M"&Tables!CI72)+IF(INDIRECT("RAW!N"&Tables!CI72)="ID",1,-1)*(M10+N10*Tables!$C$6))/12)^2*PI()/4*448.8,0) ->  | AB10: =IFERROR(AH10,"") -> 0
G11: =INDIRECT("RAW!R"&Tables!CM72) ->  | J11: =IFERROR(IF(LEFT($B$9,1)="1",IF(LEFT($B$9,3)="1 A",VLOOKUP(B11,Tables!$U$4:$X$30,4,FALSE),B11),IF(LEFT($C$9,1)="1",IF(LEFT($C$9,3)="1 A",VLOOKUP(C11,Tables!$U$4:$X$30,4,FALSE),C11),IF(LEFT($D$9,1)="1",IF(LEFT($D$9,3)="1 A",VLOOKUP(D11,Tables!$U$4:$X$30,4,FALSE),D11),IF(LEFT($E$9,1)="1",IF(LEFT($E$9,3)="1 A",VLOOKUP(E11,Tables!$U$4:$X$30,4,FALSE),E11),"")))),0) -> 0 | L11: =INDIRECT("RAW!M"&Tables!CM72)&"-"&INDIRECT("RAW!N"&Tables!CM72) ->  | M11: =INDIRECT("RAW!P"&Tables!CM72) ->  | N11: =INDIRECT("RAW!Q"&Tables!CM72) ->  | O11: =INDIRECT("RAW!T"&Tables!CM72) ->  | P11: =ROUND(2*((INDIRECT("RAW!M"&Tables!CM72)+IF(INDIRECT("RAW!N"&Tables!CM72)="ID",1,-1)*(2*M11+2*N11*Tables!$C$6))/12)^2*PI()/4*448.8,0)&" to "&ROUND(5*((INDIRECT("RAW!M"&Tables!CM72)+IF(INDIRECT("RAW!N"&Tables!CM72)="ID",1,-1)*(M11+N11*Tables!$C$6))/12)^2*PI()/4*448.8,0) ->  | AB11: 0
G12: =INDIRECT("RAW!R"&Tables!CQ72) ->  | J12: =IFERROR(IF(LEFT($B$9,1)="1",IF(LEFT($B$9,3)="1 A",VLOOKUP(B12,Tables!$U$4:$X$30,4,FALSE),B12),IF(LEFT($C$9,1)="1",IF(LEFT($C$9,3)="1 A",VLOOKUP(C12,Tables!$U$4:$X$30,4,FALSE),C12),IF(LEFT($D$9,1)="1",IF(LEFT($D$9,3)="1 A",VLOOKUP(D12,Tables!$U$4:$X$30,4,FALSE),D12),IF(LEFT($E$9,1)="1",IF(LEFT($E$9,3)="1 A",VLOOKUP(E12,Tables!$U$4:$X$30,4,FALSE),E12),"")))),0) -> 0 | L12: =INDIRECT("RAW!M"&Tables!CQ72)&"-"&INDIRECT("RAW!N"&Tables!CQ72) ->  | M12: =INDIRECT("RAW!P"&Tables!CQ72) ->  | N12: =INDIRECT("RAW!Q"&Tables!CQ72) ->  | O12: =INDIRECT("RAW!T"&Tables!CQ72) ->  | P12: =ROUND(2*((INDIRECT("RAW!M"&Tables!CQ72)+IF(INDIRECT("RAW!N"&Tables!CQ72)="ID",1,-1)*(2*M12+2*N12*Tables!$C$6))/12)^2*PI()/4*448.8,0)&" to "&ROUND(5*((INDIRECT("RAW!M"&Tables!CQ72)+IF(INDIRECT("RAW!N"&Tables!CQ72)="ID",1,-1)*(M12+N12*Tables!$C$6))/12)^2*PI()/4*448.8,0) ->  | AB12: 0
G13: =INDIRECT("RAW!R"&Tables!CU72) ->  | J13: =IFERROR(IF(LEFT($B$9,1)="1",IF(LEFT($B$9,3)="1 A",VLOOKUP(B13,Tables!$U$4:$X$30,4,FALSE),B13),IF(LEFT($C$9,1)="1",IF(LEFT($C$9,3)="1 A",VLOOKUP(C13,Tables!$U$4:$X$30,4,FALSE),C13),IF(LEFT($D$9,1)="1",IF(LEFT($D$9,3)="1 A",VLOOKUP(D13,Tables!$U$4:$X$30,4,FALSE),D13),IF(LEFT($E$9,1)="1",IF(LEFT($E$9,3)="1 A",VLOOKUP(E13,Tables!$U$4:$X$30,4,FALSE),E13),"")))),0) -> 0 | L13: =INDIRECT("RAW!M"&Tables!CU72)&"-"&INDIRECT("RAW!N"&Tables!CU72) ->  | M13: =INDIRECT("RAW!P"&Tables!CU72) ->  | N13: =INDIRECT("RAW!Q"&Tables!CU72) ->  | O13: =INDIRECT("RAW!T"&Tables!CU72) ->  | P13: =ROUND(2*((INDIRECT("RAW!M"&Tables!CU72)+IF(INDIRECT("RAW!N"&Tables!CU72)="ID",1,-1)*(2*M13+2*N13*Tables!$C$6))/12)^2*PI()/4*448.8,0)&" to "&ROUND(5*((INDIRECT("RAW!M"&Tables!CU72)+IF(INDIRECT("RAW!N"&Tables!CU72)="ID",1,-1)*(M13+N13*Tables!$C$6))/12)^2*PI()/4*448.8,0) ->  | AB13: 0
G14: =INDIRECT("RAW!R"&Tables!CY72) ->  | J14: =IFERROR(IF(LEFT($B$9,1)="1",IF(LEFT($B$9,3)="1 A",VLOOKUP(B14,Tables!$U$4:$X$30,4,FALSE),B14),IF(LEFT($C$9,1)="1",IF(LEFT($C$9,3)="1 A",VLOOKUP(C14,Tables!$U$4:$X$30,4,FALSE),C14),IF(LEFT($D$9,1)="1",IF(LEFT($D$9,3)="1 A",VLOOKUP(D14,Tables!$U$4:$X$30,4,FALSE),D14),IF(LEFT($E$9,1)="1",IF(LEFT($E$9,3)="1 A",VLOOKUP(E14,Tables!$U$4:$X$30,4,FALSE),E14),"")))),0) -> 0 | L14: =INDIRECT("RAW!M"&Tables!CY72)&"-"&INDIRECT("RAW!N"&Tables!CY72) ->  | M14: =INDIRECT("RAW!P"&Tables!CY72) ->  | N14: =INDIRECT("RAW!Q"&Tables!CY72) ->  | O14: =INDIRECT("RAW!T"&Tables!CY72) ->  | P14: =ROUND(2*((INDIRECT("RAW!M"&Tables!CY72)+IF(INDIRECT("RAW!N"&Tables!CY72)="ID",1,-1)*(2*M14+2*N14*Tables!$C$6))/12)^2*PI()/4*448.8,0)&" to "&ROUND(5*((INDIRECT("RAW!M"&Tables!CY72)+IF(INDIRECT("RAW!N"&Tables!CY72)="ID",1,-1)*(M14+N14*Tables!$C$6))/12)^2*PI()/4*448.8,0) ->  | AB14: 0
G15: =INDIRECT("RAW!R"&Tables!DC72) ->  | J15: =IFERROR(IF(LEFT($B$9,1)="1",IF(LEFT($B$9,3)="1 A",VLOOKUP(B15,Tables!$U$4:$X$30,4,FALSE),B15),IF(LEFT($C$9,1)="1",IF(LEFT($C$9,3)="1 A",VLOOKUP(C15,Tables!$U$4:$X$30,4,FALSE),C15),IF(LEFT($D$9,1)="1",IF(LEFT($D$9,3)="1 A",VLOOKUP(D15,Tables!$U$4:$X$30,4,FALSE),D15),IF(LEFT($E$9,1)="1",IF(LEFT($E$9,3)="1 A",VLOOKUP(E15,Tables!$U$4:$X$30,4,FALSE),E15),"")))),0) -> 0 | L15: =INDIRECT("RAW!M"&Tables!DC72)&"-"&INDIRECT("RAW!N"&Tables!DC72) ->  | M15: =INDIRECT("RAW!P"&Tables!DC72) ->  | N15: =INDIRECT("RAW!Q"&Tables!DC72) ->  | O15: =INDIRECT("RAW!T"&Tables!DC72) ->  | P15: =ROUND(2*((INDIRECT("RAW!M"&Tables!DC72)+IF(INDIRECT("RAW!N"&Tables!DC72)="ID",1,-1)*(2*M15+2*N15*Tables!$C$6))/12)^2*PI()/4*448.8,0)&" to "&ROUND(5*((INDIRECT("RAW!M"&Tables!DC72)+IF(INDIRECT("RAW!N"&Tables!DC72)="ID",1,-1)*(M15+N15*Tables!$C$6))/12)^2*PI()/4*448.8,0) ->  | AB15: 0
G16: =INDIRECT("RAW!R"&Tables!DG72) ->  | J16: =IFERROR(IF(LEFT($B$9,1)="1",IF(LEFT($B$9,3)="1 A",VLOOKUP(B16,Tables!$U$4:$X$30,4,FALSE),B16),IF(LEFT($C$9,1)="1",IF(LEFT($C$9,3)="1 A",VLOOKUP(C16,Tables!$U$4:$X$30,4,FALSE),C16),IF(LEFT($D$9,1)="1",IF(LEFT($D$9,3)="1 A",VLOOKUP(D16,Tables!$U$4:$X$30,4,FALSE),D16),IF(LEFT($E$9,1)="1",IF(LEFT($E$9,3)="1 A",VLOOKUP(E16,Tables!$U$4:$X$30,4,FALSE),E16),"")))),0) -> 0 | L16: =INDIRECT("RAW!M"&Tables!DG72)&"-"&INDIRECT("RAW!N"&Tables!DG72) ->  | M16: =INDIRECT("RAW!P"&Tables!DG72) ->  | N16: =INDIRECT("RAW!Q"&Tables!DG72) ->  | O16: =INDIRECT("RAW!T"&Tables!DG72) ->  | P16: =ROUND(2*((INDIRECT("RAW!M"&Tables!DG72)+IF(INDIRECT("RAW!N"&Tables!DG72)="ID",1,-1)*(2*M16+2*N16*Tables!$C$6))/12)^2*PI()/4*448.8,0)&" to "&ROUND(5*((INDIRECT("RAW!M"&Tables!DG72)+IF(INDIRECT("RAW!N"&Tables!DG72)="ID",1,-1)*(M16+N16*Tables!$C$6))/12)^2*PI()/4*448.8,0) ->  | AB16: 0
G17: =INDIRECT("RAW!R"&Tables!DK72) ->  | J17: =IFERROR(IF(LEFT($B$9,1)="1",IF(LEFT($B$9,3)="1 A",VLOOKUP(B17,Tables!$U$4:$X$30,4,FALSE),B17),IF(LEFT($C$9,1)="1",IF(LEFT($C$9,3)="1 A",VLOOKUP(C17,Tables!$U$4:$X$30,4,FALSE),C17),IF(LEFT($D$9,1)="1",IF(LEFT($D$9,3)="1 A",VLOOKUP(D17,Tables!$U$4:$X$30,4,FALSE),D17),IF(LEFT($E$9,1)="1",IF(LEFT($E$9,3)="1 A",VLOOKUP(E17,Tables!$U$4:$X$30,4,FALSE),E17),"")))),0) -> 0 | L17: =INDIRECT("RAW!M"&Tables!DK72)&"-"&INDIRECT("RAW!N"&Tables!DK72) ->  | M17: =INDIRECT("RAW!P"&Tables!DK72) ->  | N17: =INDIRECT("RAW!Q"&Tables!DK72) ->  | O17: =INDIRECT("RAW!T"&Tables!DK72) ->  | P17: =ROUND(2*((INDIRECT("RAW!M"&Tables!DK72)+IF(INDIRECT("RAW!N"&Tables!DK72)="ID",1,-1)*(2*M17+2*N17*Tables!$C$6))/12)^2*PI()/4*448.8,0)&" to "&ROUND(5*((INDIRECT("RAW!M"&Tables!DK72)+IF(INDIRECT("RAW!N"&Tables!DK72)="ID",1,-1)*(M17+N17*Tables!$C$6))/12)^2*PI()/4*448.8,0) ->  | AB17: 0
G18: =INDIRECT("RAW!R"&Tables!DO72) ->  | J18: =IFERROR(IF(LEFT($B$9,1)="1",IF(LEFT($B$9,3)="1 A",VLOOKUP(B18,Tables!$U$4:$X$30,4,FALSE),B18),IF(LEFT($C$9,1)="1",IF(LEFT($C$9,3)="1 A",VLOOKUP(C18,Tables!$U$4:$X$30,4,FALSE),C18),IF(LEFT($D$9,1)="1",IF(LEFT($D$9,3)="1 A",VLOOKUP(D18,Tables!$U$4:$X$30,4,FALSE),D18),IF(LEFT($E$9,1)="1",IF(LEFT($E$9,3)="1 A",VLOOKUP(E18,Tables!$U$4:$X$30,4,FALSE),E18),"")))),0) -> 0 | L18: =INDIRECT("RAW!M"&Tables!DO72)&"-"&INDIRECT("RAW!n"&Tables!DO72) ->  | M18: =INDIRECT("RAW!P"&Tables!DO72) ->  | N18: =INDIRECT("RAW!Q"&Tables!DO72) ->  | O18: =INDIRECT("RAW!T"&Tables!DO72) ->  | P18: =ROUND(2*((INDIRECT("RAW!M"&Tables!DO72)+IF(INDIRECT("RAW!N"&Tables!DO72)="ID",1,-1)*(2*M18+2*N18*Tables!$C$6))/12)^2*PI()/4*448.8,0)&" to "&ROUND(5*((INDIRECT("RAW!M"&Tables!DO72)+IF(INDIRECT("RAW!N"&Tables!DO72)="ID",1,-1)*(M18+N18*Tables!$C$6))/12)^2*PI()/4*448.8,0) ->  | AB18: 0
G19: =INDIRECT("RAW!R"&Tables!DS72) ->  | J19: =IFERROR(IF(LEFT($B$9,1)="1",IF(LEFT($B$9,3)="1 A",VLOOKUP(B19,Tables!$U$4:$X$30,4,FALSE),B19),IF(LEFT($C$9,1)="1",IF(LEFT($C$9,3)="1 A",VLOOKUP(C19,Tables!$U$4:$X$30,4,FALSE),C19),IF(LEFT($D$9,1)="1",IF(LEFT($D$9,3)="1 A",VLOOKUP(D19,Tables!$U$4:$X$30,4,FALSE),D19),IF(LEFT($E$9,1)="1",IF(LEFT($E$9,3)="1 A",VLOOKUP(E19,Tables!$U$4:$X$30,4,FALSE),E19),"")))),0) -> 0 | L19: =INDIRECT("RAW!M"&Tables!DS72)&"-"&INDIRECT("RAW!N"&Tables!DS72) ->  | M19: =INDIRECT("RAW!P"&Tables!DS72) ->  | N19: =INDIRECT("RAW!Q"&Tables!DS72) ->  | O19: =INDIRECT("RAW!T"&Tables!DS72) ->  | P19: =ROUND(2*((INDIRECT("RAW!M"&Tables!DS72)+IF(INDIRECT("RAW!N"&Tables!DS72)="ID",1,-1)*(2*M19+2*N19*Tables!$C$6))/12)^2*PI()/4*448.8,0)&" to "&ROUND(5*((INDIRECT("RAW!M"&Tables!DS72)+IF(INDIRECT("RAW!N"&Tables!DS72)="ID",1,-1)*(M19+N19*Tables!$C$6))/12)^2*PI()/4*448.8,0) ->  | AB19: 0
A20: =_xlfn.UNIQUE(J10:J19) -> 0 | B20: =IF(OR(A20=0,A20=""),""," Total Weight of "&IF(A20="PE",A20&"-"&$R$4,A20)&" [lbs]") ->  | H20: =SUMIF($J$10:$J$19,A20,$H$10:$H$19) -> 0 | K20: =IFERROR(VLOOKUP(A20,Tables!$G$5:$I$13,3,FALSE),"") -> 
H21: 0 | K21: =IFERROR(VLOOKUP(A21,Tables!$G$5:$I$13,3,FALSE),"") -> 
H22: 0 | K22: =IFERROR(VLOOKUP(A22,Tables!$G$5:$I$13,3,FALSE),"") -> 
H23: 0 | K23: =IFERROR(VLOOKUP(A23,Tables!$G$5:$I$13,3,FALSE),"") -> 
H24: 0 | K24: =IFERROR(VLOOKUP(A24,Tables!$G$5:$I$13,3,FALSE),"") -> 
H25: 0 | K25: =IFERROR(VLOOKUP(A25,Tables!$G$5:$I$13,3,FALSE),"") -> 
B26: =IF(AND(K20="",K21="",K22="",K23="",K24="",K25=""),"","WARNING: "&IF(K20="","",K20&"; ")&IF(K21="","",K21&"; ")&IF(K22="","",K22&"; ")&IF(K23="","",K23&"; ")&IF(K24="","",K24&"; ")&IF(K25="","",K25)) -> 

Sheet RAW (hidden)
E1: Row() | F1: Pipe Material Type | G1: Pipe Diameter Standard | H1: Nominal Diameter [in] | I1: Diameter Display [in] | J1: SDR_Pressure Combined | K1: SDR [-] | L1: Pressure [psi] | M1: Min Inside or Outside Diameter [in] | N1: Controlled Diameter [in] | O1: Out OF Round [in] | P1: Wall Thickness [in] | Q1: Wall Tolerance [in] | R1: Pipe Weight [lbs/ft] | S1: Pipe Diameter Standard/Controlled Diameter&Thickness | T1: References (ASTM)
D2: 1 | E2: =ROW() -> 2 | F2: PVC | G2: IPS (DR) | H2: 0.125 | I2: 1/8 | J2: =L2&" psi DR-"&K2 -> 315 psi DR-13.5 | K2: 13.5 | L2: =VLOOKUP(K2,Tables!$C$17:$D$34,2,FALSE) -> 315 | M2: 0.405 | N2: OD | O2: 0.016 | P2: 0.06 | Q2: 0.02 | R2: =VLOOKUP(F2,Tables!$G$5:$H$14,2,FALSE)*(M2-(P2+Q2*Tables!$C$6))*(P2+Q2*Tables!$C$6)*1.36136 -> 0.0446934488 | S2: ="Controlled OD (DR-"&K2&") Iron Pipe Size" -> Controlled OD (DR-13.5) Iron Pipe Size | T2: ASTM D2241
E3: =ROW() -> 3 | F3: PVC | G3: IPS (DR) | H3: 0.25 | I3: 1/4 | J3: 315 psi DR-13.5 | K3: 13.5 | L3: =VLOOKUP(K3,Tables!$C$17:$D$34,2,FALSE) -> 315 | M3: 0.54 | N3: OD | O3: 0.016 | P3: 0.06 | Q3: 0.02 | R3: =VLOOKUP(F3,Tables!$G$5:$H$14,2,FALSE)*(M3-(P3+Q3*Tables!$C$6))*(P3+Q3*Tables!$C$6)*1.36136 -> 0.0627042416 | S3: ="Controlled OD (DR-"&K3&") Iron Pipe Size" -> Controlled OD (DR-13.5) Iron Pipe Size | T3: ASTM D2241 | AF3: Not Standard Pipe
E4: =ROW() -> 4 | F4: PVC | G4: IPS (DR) | H4: 0.375 | I4: 3/8 | J4: 315 psi DR-13.5 | K4: 13.5 | L4: =VLOOKUP(K4,Tables!$C$17:$D$34,2,FALSE) -> 315 | M4: 0.675 | N4: OD | O4: 0.016 | P4: 0.06 | Q4: 0.02 | R4: =VLOOKUP(F4,Tables!$G$5:$H$14,2,FALSE)*(M4-(P4+Q4*Tables!$C$6))*(P4+Q4*Tables!$C$6)*1.36136 -> 0.0807150344 | S4: Controlled OD (DR-13.5) Iron Pipe Size | T4: ASTM D2241 | AG4: Steel or Aluminum | AH4: Corrugated Steel Pipe | AI4: 12.000 | AJ4: 12 | AL4: 12.000 | AO4: 10 | AQ4: 0.138 | AU4: 19
E5: =ROW() -> 5 | F5: PVC | G5: IPS (DR) | H5: 0.5 | I5: 1/2 | J5: 315 psi DR-13.5 | K5: 13.5 | L5: =VLOOKUP(K5,Tables!$C$17:$D$34,2,FALSE) -> 315 | M5: 0.84 | N5: OD | O5: 0.016 | P5: 0.062 | Q5: 0.02 | R5: =VLOOKUP(F5,Tables!$G$5:$H$14,2,FALSE)*(M5-(P5+Q5*Tables!$C$6))*(P5+Q5*Tables!$C$6)*1.36136 -> 0.1053888676 | S5: Controlled OD (DR-13.5) Iron Pipe Size | T5: ASTM D2241 | AG5: Steel or Aluminum | AH5: Corrugated Steel Pipe | AI5: 12.000 | AJ5: 12 | AL5: 12.000 | AO5: 8 | AQ5: 0.168 | AU5: 63
E6: =ROW() -> 6 | F6: PVC | G6: IPS (DR) | H6: 0.75 | I6: 3/4 | J6: 200 psi DR-21 | K6: 21 | L6: =VLOOKUP(K6,Tables!$C$17:$D$34,2,FALSE) -> 200 | M6: 1.05 | N6: OD | O6: 0.03 | P6: 0.06 | Q6: 0.02 | R6: =VLOOKUP(F6,Tables!$G$5:$H$14,2,FALSE)*(M6-(P6+Q6*Tables!$C$6))*(P6+Q6*Tables!$C$6)*1.36136 -> 0.1307450144 | S6: Controlled OD (DR-21) Iron Pipe Size | T6: ASTM D2241 | AG6: Steel or Aluminum | AH6: Corrugated Steel Pipe | AI6: 15.000 | AJ6: 15 | AL6: 15.000 | AO6: 10 | AQ6: 0.138 | AU6: 64
E7: =ROW() -> 7 | F7: PVC | G7: IPS (DR) | H7: 0.75 | I7: 3/4 | J7: 250 psi DR-17 | K7: 17 | L7: =VLOOKUP(K7,Tables!$C$17:$D$34,2,FALSE) -> 250 | M7: 1.05 | N7: OD | O7: 0.02 | P7: 0.062 | Q7: 0.02 | R7: =VLOOKUP(F7,Tables!$G$5:$H$14,2,FALSE)*(M7-(P7+Q7*Tables!$C$6))*(P7+Q7*Tables!$C$6)*1.36136 -> 0.1342061361 | S7: Controlled OD (DR-17) Iron Pipe Size | T7: ASTM D2241 | AG7: Steel or Aluminum | AH7: Corrugated Steel Pipe | AI7: 15.000 | AJ7: 15 | AL7: 15.000 | AO7: 8 | AQ7: 0.168 | AU7: 40
E8: =ROW() -> 8 | F8: PVC | G8: IPS (DR) | H8: 0.75 | I8: 3/4 | J8: 315 psi DR-13.5 | K8: 13.5 | L8: =VLOOKUP(K8,Tables!$C$17:$D$34,2,FALSE) -> 315 | M8: 1.05 | N8: OD | O8: 0.02 | P8: 0.078 | Q8: 0.02 | R8: =VLOOKUP(F8,Tables!$G$5:$H$14,2,FALSE)*(M8-(P8+Q8*Tables!$C$6))*(P8+Q8*Tables!$C$6)*1.36136 -> 0.161346209 | S8: Controlled OD (DR-13.5) Iron Pipe Size | T8: ASTM D2241 | AG8: Steel or Aluminum | AH8: Corrugated Steel Pipe | AI8: 18.000 | AJ8: 18 | AL8: 18.000 | AO8: 10 | AQ8: 0.138 | AU8: 23
E9: =ROW() -> 9 | F9: PVC | G9: IPS (DR) | H9: 1 | I9: 1 | J9: 160 psi DR-26 | K9: 26 | L9: =VLOOKUP(K9,Tables!$C$17:$D$34,2,FALSE) -> 160 | M9: 1.315 | N9: OD | O9: 0.03 | P9: 0.06 | Q9: 0.02 | R9: =VLOOKUP(F9,Tables!$G$5:$H$14,2,FALSE)*(M9-(P9+Q9*Tables!$C$6))*(P9+Q9*Tables!$C$6)*1.36136 -> 0.1660995336 | S9: Controlled OD (DR-26) Iron Pipe Size | T9: ASTM D2241 | AG9: Steel or Aluminum | AH9: Corrugated Steel Pipe | AI9: 18.000 | AJ9: 18 | AL9: 18.000 | AO9: 8 | AQ9: 0.168 | AU9: 1
E10: =ROW() -> 10 | F10: PVC | G10: IPS (DR) | H10: 1 | I10: 1 | J10: 200 psi DR-21 | K10: 21 | L10: =VLOOKUP(K10,Tables!$C$17:$D$34,2,FALSE) -> 200 | M10: 1.315 | N10: OD | O10: 0.03 | P10: 0.063 | Q10: 0.02 | R10: =VLOOKUP(F10,Tables!$G$5:$H$14,2,FALSE)*(M10-(P10+Q10*Tables!$C$6))*(P10+Q10*Tables!$C$6)*1.36136 -> 0.1728006921 | S10: Controlled OD (DR-21) Iron Pipe Size | T10: ASTM D2241 | AG10: Steel or Aluminum | AH10: Corrugated Steel Pipe | AI10: 21.000 | AJ10: 21 | AL10: 21.000 | AO10: 10 | AQ10: 0.138 | AU10: 5
E11: =ROW() -> 11 | F11: PVC | G11: IPS (DR) | H11: 1 | I11: 1 | J11: 250 psi DR-17 | K11: 17 | L11: =VLOOKUP(K11,Tables!$C$17:$D$34,2,FALSE) -> 250 | M11: 1.315 | N11: OD | O11: 0.02 | P11: 0.077 | Q11: 0.02 | R11: =VLOOKUP(F11,Tables!$G$5:$H$14,2,FALSE)*(M11-(P11+Q11*Tables!$C$6))*(P11+Q11*Tables!$C$6)*1.36136 -> 0.2036191597 | S11: Controlled OD (DR-17) Iron Pipe Size | T11: ASTM D2241 | AG11: Steel or Aluminum | AH11: Corrugated Steel Pipe | AI11: 21.000 | AJ11: 21 | AL11: 21.000 | AO11: 8 | AQ11: 0.168 | AU11: 43
E12: =ROW() -> 12 | F12: PVC | G12: IPS (DR) | H12: 1 | I12: 1 | J12: 315 psi DR-13.5 | K12: 13.5 | L12: =VLOOKUP(K12,Tables!$C$17:$D$34,2,FALSE) -> 315 | M12: 1.315 | N12: OD | O12: 0.02 | P12: 0.097 | Q12: 0.02 | R12: =VLOOKUP(F12,Tables!$G$5:$H$14,2,FALSE)*(M12-(P12+Q12*Tables!$C$6))*(P12+Q12*Tables!$C$6)*1.36136 -> 0.2463495274 | S12: Controlled OD (DR-13.5) Iron Pipe Size | T12: ASTM D2241 | AG12: Steel or Aluminum | AH12: Corrugated Steel Pipe | AI12: 24.000 | AJ12: 24 | AL12: 24.000 | AO12: 8 | AQ12: 0.168 | AU12: 21
E13: =ROW() -> 13 | F13: PVC | G13: IPS (DR) | H13: 1.25 | I13: 1 1/4 | J13: 125 psi DR-32.5 | K13: 32.5 | L13: =VLOOKUP(K13,Tables!$C$17:$D$34,2,FALSE) -> 125 | M13: 1.66 | N13: OD | O13: 0.03 | P13: 0.06 | Q13: 0.02 | R13: =VLOOKUP(F13,Tables!$G$5:$H$14,2,FALSE)*(M13-(P13+Q13*Tables!$C$6))*(P13+Q13*Tables!$C$6)*1.36136 -> 0.2121271152 | S13: Controlled OD (DR-32.5) Iron Pipe Size | T13: ASTM D2241 | AG13: Steel or Aluminum | AH13: Corrugated Steel Pipe | AI13: 30.000 | AJ13: 30 | AL13: 30.000 | AO13: 8 | AQ13: 0.168 | AU13: 50
E14: =ROW() -> 14 | F14: PVC | G14: IPS (DR) | H14: 1.25 | I14: 1 1/4 | J14: 160 psi DR-26 | K14: 26 | L14: =VLOOKUP(K14,Tables!$C$17:$D$34,2,FALSE) -> 160 | M14: 1.66 | N14: OD | O14: 0.03 | P14: 0.064 | Q14: 0.02 | R14: =VLOOKUP(F14,Tables!$G$5:$H$14,2,FALSE)*(M14-(P14+Q14*Tables!$C$6))*(P14+Q14*Tables!$C$6)*1.36136 -> 0.2236845171 | S14: Controlled OD (DR-26) Iron Pipe Size | T14: ASTM D2241 | AG14: Steel or Aluminum | AH14: Corrugated Steel Pipe | AI14: 54.000 | AJ14: 54 | AL14: 54.000 | AO14: 16 | AQ14: 0.064 | AU14: 42
E15: =ROW() -> 15 | F15: PVC | G15: IPS (DR) | H15: 1.25 | I15: 1 1/4 | J15: 200 psi DR-21 | K15: 21 | L15: =VLOOKUP(K15,Tables!$C$17:$D$34,2,FALSE) -> 200 | M15: 1.66 | N15: OD | O15: 0.03 | P15: 0.079 | Q15: 0.02 | R15: =VLOOKUP(F15,Tables!$G$5:$H$14,2,FALSE)*(M15-(P15+Q15*Tables!$C$6))*(P15+Q15*Tables!$C$6)*1.36136 -> 0.2664815914 | S15: Controlled OD (DR-21) Iron Pipe Size | T15: ASTM D2241 | AG15: Steel or Aluminum | AH15: Corrugated Steel Pipe | AI15: 60.000 | AJ15: 60 | AL15: 60.000 | AO15: 16 | AQ15: 0.064 | AU15: 6
E16: =ROW() -> 16 | F16: PVC | G16: IPS (DR) | H16: 1.25 | I16: 1 1/4 | J16: 250 psi DR-17 | K16: 17 | L16: =VLOOKUP(K16,Tables!$C$17:$D$34,2,FALSE) -> 250 | M16: 1.66 | N16: OD | O16: 0.024 | P16: 0.098 | Q16: 0.02 | R16: =VLOOKUP(F16,Tables!$G$5:$H$14,2,FALSE)*(M16-(P16+Q16*Tables!$C$6))*(P16+Q16*Tables!$C$6)*1.36136 -> 0.3194600049 | S16: Controlled OD (DR-17) Iron Pipe Size | T16: ASTM D2241 | AG16: Steel or Aluminum | AH16: Corrugated Steel Pipe | AI16: 66.000 | AJ16: 66 | AL16: 66.000 | AO16: 16 | AQ16: 0.064 | AU16: 47
E17: =ROW() -> 17 | F17: PVC | G17: IPS (DR) | H17: 1.25 | I17: 1 1/4 | J17: 315 psi DR-13.5 | K17: 13.5 | L17: =VLOOKUP(K17,Tables!$C$17:$D$34,2,FALSE) -> 315 | M17: 1.66 | N17: OD | O17: 0.024 | P17: 0.123 | Q17: 0.02 | R17: =VLOOKUP(F17,Tables!$G$5:$H$14,2,FALSE)*(M17-(P17+Q17*Tables!$C$6))*(P17+Q17*Tables!$C$6)*1.36136 -> 0.3870719493 | S17: Controlled OD (DR-13.5) Iron Pipe Size | T17: ASTM D2241 | AG17: Steel or Aluminum | AH17: Corrugated Steel Pipe | AI17: 72.000 | AJ17: 72 | AL17: 72.000 | AO17: 16 | AQ17: 0.064 | AU17: 24
E18: =ROW() -> 18 | F18: PVC | G18: IPS (DR) | H18: 1.5 | I18: 1 1/2 | J18: 125 psi DR-32.5 | K18: 32.5 | L18: =VLOOKUP(K18,Tables!$C$17:$D$34,2,FALSE) -> 125 | M18: 1.9 | N18: OD | O18: 0.06 | P18: 0.06 | Q18: 0.02 | R18: =VLOOKUP(F18,Tables!$G$5:$H$14,2,FALSE)*(M18-(P18+Q18*Tables!$C$6))*(P18+Q18*Tables!$C$6)*1.36136 -> 0.2441463024 | S18: Controlled OD (DR-32.5) Iron Pipe Size | T18: ASTM D2241 | AG18: Steel or Aluminum | AH18: Corrugated Steel Pipe | AI18: 72.000 | AJ18: 72 | AL18: 72.000 | AO18: 14 | AQ18: 0.079 | AU18: 49
E19: =ROW() -> 19 | F19: PVC | G19: IPS (DR) | H19: 1.5 | I19: 1 1/2 | J19: 160 psi DR-26 | K19: 26 | L19: =VLOOKUP(K19,Tables!$C$17:$D$34,2,FALSE) -> 160 | M19: 1.9 | N19: OD | O19: 0.06 | P19: 0.073 | Q19: 0.02 | R19: =VLOOKUP(F19,Tables!$G$5:$H$14,2,FALSE)*(M19-(P19+Q19*Tables!$C$6))*(P19+Q19*Tables!$C$6)*1.36136 -> 0.2874312881 | S19: Controlled OD (DR-26) Iron Pipe Size | T19: ASTM D2241
E20: =ROW() -> 20 | F20: PVC | G20: IPS (DR) | H20: 1.5 | I20: 1 1/2 | J20: 200 psi DR-21 | K20: 21 | L20: =VLOOKUP(K20,Tables!$C$17:$D$34,2,FALSE) -> 200 | M20: 1.9 | N20: OD | O20: 0.06 | P20: 0.09 | Q20: 0.02 | R20: =VLOOKUP(F20,Tables!$G$5:$H$14,2,FALSE)*(M20-(P20+Q20*Tables!$C$6))*(P20+Q20*Tables!$C$6)*1.36136 -> 0.34306272 | S20: Controlled OD (DR-21) Iron Pipe Size | T20: ASTM D2241
E21: =ROW() -> 21 | F21: PVC | G21: IPS (DR) | H21: 1.5 | I21: 1 1/2 | J21: 250 psi DR-17 | K21: 17 | L21: =VLOOKUP(K21,Tables!$C$17:$D$34,2,FALSE) -> 250 | M21: 1.9 | N21: OD | O21: 0.024 | P21: 0.112 | Q21: 0.02 | R21: =VLOOKUP(F21,Tables!$G$5:$H$14,2,FALSE)*(M21-(P21+Q21*Tables!$C$6))*(P21+Q21*Tables!$C$6)*1.36136 -> 0.4134210721 | S21: Controlled OD (DR-17) Iron Pipe Size | T21: ASTM D2241
E22: =ROW() -> 22 | F22: PVC | G22: IPS (DR) | H22: 1.5 | I22: 1 1/2 | J22: 315 psi DR-13.5 | K22: 13.5 | L22: =VLOOKUP(K22,Tables!$C$17:$D$34,2,FALSE) -> 315 | M22: 1.9 | N22: OD | O22: 0.024 | P22: 0.141 | Q22: 0.02 | R22: =VLOOKUP(F22,Tables!$G$5:$H$14,2,FALSE)*(M22-(P22+Q22*Tables!$C$6))*(P22+Q22*Tables!$C$6)*1.36136 -> 0.5033473405 | S22: Controlled OD (DR-13.5) Iron Pipe Size | T22: ASTM D2241
E23: =ROW() -> 23 | F23: PVC | G23: IPS (DR) | H23: 2 | I23: 2 | J23: 125 psi DR-32.5 | K23: 32.5 | L23: =VLOOKUP(K23,Tables!$C$17:$D$34,2,FALSE) -> 125 | M23: 2.375 | N23: OD | O23: 0.06 | P23: 0.073 | Q23: 0.02 | R23: =VLOOKUP(F23,Tables!$G$5:$H$14,2,FALSE)*(M23-(P23+Q23*Tables!$C$6))*(P23+Q23*Tables!$C$6)*1.36136 -> 0.3625715533 | S23: Controlled OD (DR-32.5) Iron Pipe Size | T23: ASTM D2241
E24: =ROW() -> 24 | F24: PVC | G24: IPS (DR) | H24: 2 | I24: 2 | J24: 160 psi DR-26 | K24: 26 | L24: =VLOOKUP(K24,Tables!$C$17:$D$34,2,FALSE) -> 160 | M24: 2.375 | N24: OD | O24: 0.06 | P24: 0.091 | Q24: 0.02 | R24: =VLOOKUP(F24,Tables!$G$5:$H$14,2,FALSE)*(M24-(P24+Q24*Tables!$C$6))*(P24+Q24*Tables!$C$6)*1.36136 -> 0.4377365953 | S24: Controlled OD (DR-26) Iron Pipe Size | T24: ASTM D2241
E25: =ROW() -> 25 | F25: PVC | G25: IPS (DR) | H25: 2 | I25: 2 | J25: 200 psi DR-21 | K25: 21 | L25: =VLOOKUP(K25,Tables!$C$17:$D$34,2,FALSE) -> 200 | M25: 2.375 | N25: OD | O25: 0.06 | P25: 0.113 | Q25: 0.02 | R25: =VLOOKUP(F25,Tables!$G$5:$H$14,2,FALSE)*(M25-(P25+Q25*Tables!$C$6))*(P25+Q25*Tables!$C$6)*1.36136 -> 0.5279277844 | S25: Controlled OD (DR-21) Iron Pipe Size | T25: ASTM D2241
E26: =ROW() -> 26 | F26: PVC | G26: IPS (DR) | H26: 2 | I26: 2 | J26: 250 psi DR-17 | K26: 17 | L26: =VLOOKUP(K26,Tables!$C$17:$D$34,2,FALSE) -> 250 | M26: 2.375 | N26: OD | O26: 0.024 | P26: 0.14 | Q26: 0.02 | R26: =VLOOKUP(F26,Tables!$G$5:$H$14,2,FALSE)*(M26-(P26+Q26*Tables!$C$6))*(P26+Q26*Tables!$C$6)*1.36136 -> 0.63609546 | S26: Controlled OD (DR-17) Iron Pipe Size | T26: ASTM D2241
E27: =ROW() -> 27 | F27: PVC | G27: IPS (DR) | H27: 2 | I27: 2 | J27: 315 psi DR-13.5 | K27: 13.5 | L27: =VLOOKUP(K27,Tables!$C$17:$D$34,2,FALSE) -> 315 | M27: 2.375 | N27: OD | O27: 0.024 | P27: 0.176 | Q27: 0.02 | R27: =VLOOKUP(F27,Tables!$G$5:$H$14,2,FALSE)*(M27-(P27+Q27*Tables!$C$6))*(P27+Q27*Tables!$C$6)*1.36136 -> 0.7759964372 | S27: Controlled OD (DR-13.5) Iron Pipe Size | T27: ASTM D2241
E28: =ROW() -> 28 | F28: PVC | G28: IPS (DR) | H28: 2.5 | I28: 2 1/2 | J28: 125 psi DR-32.5 | K28: 32.5 | L28: =VLOOKUP(K28,Tables!$C$17:$D$34,2,FALSE) -> 125 | M28: 2.875 | N28: OD | O28: 0.06 | P28: 0.088 | Q28: 0.02 | R28: =VLOOKUP(F28,Tables!$G$5:$H$14,2,FALSE)*(M28-(P28+Q28*Tables!$C$6))*(P28+Q28*Tables!$C$6)*1.36136 -> 0.51868415 | S28: Controlled OD (DR-32.5) Iron Pipe Size | T28: ASTM D2241
E29: =ROW() -> 29 | F29: PVC | G29: IPS (DR) | H29: 2.5 | I29: 2 1/2 | J29: 160 psi DR-26 | K29: 26 | L29: =VLOOKUP(K29,Tables!$C$17:$D$34,2,FALSE) -> 160 | M29: 2.875 | N29: OD | O29: 0.06 | P29: 0.11 | Q29: 0.02 | R29: =VLOOKUP(F29,Tables!$G$5:$H$14,2,FALSE)*(M29-(P29+Q29*Tables!$C$6))*(P29+Q29*Tables!$C$6)*1.36136 -> 0.6300918624 | S29: Controlled OD (DR-26) Iron Pipe Size | T29: ASTM D2241
E30: =ROW() -> 30 | F30: PVC | G30: IPS (DR) | H30: 2.5 | I30: 2 1/2 | J30: 200 psi DR-21 | K30: 21 | L30: =VLOOKUP(K30,Tables!$C$17:$D$34,2,FALSE) -> 200 | M30: 2.875 | N30: OD | O30: 0.06 | P30: 0.137 | Q30: 0.02 | R30: =VLOOKUP(F30,Tables!$G$5:$H$14,2,FALSE)*(M30-(P30+Q30*Tables!$C$6))*(P30+Q30*Tables!$C$6)*1.36136 -> 0.7642979985 | S30: Controlled OD (DR-21) Iron Pipe Size | T30: ASTM D2241
E31: =ROW() -> 31 | F31: PVC | G31: IPS (DR) | H31: 2.5 | I31: 2 1/2 | J31: 250 psi DR-17 | K31: 17 | L31: =VLOOKUP(K31,Tables!$C$17:$D$34,2,FALSE) -> 250 | M31: 2.875 | N31: OD | O31: 0.03 | P31: 0.169 | Q31: 0.02 | R31: =VLOOKUP(F31,Tables!$G$5:$H$14,2,FALSE)*(M31-(P31+Q31*Tables!$C$6))*(P31+Q31*Tables!$C$6)*1.36136 -> 0.9197587759 | S31: Controlled OD (DR-17) Iron Pipe Size | T31: ASTM D2241
E32: =ROW() -> 32 | F32: PVC | G32: IPS (DR) | H32: 2.5 | I32: 2 1/2 | J32: 315 psi DR-13.5 | K32: 13.5 | L32: =VLOOKUP(K32,Tables!$C$17:$D$34,2,FALSE) -> 315 | M32: 2.875 | N32: OD | O32: 0.03 | P32: 0.213 | Q32: 0.026 | R32: =VLOOKUP(F32,Tables!$G$5:$H$14,2,FALSE)*(M32-(P32+Q32*Tables!$C$6))*(P32+Q32*Tables!$C$6)*1.36136 -> 1.141015171 | S32: Controlled OD (DR-13.5) Iron Pipe Size | T32: ASTM D2241
E33: =ROW() -> 33 | F33: PVC | G33: IPS (DR) | H33: 3 | I33: 3 | J33: 100 psi DR-41 | K33: 41 | L33: =VLOOKUP(K33,Tables!$C$17:$D$34,2,FALSE) -> 100 | M33: 3.5 | N33: OD | O33: 0.06 | P33: 0.085 | Q33: 0.02 | R33: =VLOOKUP(F33,Tables!$G$5:$H$14,2,FALSE)*(M33-(P33+Q33*Tables!$C$6))*(P33+Q33*Tables!$C$6)*1.36136 -> 0.6165122964 | S33: Controlled OD (DR-41) Iron Pipe Size | T33: ASTM D2241
E34: =ROW() -> 34 | F34: PVC | G34: IPS (DR) | H34: 3 | I34: 3 | J34: 125 psi DR-32.5 | K34: 32.5 | L34: =VLOOKUP(K34,Tables!$C$17:$D$34,2,FALSE) -> 125 | M34: 3.5 | N34: OD | O34: 0.06 | P34: 0.108 | Q34: 0.02 | R34: =VLOOKUP(F34,Tables!$G$5:$H$14,2,FALSE)*(M34-(P34+Q34*Tables!$C$6))*(P34+Q34*Tables!$C$6)*1.36136 -> 0.7606005447 | S34: Controlled OD (DR-32.5) Iron Pipe Size | T34: ASTM D2241
E35: =ROW() -> 35 | F35: PVC | G35: IPS (DR) | H35: 3 | I35: 3 | J35: 160 psi DR-26 | K35: 26 | L35: =VLOOKUP(K35,Tables!$C$17:$D$34,2,FALSE) -> 160 | M35: 3.5 | N35: OD | O35: 0.06 | P35: 0.135 | Q35: 0.02 | R35: =VLOOKUP(F35,Tables!$G$5:$H$14,2,FALSE)*(M35-(P35+Q35*Tables!$C$6))*(P35+Q35*Tables!$C$6)*1.36136 -> 0.9271746484 | S35: Controlled OD (DR-26) Iron Pipe Size | T35: ASTM D2241
E36: =ROW() -> 36 | F36: PVC | G36: IPS (DR) | H36: 3 | I36: 3 | J36: 200 psi DR-21 | K36: 21 | L36: =VLOOKUP(K36,Tables!$C$17:$D$34,2,FALSE) -> 200 | M36: 3.5 | N36: OD | O36: 0.06 | P36: 0.167 | Q36: 0.02 | R36: =VLOOKUP(F36,Tables!$G$5:$H$14,2,FALSE)*(M36-(P36+Q36*Tables!$C$6))*(P36+Q36*Tables!$C$6)*1.36136 -> 1.120997462 | S36: Controlled OD (DR-21) Iron Pipe Size | T36: ASTM D2241
E37: =ROW() -> 37 | F37: PVC | G37: IPS (DR) | H37: 3 | I37: 3 | J37: 250 psi DR-17 | K37: 17 | L37: =VLOOKUP(K37,Tables!$C$17:$D$34,2,FALSE) -> 250 | M37: 3.5 | N37: OD | O37: 0.03 | P37: 0.206 | Q37: 0.025 | R37: =VLOOKUP(F37,Tables!$G$5:$H$14,2,FALSE)*(M37-(P37+Q37*Tables!$C$6))*(P37+Q37*Tables!$C$6)*1.36136 -> 1.366547939 | S37: Controlled OD (DR-17) Iron Pipe Size | T37: ASTM D2241
E38: =ROW() -> 38 | F38: PVC | G38: IPS (DR) | H38: 3 | I38: 3 | J38: 315 psi DR-13.5 | K38: 13.5 | L38: =VLOOKUP(K38,Tables!$C$17:$D$34,2,FALSE) -> 315 | M38: 3.5 | N38: OD | O38: 0.03 | P38: 0.259 | Q38: 0.031 | R38: =VLOOKUP(F38,Tables!$G$5:$H$14,2,FALSE)*(M38-(P38+Q38*Tables!$C$6))*(P38+Q38*Tables!$C$6)*1.36136 -> 1.687486925 | S38: Controlled OD (DR-13.5) Iron Pipe Size | T38: ASTM D2241
E39: =ROW() -> 39 | F39: PVC | G39: IPS (DR) | H39: 3.5 | I39: 3 1/2 | J39: 100 psi DR-41 | K39: 41 | L39: =VLOOKUP(K39,Tables!$C$17:$D$34,2,FALSE) -> 100 | M39: 4 | N39: OD | O39: 0.1 | P39: 0.098 | Q39: 0.02 | R39: =VLOOKUP(F39,Tables!$G$5:$H$14,2,FALSE)*(M39-(P39+Q39*Tables!$C$6))*(P39+Q39*Tables!$C$6)*1.36136 -> 0.8011200637 | S39: Controlled OD (DR-41) Iron Pipe Size | T39: ASTM D2241
E40: =ROW() -> 40 | F40: PVC | G40: IPS (DR) | H40: 3.5 | I40: 3 1/2 | J40: 125 psi DR-32.5 | K40: 32.5 | L40: =VLOOKUP(K40,Tables!$C$17:$D$34,2,FALSE) -> 125 | M40: 4 | N40: OD | O40: 0.1 | P40: 0.123 | Q40: 0.02 | R40: =VLOOKUP(F40,Tables!$G$5:$H$14,2,FALSE)*(M40-(P40+Q40*Tables!$C$6))*(P40+Q40*Tables!$C$6)*1.36136 -> 0.9802273921 | S40: Controlled OD (DR-32.5) Iron Pipe Size | T40: ASTM D2241
E41: =ROW() -> 41 | F41: PVC | G41: IPS (DR) | H41: 3.5 | I41: 3 1/2 | J41: 160 psi DR-26 | K41: 26 | L41: =VLOOKUP(K41,Tables!$C$17:$D$34,2,FALSE) -> 160 | M41: 4 | N41: OD | O41: 0.1 | P41: 0.154 | Q41: 0.02 | R41: =VLOOKUP(F41,Tables!$G$5:$H$14,2,FALSE)*(M41-(P41+Q41*Tables!$C$6))*(P41+Q41*Tables!$C$6)*1.36136 -> 1.19901183 | S41: Controlled OD (DR-26) Iron Pipe Size | T41: ASTM D2241
E42: =ROW() -> 42 | F42: PVC | G42: IPS (DR) | H42: 3.5 | I42: 3 1/2 | J42: 200 psi DR-21 | K42: 21 | L42: =VLOOKUP(K42,Tables!$C$17:$D$34,2,FALSE) -> 200 | M42: 4 | N42: OD | O42: 0.1 | P42: 0.19 | Q42: 0.023 | R42: =VLOOKUP(F42,Tables!$G$5:$H$14,2,FALSE)*(M42-(P42+Q42*Tables!$C$6))*(P42+Q42*Tables!$C$6)*1.36136 -> 1.458774633 | S42: Controlled OD (DR-21) Iron Pipe Size | T42: ASTM D2241
E43: =ROW() -> 43 | F43: PVC | G43: IPS (DR) | H43: 3.5 | I43: 3 1/2 | J43: 250 psi DR-17 | K43: 17 | L43: =VLOOKUP(K43,Tables!$C$17:$D$34,2,FALSE) -> 250 | M43: 4 | N43: OD | O43: 0.03 | P43: 0.235 | Q43: 0.028 | R43: =VLOOKUP(F43,Tables!$G$5:$H$14,2,FALSE)*(M43-(P43+Q43*Tables!$C$6))*(P43+Q43*Tables!$C$6)*1.36136 -> 1.78011243 | S43: Controlled OD (DR-17) Iron Pipe Size | T43: ASTM D2241
E44: =ROW() -> 44 | F44: PVC | G44: IPS (DR) | H44: 3.5 | I44: 3 1/2 | J44: 315 psi DR-13.5 | K44: 13.5 | L44: =VLOOKUP(K44,Tables!$C$17:$D$34,2,FALSE) -> 315 | M44: 4 | N44: OD | O44: 0.03 | P44: 0.296 | Q44: 0.036 | R44: =VLOOKUP(F44,Tables!$G$5:$H$14,2,FALSE)*(M44-(P44+Q44*Tables!$C$6))*(P44+Q44*Tables!$C$6)*1.36136 -> 2.205900913 | S44: Controlled OD (DR-13.5) Iron Pipe Size | T44: ASTM D2241
E45: =ROW() -> 45 | F45: PVC | G45: IPS (DR) | H45: 4 | I45: 4 | J45: =" "&L45&" psi DR-"&K45 -> 63 psi DR-64 | K45: 64 | L45: =VLOOKUP(K45,Tables!$C$17:$D$34,2,FALSE) -> 63 | M45: 4.5 | N45: OD | O45: 0.1 | P45: 0.07 | Q45: 0.02 | R45: =VLOOKUP(F45,Tables!$G$5:$H$14,2,FALSE)*(M45-(P45+Q45*Tables!$C$6))*(P45+Q45*Tables!$C$6)*1.36136 -> 0.6739276544 | S45: Controlled OD (DR-64) Iron Pipe Size | T45: ASTM D2241
E46: =ROW() -> 46 | F46: PVC | G46: IPS (DR) | H46: 4 | I46: 4 | J46: 100 psi DR-41 | K46: 41 | L46: =VLOOKUP(K46,Tables!$C$17:$D$34,2,FALSE) -> 100 | M46: 4.5 | N46: OD | O46: 0.1 | P46: 0.11 | Q46: 0.02 | R46: =VLOOKUP(F46,Tables!$G$5:$H$14,2,FALSE)*(M46-(P46+Q46*Tables!$C$6))*(P46+Q46*Tables!$C$6)*1.36136 -> 1.001743142 | S46: Controlled OD (DR-41) Iron Pipe Size | T46: ASTM D2241
E47: =ROW() -> 47 | F47: PVC | G47: IPS (DR) | H47: 4 | I47: 4 | J47: 125 psi DR-32.5 | K47: 32.5 | L47: =VLOOKUP(K47,Tables!$C$17:$D$34,2,FALSE) -> 125 | M47: 4.5 | N47: OD | O47: 0.1 | P47: 0.138 | Q47: 0.02 | R47: =VLOOKUP(F47,Tables!$G$5:$H$14,2,FALSE)*(M47-(P47+Q47*Tables!$C$6))*(P47+Q47*Tables!$C$6)*1.36136 -> 1.227585143 | S47: Controlled OD (DR-32.5) Iron Pipe Size | T47: ASTM D2241
E48: =ROW() -> 48 | F48: PVC | G48: IPS (DR) | H48: 4 | I48: 4 | J48: 160 psi DR-26 | K48: 26 | L48: =VLOOKUP(K48,Tables!$C$17:$D$34,2,FALSE) -> 160 | M48: 4.5 | N48: OD | O48: 0.1 | P48: 0.173 | Q48: 0.02 | R48: =VLOOKUP(F48,Tables!$G$5:$H$14,2,FALSE)*(M48-(P48+Q48*Tables!$C$6))*(P48+Q48*Tables!$C$6)*1.36136 -> 1.505685125 | S48: Controlled OD (DR-26) Iron Pipe Size | T48: ASTM D2241
E49: =ROW() -> 49 | F49: PVC | G49: IPS (DR) | H49: 4 | I49: 4 | J49: 200 psi DR-21 | K49: 21 | L49: =VLOOKUP(K49,Tables!$C$17:$D$34,2,FALSE) -> 200 | M49: 4.5 | N49: OD | O49: 0.1 | P49: 0.214 | Q49: 0.026 | R49: =VLOOKUP(F49,Tables!$G$5:$H$14,2,FALSE)*(M49-(P49+Q49*Tables!$C$6))*(P49+Q49*Tables!$C$6)*1.36136 -> 1.848671609 | S49: Controlled OD (DR-21) Iron Pipe Size | T49: ASTM D2241
E50: =ROW() -> 50 | F50: PVC | G50: IPS (DR) | H50: 4 | I50: 4 | J50: 250 psi DR-17 | K50: 17 | L50: =VLOOKUP(K50,Tables!$C$17:$D$34,2,FALSE) -> 250 | M50: 4.5 | N50: OD | O50: 0.03 | P50: 0.265 | Q50: 0.032 | R50: =VLOOKUP(F50,Tables!$G$5:$H$14,2,FALSE)*(M50-(P50+Q50*Tables!$C$6))*(P50+Q50*Tables!$C$6)*1.36136 -> 2.259523522 | S50: Controlled OD (DR-17) Iron Pipe Size | T50: ASTM D2241
E51: =ROW() -> 51 | F51: PVC | G51: IPS (DR) | H51: 4 | I51: 4 | J51: 315 psi DR-13.5 | K51: 13.5 | L51: =VLOOKUP(K51,Tables!$C$17:$D$34,2,FALSE) -> 315 | M51: 4.5 | N51: OD | O51: 0.03 | P51: 0.333 | Q51: 0.04 | R51: =VLOOKUP(F51,Tables!$G$5:$H$14,2,FALSE)*(M51-(P51+Q51*Tables!$C$6))*(P51+Q51*Tables!$C$6)*1.36136 -> 2.790035712 | S51: Controlled OD (DR-13.5) Iron Pipe Size | T51: ASTM D2241
E52: =ROW() -> 52 | F52: PVC | G52: IPS (DR) | H52: 5 | I52: 5 | J52: =" "&L52&" psi DR-"&K52 -> 63 psi DR-64 | K52: 64 | L52: =VLOOKUP(K52,Tables!$C$17:$D$34,2,FALSE) -> 63 | M52: 5.563 | N52: OD | O52: 0.1 | P52: 0.087 | Q52: 0.02 | R52: =VLOOKUP(F52,Tables!$G$5:$H$14,2,FALSE)*(M52-(P52+Q52*Tables!$C$6))*(P52+Q52*Tables!$C$6)*1.36136 -> 1.010514113 | S52: Controlled OD (DR-64) Iron Pipe Size | T52: ASTM D2241
E53: =ROW() -> 53 | F53: PVC | G53: IPS (DR) | H53: 5 | I53: 5 | J53: 100 psi DR-41 | K53: 41 | L53: =VLOOKUP(K53,Tables!$C$17:$D$34,2,FALSE) -> 100 | M53: 5.563 | N53: OD | O53: 0.1 | P53: 0.136 | Q53: 0.02 | R53: =VLOOKUP(F53,Tables!$G$5:$H$14,2,FALSE)*(M53-(P53+Q53*Tables!$C$6))*(P53+Q53*Tables!$C$6)*1.36136 -> 1.507345167 | S53: Controlled OD (DR-41) Iron Pipe Size | T53: ASTM D2241
E54: =ROW() -> 54 | F54: PVC | G54: IPS (DR) | H54: 5 | I54: 5 | J54: 125 psi DR-32.5 | K54: 32.5 | L54: =VLOOKUP(K54,Tables!$C$17:$D$34,2,FALSE) -> 125 | M54: 5.563 | N54: OD | O54: 0.1 | P54: 0.171 | Q54: 0.021 | R54: =VLOOKUP(F54,Tables!$G$5:$H$14,2,FALSE)*(M54-(P54+Q54*Tables!$C$6))*(P54+Q54*Tables!$C$6)*1.36136 -> 1.861576961 | S54: Controlled OD (DR-32.5) Iron Pipe Size | T54: ASTM D2241
E55: =ROW() -> 55 | F55: PVC | G55: IPS (DR) | H55: 5 | I55: 5 | J55: 160 psi DR-26 | K55: 26 | L55: =VLOOKUP(K55,Tables!$C$17:$D$34,2,FALSE) -> 160 | M55: 5.563 | N55: OD | O55: 0.1 | P55: 0.214 | Q55: 0.027 | R55: =VLOOKUP(F55,Tables!$G$5:$H$14,2,FALSE)*(M55-(P55+Q55*Tables!$C$6))*(P55+Q55*Tables!$C$6)*1.36136 -> 2.313436305 | S55: Controlled OD (DR-26) Iron Pipe Size | T55: ASTM D2241
E56: =ROW() -> 56 | F56: PVC | G56: IPS (DR) | H56: 5 | I56: 5 | J56: 200 psi DR-21 | K56: 21 | L56: =VLOOKUP(K56,Tables!$C$17:$D$34,2,FALSE) -> 200 | M56: 5.563 | N56: OD | O56: 0.1 | P56: 0.265 | Q56: 0.032 | R56: =VLOOKUP(F56,Tables!$G$5:$H$14,2,FALSE)*(M56-(P56+Q56*Tables!$C$6))*(P56+Q56*Tables!$C$6)*1.36136 -> 2.828822765 | S56: Controlled OD (DR-21) Iron Pipe Size | T56: ASTM D2241
E57: =ROW() -> 57 | F57: PVC | G57: IPS (DR) | H57: 5 | I57: 5 | J57: 250 psi DR-17 | K57: 17 | L57: =VLOOKUP(K57,Tables!$C$17:$D$34,2,FALSE) -> 250 | M57: 5.563 | N57: OD | O57: 0.06 | P57: 0.327 | Q57: 0.039 | R57: =VLOOKUP(F57,Tables!$G$5:$H$14,2,FALSE)*(M57-(P57+Q57*Tables!$C$6))*(P57+Q57*Tables!$C$6)*1.36136 -> 3.444954357 | S57: Controlled OD (DR-17) Iron Pipe Size | T57: ASTM D2241
E58: =ROW() -> 58 | F58: PVC | G58: IPS (DR) | H58: 5 | I58: 5 | J58: 315 psi DR-13.5 | K58: 13.5 | L58: =VLOOKUP(K58,Tables!$C$17:$D$34,2,FALSE) -> 315 | M58: 5.563 | N58: OD | O58: 0.06 | P58: 0.412 | Q58: 0.049 | R58: =VLOOKUP(F58,Tables!$G$5:$H$14,2,FALSE)*(M58-(P58+Q58*Tables!$C$6))*(P58+Q58*Tables!$C$6)*1.36136 -> 4.264874258 | S58: Controlled OD (DR-13.5) Iron Pipe Size | T58: ASTM D2241
E59: =ROW() -> 59 | F59: PVC | G59: IPS (DR) | H59: 6 | I59: 6 | J59: =" "&L59&" psi DR-"&K59 -> 63 psi DR-64 | K59: 64 | L59: =VLOOKUP(K59,Tables!$C$17:$D$34,2,FALSE) -> 63 | M59: 6.625 | N59: OD | O59: 0.1 | P59: 0.104 | Q59: 0.02 | R59: =VLOOKUP(F59,Tables!$G$5:$H$14,2,FALSE)*(M59-(P59+Q59*Tables!$C$6))*(P59+Q59*Tables!$C$6)*1.36136 -> 1.414664868 | S59: Controlled OD (DR-64) Iron Pipe Size | T59: ASTM D2241
E60: =ROW() -> 60 | F60: PVC | G60: IPS (DR) | H60: 6 | I60: 6 | J60: 100 psi DR-41 | K60: 41 | L60: =VLOOKUP(K60,Tables!$C$17:$D$34,2,FALSE) -> 100 | M60: 6.625 | N60: OD | O60: 0.1 | P60: 0.162 | Q60: 0.02 | R60: =VLOOKUP(F60,Tables!$G$5:$H$14,2,FALSE)*(M60-(P60+Q60*Tables!$C$6))*(P60+Q60*Tables!$C$6)*1.36136 -> 2.115393344 | S60: Controlled OD (DR-41) Iron Pipe Size | T60: ASTM D2241
E61: =ROW() -> 61 | F61: PVC | G61: IPS (DR) | H61: 6 | I61: 6 | J61: 125 psi DR-32.5 | K61: 32.5 | L61: =VLOOKUP(K61,Tables!$C$17:$D$34,2,FALSE) -> 125 | M61: 6.625 | N61: OD | O61: 0.1 | P61: 0.204 | Q61: 0.024 | R61: =VLOOKUP(F61,Tables!$G$5:$H$14,2,FALSE)*(M61-(P61+Q61*Tables!$C$6))*(P61+Q61*Tables!$C$6)*1.36136 -> 2.638426767 | S61: Controlled OD (DR-32.5) Iron Pipe Size | T61: ASTM D2241
E62: =ROW() -> 62 | F62: PVC | G62: IPS (DR) | H62: 6 | I62: 6 | J62: 160 psi DR-26 | K62: 26 | L62: =VLOOKUP(K62,Tables!$C$17:$D$34,2,FALSE) -> 160 | M62: 6.625 | N62: OD | O62: 0.1 | P62: 0.255 | Q62: 0.031 | R62: =VLOOKUP(F62,Tables!$G$5:$H$14,2,FALSE)*(M62-(P62+Q62*Tables!$C$6))*(P62+Q62*Tables!$C$6)*1.36136 -> 3.276043615 | S62: Controlled OD (DR-26) Iron Pipe Size | T62: ASTM D2241
E63: =ROW() -> 63 | F63: PVC | G63: IPS (DR) | H63: 6 | I63: 6 | J63: 200 psi DR-21 | K63: 21 | L63: =VLOOKUP(K63,Tables!$C$17:$D$34,2,FALSE) -> 200 | M63: 6.625 | N63: OD | O63: 0.1 | P63: 0.316 | Q63: 0.038 | R63: =VLOOKUP(F63,Tables!$G$5:$H$14,2,FALSE)*(M63-(P63+Q63*Tables!$C$6))*(P63+Q63*Tables!$C$6)*1.36136 -> 4.016025614 | S63: Controlled OD (DR-21) Iron Pipe Size | T63: ASTM D2241
E64: =ROW() -> 64 | F64: PVC | G64: IPS (DR) | H64: 6 | I64: 6 | J64: 250 psi DR-17 | K64: 17 | L64: =VLOOKUP(K64,Tables!$C$17:$D$34,2,FALSE) -> 250 | M64: 6.625 | N64: OD | O64: 0.07 | P64: 0.39 | Q64: 0.047 | R64: =VLOOKUP(F64,Tables!$G$5:$H$14,2,FALSE)*(M64-(P64+Q64*Tables!$C$6))*(P64+Q64*Tables!$C$6)*1.36136 -> 4.895229135 | S64: Controlled OD (DR-17) Iron Pipe Size | T64: ASTM D2241
E65: =ROW() -> 65 | F65: PVC | G65: IPS (DR) | H65: 6 | I65: 6 | J65: 315 psi DR-13.5 | K65: 13.5 | L65: =VLOOKUP(K65,Tables!$C$17:$D$34,2,FALSE) -> 315 | M65: 6.625 | N65: OD | O65: 0.07 | P65: 0.491 | Q65: 0.059 | R65: =VLOOKUP(F65,Tables!$G$5:$H$14,2,FALSE)*(M65-(P65+Q65*Tables!$C$6))*(P65+Q65*Tables!$C$6)*1.36136 -> 6.055804599 | S65: Controlled OD (DR-13.5) Iron Pipe Size | T65: ASTM D2241
E66: =ROW() -> 66 | F66: PVC | G66: IPS (DR) | H66: 8 | I66: 8 | J66: =" "&L66&" psi DR-"&K66 -> 63 psi DR-64 | K66: 64 | L66: =VLOOKUP(K66,Tables!$C$17:$D$34,2,FALSE) -> 63 | M66: 8.625 | N66: OD | O66: 0.15 | P66: 0.135 | Q66: 0.02 | R66: =VLOOKUP(F66,Tables!$G$5:$H$14,2,FALSE)*(M66-(P66+Q66*Tables!$C$6))*(P66+Q66*Tables!$C$6)*1.36136 -> 2.343499558 | S66: Controlled OD (DR-64) Iron Pipe Size | T66: ASTM D2241
E67: =ROW() -> 67 | F67: PVC | G67: IPS (DR) | H67: 8 | I67: 8 | J67: =L67&" psi DR-"&K67 -> 100 psi DR-41 | K67: 41 | L67: =VLOOKUP(K67,Tables!$C$17:$D$34,2,FALSE) -> 100 | M67: 8.625 | N67: OD | O67: 0.15 | P67: 0.21 | Q67: 0.025 | R67: =VLOOKUP(F67,Tables!$G$5:$H$14,2,FALSE)*(M67-(P67+Q67*Tables!$C$6))*(P67+Q67*Tables!$C$6)*1.36136 -> 3.563194735 | S67: ="Controlled OD (DR-"&K67&") Iron Pipe Size" -> Controlled OD (DR-41) Iron Pipe Size | T67: ASTM D2241
E68: =ROW() -> 68 | F68: PVC | G68: IPS (DR) | H68: 8 | I68: 8 | J68: 125 psi DR-32.5 | K68: 32.5 | L68: =VLOOKUP(K68,Tables!$C$17:$D$34,2,FALSE) -> 125 | M68: 8.625 | N68: OD | O68: 0.15 | P68: 0.265 | Q68: 0.032 | R68: =VLOOKUP(F68,Tables!$G$5:$H$14,2,FALSE)*(M68-(P68+Q68*Tables!$C$6))*(P68+Q68*Tables!$C$6)*1.36136 -> 4.468704496 | S68: Controlled OD (DR-32.5) Iron Pipe Size | T68: ASTM D2241
E69: =ROW() -> 69 | F69: PVC | G69: IPS (DR) | H69: 8 | I69: 8 | J69: 160 psi DR-26 | K69: 26 | L69: =VLOOKUP(K69,Tables!$C$17:$D$34,2,FALSE) -> 160 | M69: 8.625 | N69: OD | O69: 0.15 | P69: 0.332 | Q69: 0.04 | R69: =VLOOKUP(F69,Tables!$G$5:$H$14,2,FALSE)*(M69-(P69+Q69*Tables!$C$6))*(P69+Q69*Tables!$C$6)*1.36136 -> 5.550175415 | S69: Controlled OD (DR-26) Iron Pipe Size | T69: ASTM D2241
E70: =ROW() -> 70 | F70: PVC | G70: IPS (DR) | H70: 8 | I70: 8 | J70: 200 psi DR-21 | K70: 21 | L70: =VLOOKUP(K70,Tables!$C$17:$D$34,2,FALSE) -> 200 | M70: 8.625 | N70: OD | O70: 0.15 | P70: 0.41 | Q70: 0.049 | R70: =VLOOKUP(F70,Tables!$G$5:$H$14,2,FALSE)*(M70-(P70+Q70*Tables!$C$6))*(P70+Q70*Tables!$C$6)*1.36136 -> 6.782678266 | S70: Controlled OD (DR-21) Iron Pipe Size | T70: ASTM D2241
E71: =ROW() -> 71 | F71: PVC | G71: IPS (DR) | H71: 8 | I71: 8 | J71: 250 psi DR-17 | K71: 17 | L71: =VLOOKUP(K71,Tables!$C$17:$D$34,2,FALSE) -> 250 | M71: 8.625 | N71: OD | O71: 0.09 | P71: 0.508 | Q71: 0.061 | R71: =VLOOKUP(F71,Tables!$G$5:$H$14,2,FALSE)*(M71-(P71+Q71*Tables!$C$6))*(P71+Q71*Tables!$C$6)*1.36136 -> 8.299411917 | S71: Controlled OD (DR-17) Iron Pipe Size | T71: ASTM D2241
E72: =ROW() -> 72 | F72: PVC | G72: IPS (DR) | H72: 10 | I72: 10 | J72: =" "&L72&" psi DR-"&K72 -> 63 psi DR-64 | K72: 64 | L72: =VLOOKUP(K72,Tables!$C$17:$D$34,2,FALSE) -> 63 | M72: 10.75 | N72: OD | O72: 0.15 | P72: 0.168 | Q72: 0.02 | R72: =VLOOKUP(F72,Tables!$G$5:$H$14,2,FALSE)*(M72-(P72+Q72*Tables!$C$6))*(P72+Q72*Tables!$C$6)*1.36136 -> 3.586560642 | S72: Controlled OD (DR-64) Iron Pipe Size | T72: ASTM D2241
E73: =ROW() -> 73 | F73: PVC | G73: IPS (DR) | H73: 10 | I73: 10 | J73: 100 psi DR-41 | K73: 41 | L73: =VLOOKUP(K73,Tables!$C$17:$D$34,2,FALSE) -> 100 | M73: 10.75 | N73: OD | O73: 0.15 | P73: 0.262 | Q73: 0.031 | R73: =VLOOKUP(F73,Tables!$G$5:$H$14,2,FALSE)*(M73-(P73+Q73*Tables!$C$6))*(P73+Q73*Tables!$C$6)*1.36136 -> 5.53878335 | S73: Controlled OD (DR-41) Iron Pipe Size | T73: ASTM D2241
E74: =ROW() -> 74 | F74: PVC | G74: IPS (DR) | H74: 10 | I74: 10 | J74: 125 psi DR-32.5 | K74: 32.5 | L74: =VLOOKUP(K74,Tables!$C$17:$D$34,2,FALSE) -> 125 | M74: 10.75 | N74: OD | O74: 0.15 | P74: 0.331 | Q74: 0.04 | R74: =VLOOKUP(F74,Tables!$G$5:$H$14,2,FALSE)*(M74-(P74+Q74*Tables!$C$6))*(P74+Q74*Tables!$C$6)*1.36136 -> 6.956642989 | S74: Controlled OD (DR-32.5) Iron Pipe Size | T74: ASTM D2241
E75: =ROW() -> 75 | F75: PVC | G75: IPS (DR) | H75: 10 | I75: 10 | J75: 160 psi DR-26 | K75: 26 | L75: =VLOOKUP(K75,Tables!$C$17:$D$34,2,FALSE) -> 160 | M75: 10.75 | N75: OD | O75: 0.15 | P75: 0.413 | Q75: 0.05 | R75: =VLOOKUP(F75,Tables!$G$5:$H$14,2,FALSE)*(M75-(P75+Q75*Tables!$C$6))*(P75+Q75*Tables!$C$6)*1.36136 -> 8.608312737 | S75: Controlled OD (DR-26) Iron Pipe Size | T75: ASTM D2241
E76: =ROW() -> 76 | F76: PVC | G76: IPS (DR) | H76: 10 | I76: 10 | J76: 200 psi DR-21 | K76: 21 | L76: =VLOOKUP(K76,Tables!$C$17:$D$34,2,FALSE) -> 200 | M76: 10.75 | N76: OD | O76: 0.15 | P76: 0.511 | Q76: 0.061 | R76: =VLOOKUP(F76,Tables!$G$5:$H$14,2,FALSE)*(M76-(P76+Q76*Tables!$C$6))*(P76+Q76*Tables!$C$6)*1.36136 -> 10.53565196 | S76: Controlled OD (DR-21) Iron Pipe Size | T76: ASTM D2241
E77: =ROW() -> 77 | F77: PVC | G77: IPS (DR) | H77: 10 | I77: 10 | J77: 250 psi DR-17 | K77: 17 | L77: =VLOOKUP(K77,Tables!$C$17:$D$34,2,FALSE) -> 250 | M77: 10.75 | N77: OD | O77: 0.1 | P77: 0.632 | Q77: 0.076 | R77: =VLOOKUP(F77,Tables!$G$5:$H$14,2,FALSE)*(M77-(P77+Q77*Tables!$C$6))*(P77+Q77*Tables!$C$6)*1.36136 -> 12.87171325 | S77: Controlled OD (DR-17) Iron Pipe Size | T77: ASTM D2241
E78: =ROW() -> 78 | F78: PVC | G78: IPS (DR) | H78: 12 | I78: 12 | J78: =" "&L78&" psi DR-"&K78 -> 63 psi DR-64 | K78: 64 | L78: =VLOOKUP(K78,Tables!$C$17:$D$34,2,FALSE) -> 63 | M78: 12.75 | N78: OD | O78: 0.15 | P78: 0.199 | Q78: 0.024 | R78: =VLOOKUP(F78,Tables!$G$5:$H$14,2,FALSE)*(M78-(P78+Q78*Tables!$C$6))*(P78+Q78*Tables!$C$6)*1.36136 -> 5.042505484 | S78: Controlled OD (DR-64) Iron Pipe Size | T78: ASTM D2241
E79: =ROW() -> 79 | F79: PVC | G79: IPS (DR) | H79: 12 | I79: 12 | J79: 100 psi DR-41 | K79: 41 | L79: =VLOOKUP(K79,Tables!$C$17:$D$34,2,FALSE) -> 100 | M79: 12.75 | N79: OD | O79: 0.15 | P79: 0.311 | Q79: 0.037 | R79: =VLOOKUP(F79,Tables!$G$5:$H$14,2,FALSE)*(M79-(P79+Q79*Tables!$C$6))*(P79+Q79*Tables!$C$6)*1.36136 -> 7.800016468 | S79: Controlled OD (DR-41) Iron Pipe Size | T79: ASTM D2241
E80: =ROW() -> 80 | F80: PVC | G80: IPS (DR) | H80: 12 | I80: 12 | J80: 125 psi DR-32.5 | K80: 32.5 | L80: =VLOOKUP(K80,Tables!$C$17:$D$34,2,FALSE) -> 125 | M80: 12.75 | N80: OD | O80: 0.15 | P80: 0.392 | Q80: 0.047 | R80: =VLOOKUP(F80,Tables!$G$5:$H$14,2,FALSE)*(M80-(P80+Q80*Tables!$C$6))*(P80+Q80*Tables!$C$6)*1.36136 -> 9.767728935 | S80: Controlled OD (DR-32.5) Iron Pipe Size | T80: ASTM D2241
E81: =ROW() -> 81 | F81: PVC | G81: IPS (DR) | H81: 12 | I81: 12 | J81: 160 psi DR-26 | K81: 26 | L81: =VLOOKUP(K81,Tables!$C$17:$D$34,2,FALSE) -> 160 | M81: 12.75 | N81: OD | O81: 0.15 | P81: 0.49 | Q81: 0.059 | R81: =VLOOKUP(F81,Tables!$G$5:$H$14,2,FALSE)*(M81-(P81+Q81*Tables!$C$6))*(P81+Q81*Tables!$C$6)*1.36136 -> 12.10962753 | S81: Controlled OD (DR-26) Iron Pipe Size | T81: ASTM D2241
E82: =ROW() -> 82 | F82: PVC | G82: IPS (DR) | H82: 12 | I82: 12 | J82: 200 psi DR-21 | K82: 21 | L82: =VLOOKUP(K82,Tables!$C$17:$D$34,2,FALSE) -> 200 | M82: 12.75 | N82: OD | O82: 0.15 | P82: 0.606 | Q82: 0.073 | R82: =VLOOKUP(F82,Tables!$G$5:$H$14,2,FALSE)*(M82-(P82+Q82*Tables!$C$6))*(P82+Q82*Tables!$C$6)*1.36136 -> 14.82615825 | S82: Controlled OD (DR-21) Iron Pipe Size | T82: ASTM D2241
E83: =ROW() -> 83 | F83: PVC | G83: IPS (DR) | H83: 12 | I83: 12 | J83: 250 psi DR-17 | K83: 17 | L83: =VLOOKUP(K83,Tables!$C$17:$D$34,2,FALSE) -> 250 | M83: 12.75 | N83: OD | O83: 0.1 | P83: 0.75 | Q83: 0.09 | R83: =VLOOKUP(F83,Tables!$G$5:$H$14,2,FALSE)*(M83-(P83+Q83*Tables!$C$6))*(P83+Q83*Tables!$C$6)*1.36136 -> 18.11414044 | S83: Controlled OD (DR-17) Iron Pipe Size | T83: ASTM D2241
E84: =ROW() -> 84 | F84: PVC | G84: IPS (DR) | H84: 14 | I84: 14 | J84: 100 psi DR-41 | K84: 41 | L84: =VLOOKUP(K84,Tables!$C$17:$D$34,2,FALSE) -> 100 | M84: 14 | N84: OD | O84: 0.2 | P84: 0.341 | Q84: 0.048 | R84: =VLOOKUP(F84,Tables!$G$5:$H$14,2,FALSE)*(M84-(P84+Q84*Tables!$C$6))*(P84+Q84*Tables!$C$6)*1.36136 -> 9.48525538 | S84: Controlled OD (DR-41) Iron Pipe Size | T84: ASTM D2241
E85: =ROW() -> 85 | F85: PVC | G85: IPS (DR) | H85: 14 | I85: 14 | J85: 125 psi DR-32.5 | K85: 32.5 | L85: =VLOOKUP(K85,Tables!$C$17:$D$34,2,FALSE) -> 125 | M85: 14 | N85: OD | O85: 0.2 | P85: 0.43 | Q85: 0.052 | R85: =VLOOKUP(F85,Tables!$G$5:$H$14,2,FALSE)*(M85-(P85+Q85*Tables!$C$6))*(P85+Q85*Tables!$C$6)*1.36136 -> 11.77098508 | S85: Controlled OD (DR-32.5) Iron Pipe Size | T85: ASTM D2241
E86: =ROW() -> 86 | F86: PVC | G86: IPS (DR) | H86: 14 | I86: 14 | J86: 160 psi DR-26 | K86: 26 | L86: =VLOOKUP(K86,Tables!$C$17:$D$34,2,FALSE) -> 160 | M86: 14 | N86: OD | O86: 0.2 | P86: 0.538 | Q86: 0.064 | R86: =VLOOKUP(F86,Tables!$G$5:$H$14,2,FALSE)*(M86-(P86+Q86*Tables!$C$6))*(P86+Q86*Tables!$C$6)*1.36136 -> 14.58988571 | S86: Controlled OD (DR-26) Iron Pipe Size | T86: ASTM D2241
E87: =ROW() -> 87 | F87: PVC | G87: IPS (DR) | H87: 14 | I87: 14 | J87: 200 psi DR-21 | K87: 21 | L87: =VLOOKUP(K87,Tables!$C$17:$D$34,2,FALSE) -> 200 | M87: 14 | N87: OD | O87: 0.2 | P87: 0.666 | Q87: 0.08 | R87: =VLOOKUP(F87,Tables!$G$5:$H$14,2,FALSE)*(M87-(P87+Q87*Tables!$C$6))*(P87+Q87*Tables!$C$6)*1.36136 -> 17.88798397 | S87: Controlled OD (DR-21) Iron Pipe Size | T87: ASTM D2241
E88: =ROW() -> 88 | F88: PVC | G88: IPS (DR) | H88: 14 | I88: 14 | J88: 250 psi DR-17 | K88: 17 | L88: =VLOOKUP(K88,Tables!$C$17:$D$34,2,FALSE) -> 250 | M88: 14 | N88: OD | O88: 0.15 | P88: 0.823 | Q88: 0.099 | R88: =VLOOKUP(F88,Tables!$G$5:$H$14,2,FALSE)*(M88-(P88+Q88*Tables!$C$6))*(P88+Q88*Tables!$C$6)*1.36136 -> 21.82973603 | S88: Controlled OD (DR-17) Iron Pipe Size | T88: ASTM D2241
E89: =ROW() -> 89 | F89: PVC | G89: IPS (DR) | H89: 16 | I89: 16 | J89: 100 psi DR-41 | K89: 41 | L89: =VLOOKUP(K89,Tables!$C$17:$D$34,2,FALSE) -> 100 | M89: 16 | N89: OD | O89: 0.32 | P89: 0.39 | Q89: 0.055 | R89: =VLOOKUP(F89,Tables!$G$5:$H$14,2,FALSE)*(M89-(P89+Q89*Tables!$C$6))*(P89+Q89*Tables!$C$6)*1.36136 -> 12.39922774 | S89: Controlled OD (DR-41) Iron Pipe Size | T89: ASTM D2241
E90: =ROW() -> 90 | F90: PVC | G90: IPS (DR) | H90: 16 | I90: 16 | J90: 125 psi DR-32.5 | K90: 32.5 | L90: =VLOOKUP(K90,Tables!$C$17:$D$34,2,FALSE) -> 125 | M90: 16 | N90: OD | O90: 0.32 | P90: 0.492 | Q90: 0.059 | R90: =VLOOKUP(F90,Tables!$G$5:$H$14,2,FALSE)*(M90-(P90+Q90*Tables!$C$6))*(P90+Q90*Tables!$C$6)*1.36136 -> 15.38452904 | S90: Controlled OD (DR-32.5) Iron Pipe Size | T90: ASTM D2241
E91: =ROW() -> 91 | F91: PVC | G91: IPS (DR) | H91: 16 | I91: 16 | J91: 160 psi DR-26 | K91: 26 | L91: =VLOOKUP(K91,Tables!$C$17:$D$34,2,FALSE) -> 160 | M91: 16 | N91: OD | O91: 0.32 | P91: 0.615 | Q91: 0.074 | R91: =VLOOKUP(F91,Tables!$G$5:$H$14,2,FALSE)*(M91-(P91+Q91*Tables!$C$6))*(P91+Q91*Tables!$C$6)*1.36136 -> 19.07218311 | S91: Controlled OD (DR-26) Iron Pipe Size | T91: ASTM D2241
E92: =ROW() -> 92 | F92: PVC | G92: IPS (DR) | H92: 16 | I92: 16 | J92: 200 psi DR-21 | K92: 21 | L92: =VLOOKUP(K92,Tables!$C$17:$D$34,2,FALSE) -> 200 | M92: 16 | N92: OD | O92: 0.32 | P92: 0.762 | Q92: 0.091 | R92: =VLOOKUP(F92,Tables!$G$5:$H$14,2,FALSE)*(M92-(P92+Q92*Tables!$C$6))*(P92+Q92*Tables!$C$6)*1.36136 -> 23.38152306 | S92: Controlled OD (DR-21) Iron Pipe Size | T92: ASTM D2241
E93: =ROW() -> 93 | F93: PVC | G93: IPS (DR) | H93: 16 | I93: 16 | J93: 250 psi DR-17 | K93: 17 | L93: =VLOOKUP(K93,Tables!$C$17:$D$34,2,FALSE) -> 250 | M93: 16 | N93: OD | O93: 0.16 | P93: 0.941 | Q93: 0.113 | R93: =VLOOKUP(F93,Tables!$G$5:$H$14,2,FALSE)*(M93-(P93+Q93*Tables!$C$6))*(P93+Q93*Tables!$C$6)*1.36136 -> 28.52184145 | S93: Controlled OD (DR-17) Iron Pipe Size | T93: ASTM D2241
E94: =ROW() -> 94 | F94: PVC | G94: IPS (DR) | H94: 18 | I94: 18 | J94: 100 psi DR-41 | K94: 41 | L94: =VLOOKUP(K94,Tables!$C$17:$D$34,2,FALSE) -> 100 | M94: 18 | N94: OD | O94: 0.36 | P94: 0.439 | Q94: 0.061 | R94: =VLOOKUP(F94,Tables!$G$5:$H$14,2,FALSE)*(M94-(P94+Q94*Tables!$C$6))*(P94+Q94*Tables!$C$6)*1.36136 -> 15.68667581 | S94: Controlled OD (DR-41) Iron Pipe Size | T94: ASTM D2241
E95: =ROW() -> 95 | F95: PVC | G95: IPS (DR) | H95: 18 | I95: 18 | J95: 125 psi DR-32.5 | K95: 32.5 | L95: =VLOOKUP(K95,Tables!$C$17:$D$34,2,FALSE) -> 125 | M95: 18 | N95: OD | O95: 0.36 | P95: 0.554 | Q95: 0.066 | R95: =VLOOKUP(F95,Tables!$G$5:$H$14,2,FALSE)*(M95-(P95+Q95*Tables!$C$6))*(P95+Q95*Tables!$C$6)*1.36136 -> 19.48106623 | S95: Controlled OD (DR-32.5) Iron Pipe Size | T95: ASTM D2241
E96: =ROW() -> 96 | F96: PVC | G96: IPS (DR) | H96: 18 | I96: 18 | J96: 160 psi DR-26 | K96: 26 | L96: =VLOOKUP(K96,Tables!$C$17:$D$34,2,FALSE) -> 160 | M96: 18 | N96: OD | O96: 0.36 | P96: 0.692 | Q96: 0.083 | R96: =VLOOKUP(F96,Tables!$G$5:$H$14,2,FALSE)*(M96-(P96+Q96*Tables!$C$6))*(P96+Q96*Tables!$C$6)*1.36136 -> 24.13823175 | S96: Controlled OD (DR-26) Iron Pipe Size | T96: ASTM D2241
E97: =ROW() -> 97 | F97: PVC | G97: IPS (DR) | H97: 18 | I97: 18 | J97: 200 psi DR-21 | K97: 21 | L97: =VLOOKUP(K97,Tables!$C$17:$D$34,2,FALSE) -> 200 | M97: 18 | N97: OD | O97: 0.36 | P97: 0.857 | Q97: 0.103 | R97: =VLOOKUP(F97,Tables!$G$5:$H$14,2,FALSE)*(M97-(P97+Q97*Tables!$C$6))*(P97+Q97*Tables!$C$6)*1.36136 -> 29.59416784 | S97: Controlled OD (DR-21) Iron Pipe Size | T97: ASTM D2241
E98: =ROW() -> 98 | F98: PVC | G98: IPS (DR) | H98: 18 | I98: 18 | J98: 250 psi DR-17 | K98: 17 | L98: =VLOOKUP(K98,Tables!$C$17:$D$34,2,FALSE) -> 250 | M98: 18 | N98: OD | O98: 0.18 | P98: 1.059 | Q98: 0.127 | R98: =VLOOKUP(F98,Tables!$G$5:$H$14,2,FALSE)*(M98-(P98+Q98*Tables!$C$6))*(P98+Q98*Tables!$C$6)*1.36136 -> 36.10733937 | S98: Controlled OD (DR-17) Iron Pipe Size | T98: ASTM D2241
E99: =ROW() -> 99 | F99: PVC | G99: IPS (DR) | H99: 20 | I99: 20 | J99: 100 psi DR-41 | K99: 41 | L99: =VLOOKUP(K99,Tables!$C$17:$D$34,2,FALSE) -> 100 | M99: 20 | N99: OD | O99: 0.4 | P99: 0.488 | Q99: 0.068 | R99: =VLOOKUP(F99,Tables!$G$5:$H$14,2,FALSE)*(M99-(P99+Q99*Tables!$C$6))*(P99+Q99*Tables!$C$6)*1.36136 -> 19.37830941 | S99: Controlled OD (DR-41) Iron Pipe Size | T99: ASTM D2241
E100: =ROW() -> 100 | F100: PVC | G100: IPS (DR) | H100: 20 | I100: 20 | J100: 125 psi DR-32.5 | K100: 32.5 | L100: =VLOOKUP(K100,Tables!$C$17:$D$34,2,FALSE) -> 125 | M100: 20 | N100: OD | O100: 0.4 | P100: 0.615 | Q100: 0.074 | R100: =VLOOKUP(F100,Tables!$G$5:$H$14,2,FALSE)*(M100-(P100+Q100*Tables!$C$6))*(P100+Q100*Tables!$C$6)*1.36136 -> 24.04278075 | S100: Controlled OD (DR-32.5) Iron Pipe Size | T100: ASTM D2241
E101: =ROW() -> 101 | F101: PVC | G101: IPS (DR) | H101: 20 | I101: 20 | J101: 160 psi DR-26 | K101: 26 | L101: =VLOOKUP(K101,Tables!$C$17:$D$34,2,FALSE) -> 160 | M101: 20 | N101: OD | O101: 0.4 | P101: 0.769 | Q101: 0.092 | R101: =VLOOKUP(F101,Tables!$G$5:$H$14,2,FALSE)*(M101-(P101+Q101*Tables!$C$6))*(P101+Q101*Tables!$C$6)*1.36136 -> 29.80028612 | S101: Controlled OD (DR-26) Iron Pipe Size | T101: ASTM D2241
E102: =ROW() -> 102 | F102: PVC | G102: IPS (DR) | H102: 20 | I102: 20 | J102: 200 psi DR-21 | K102: 21 | L102: =VLOOKUP(K102,Tables!$C$17:$D$34,2,FALSE) -> 200 | M102: 20 | N102: OD | O102: 0.4 | P102: 0.952 | Q102: 0.114 | R102: =VLOOKUP(F102,Tables!$G$5:$H$14,2,FALSE)*(M102-(P102+Q102*Tables!$C$6))*(P102+Q102*Tables!$C$6)*1.36136 -> 36.52077807 | S102: Controlled OD (DR-21) Iron Pipe Size | T102: ASTM D2241
E103: =ROW() -> 103 | F103: PVC | G103: IPS (DR) | H103: 20 | I103: 20 | J103: 250 psi DR-17 | K103: 17 | L103: =VLOOKUP(K103,Tables!$C$17:$D$34,2,FALSE) -> 250 | M103: 20 | N103: OD | O103: 0.2 | P103: 1.176 | Q103: 0.141 | R103: =VLOOKUP(F103,Tables!$G$5:$H$14,2,FALSE)*(M103-(P103+Q103*Tables!$C$6))*(P103+Q103*Tables!$C$6)*1.36136 -> 44.55286503 | S103: Controlled OD (DR-17) Iron Pipe Size | T103: ASTM D2241
E104: =ROW() -> 104 | F104: PVC | G104: IPS (DR) | H104: 24 | I104: 24 | J104: 100 psi DR-41 | K104: 41 | L104: =VLOOKUP(K104,Tables!$C$17:$D$34,2,FALSE) -> 100 | M104: 24 | N104: OD | O104: 0.48 | P104: 0.585 | Q104: 0.082 | R104: =VLOOKUP(F104,Tables!$G$5:$H$14,2,FALSE)*(M104-(P104+Q104*Tables!$C$6))*(P104+Q104*Tables!$C$6)*1.36136 -> 27.88742366 | S104: Controlled OD (DR-41) Iron Pipe Size | T104: ASTM D2241
E105: =ROW() -> 105 | F105: PVC | G105: IPS (DR) | H105: 24 | I105: 24 | J105: 125 psi DR-32.5 | K105: 32.5 | L105: =VLOOKUP(K105,Tables!$C$17:$D$34,2,FALSE) -> 125 | M105: 24 | N105: OD | O105: 0.48 | P105: 0.738 | Q105: 0.088 | R105: =VLOOKUP(F105,Tables!$G$5:$H$14,2,FALSE)*(M105-(P105+Q105*Tables!$C$6))*(P105+Q105*Tables!$C$6)*1.36136 -> 34.60450023 | S105: Controlled OD (DR-32.5) Iron Pipe Size | T105: ASTM D2241
E106: =ROW() -> 106 | F106: PVC | G106: IPS (DR) | H106: 24 | I106: 24 | J106: 160 psi DR-26 | K106: 26 | L106: =VLOOKUP(K106,Tables!$C$17:$D$34,2,FALSE) -> 160 | M106: 24 | N106: OD | O106: 0.48 | P106: 0.923 | Q106: 0.111 | R106: =VLOOKUP(F106,Tables!$G$5:$H$14,2,FALSE)*(M106-(P106+Q106*Tables!$C$6))*(P106+Q106*Tables!$C$6)*1.36136 -> 42.9334184 | S106: Controlled OD (DR-26) Iron Pipe Size | T106: ASTM D2241
E107: =ROW() -> 107 | F107: PVC | G107: IPS (DR) | H107: 24 | I107: 24 | J107: 200 psi DR-21 | K107: 21 | L107: =VLOOKUP(K107,Tables!$C$17:$D$34,2,FALSE) -> 200 | M107: 24 | N107: OD | O107: 0.48 | P107: 1.143 | Q107: 0.137 | R107: =VLOOKUP(F107,Tables!$G$5:$H$14,2,FALSE)*(M107-(P107+Q107*Tables!$C$6))*(P107+Q107*Tables!$C$6)*1.36136 -> 52.61870794 | S107: Controlled OD (DR-21) Iron Pipe Size | T107: ASTM D2241
E108: =ROW() -> 108 | F108: PVC | G108: IPS (DR) | H108: 24 | I108: 24 | J108: 250 psi DR-17 | K108: 17 | L108: =VLOOKUP(K108,Tables!$C$17:$D$34,2,FALSE) -> 250 | M108: 24 | N108: OD | O108: 0.24 | P108: 1.412 | Q108: 0.169 | R108: =VLOOKUP(F108,Tables!$G$5:$H$14,2,FALSE)*(M108-(P108+Q108*Tables!$C$6))*(P108+Q108*Tables!$C$6)*1.36136 -> 64.18415271 | S108: Controlled OD (DR-17) Iron Pipe Size | T108: ASTM D2241
E109: =ROW() -> 109 | F109: PVC | G109: IPS (DR) | H109: 30 | I109: 30 | J109: 100 psi DR-41 | K109: 41 | L109: =VLOOKUP(K109,Tables!$C$17:$D$34,2,FALSE) -> 100 | M109: 30 | N109: OD | O109: 0.6 | P109: 0.732 | Q109: 0.102 | R109: =VLOOKUP(F109,Tables!$G$5:$H$14,2,FALSE)*(M109-(P109+Q109*Tables!$C$6))*(P109+Q109*Tables!$C$6)*1.36136 -> 43.60119618 | S109: Controlled OD (DR-41) Iron Pipe Size | T109: ASTM D2241
E110: =ROW() -> 110 | F110: PVC | G110: IPS (DR) | H110: 30 | I110: 30 | J110: 125 psi DR-32.5 | K110: 32.5 | L110: =VLOOKUP(K110,Tables!$C$17:$D$34,2,FALSE) -> 125 | M110: 30 | N110: OD | O110: 0.6 | P110: 0.923 | Q110: 0.111 | R110: =VLOOKUP(F110,Tables!$G$5:$H$14,2,FALSE)*(M110-(P110+Q110*Tables!$C$6))*(P110+Q110*Tables!$C$6)*1.36136 -> 54.12298079 | S110: Controlled OD (DR-32.5) Iron Pipe Size | T110: ASTM D2241
E111: =ROW() -> 111 | F111: PVC | G111: IPS (DR) | H111: 30 | I111: 30 | J111: 160 psi DR-26 | K111: 26 | L111: =VLOOKUP(K111,Tables!$C$17:$D$34,2,FALSE) -> 160 | M111: 30 | N111: OD | O111: 0.6 | P111: 1.154 | Q111: 0.138 | R111: =VLOOKUP(F111,Tables!$G$5:$H$14,2,FALSE)*(M111-(P111+Q111*Tables!$C$6))*(P111+Q111*Tables!$C$6)*1.36136 -> 67.07690188 | S111: Controlled OD (DR-26) Iron Pipe Size | T111: ASTM D2241
E112: =ROW() -> 112 | F112: PVC | G112: IPS (DR) | H112: 30 | I112: 30 | J112: 200 psi DR-21 | K112: 21 | L112: =VLOOKUP(K112,Tables!$C$17:$D$34,2,FALSE) -> 200 | M112: 30 | N112: OD | O112: 0.6 | P112: 1.428 | Q112: 0.171 | R112: =VLOOKUP(F112,Tables!$G$5:$H$14,2,FALSE)*(M112-(P112+Q112*Tables!$C$6))*(P112+Q112*Tables!$C$6)*1.36136 -> 82.17175066 | S112: Controlled OD (DR-21) Iron Pipe Size | T112: ASTM D2241
E113: =ROW() -> 113 | F113: PVC | G113: IPS (DR) | H113: 30 | I113: 30 | J113: 250 psi DR-17 | K113: 17 | L113: =VLOOKUP(K113,Tables!$C$17:$D$34,2,FALSE) -> 250 | M113: 30 | N113: OD | O113: 0.3 | P113: 1.765 | Q113: 0.212 | R113: =VLOOKUP(F113,Tables!$G$5:$H$14,2,FALSE)*(M113-(P113+Q113*Tables!$C$6))*(P113+Q113*Tables!$C$6)*1.36136 -> 100.3065058 | S113: Controlled OD (DR-17) Iron Pipe Size | T113: ASTM D2241
E114: =ROW() -> 114 | F114: PVC | G114: IPS (DR) | H114: 36 | I114: 36 | J114: 100 psi DR-41 | K114: 41 | L114: =VLOOKUP(K114,Tables!$C$17:$D$34,2,FALSE) -> 100 | M114: 36 | N114: OD | O114: 0.72 | P114: 0.878 | Q114: 0.123 | R114: =VLOOKUP(F114,Tables!$G$5:$H$14,2,FALSE)*(M114-(P114+Q114*Tables!$C$6))*(P114+Q114*Tables!$C$6)*1.36136 -> 62.77921939 | S114: Controlled OD (DR-41) Iron Pipe Size | T114: ASTM D2241
E115: =ROW() -> 115 | F115: PVC | G115: IPS (DR) | H115: 36 | I115: 36 | J115: 125 psi DR-32.5 | K115: 32.5 | L115: =VLOOKUP(K115,Tables!$C$17:$D$34,2,FALSE) -> 125 | M115: 36 | N115: OD | O115: 0.72 | P115: 1.108 | Q115: 0.133 | R115: =VLOOKUP(F115,Tables!$G$5:$H$14,2,FALSE)*(M115-(P115+Q115*Tables!$C$6))*(P115+Q115*Tables!$C$6)*1.36136 -> 77.95633318 | S115: Controlled OD (DR-32.5) Iron Pipe Size | T115: ASTM D2241
E116: =ROW() -> 116 | F116: PVC | G116: IPS (DR) | H116: 36 | I116: 36 | J116: 160 psi DR-26 | K116: 26 | L116: =VLOOKUP(K116,Tables!$C$17:$D$34,2,FALSE) -> 160 | M116: 36 | N116: OD | O116: 0.72 | P116: 1.385 | Q116: 0.166 | R116: =VLOOKUP(F116,Tables!$G$5:$H$14,2,FALSE)*(M116-(P116+Q116*Tables!$C$6))*(P116+Q116*Tables!$C$6)*1.36136 -> 96.61594573 | S116: Controlled OD (DR-26) Iron Pipe Size | T116: ASTM D2241
E117: =ROW() -> 117 | F117: PVC | G117: IPS (DR) | H117: 36 | I117: 36 | J117: 200 psi DR-21 | K117: 21 | L117: =VLOOKUP(K117,Tables!$C$17:$D$34,2,FALSE) -> 200 | M117: 36 | N117: OD | O117: 0.72 | P117: 1.714 | Q117: 0.205 | R117: =VLOOKUP(F117,Tables!$G$5:$H$14,2,FALSE)*(M117-(P117+Q117*Tables!$C$6))*(P117+Q117*Tables!$C$6)*1.36136 -> 118.3458276 | S117: Controlled OD (DR-21) Iron Pipe Size | T117: ASTM D2241
E118: =ROW() -> 118 | F118: PVC | G118: IPS (DR) | H118: 36 | I118: 36 | J118: 250 psi DR-17 | K118: 17 | L118: =VLOOKUP(K118,Tables!$C$17:$D$34,2,FALSE) -> 250 | M118: 36 | N118: OD | O118: 0.36 | P118: 2.118 | Q118: 0.254 | R118: =VLOOKUP(F118,Tables!$G$5:$H$14,2,FALSE)*(M118-(P118+Q118*Tables!$C$6))*(P118+Q118*Tables!$C$6)*1.36136 -> 144.4293575 | S118: Controlled OD (DR-17) Iron Pipe Size | T118: ASTM D2241
D119: 1 | E119: =ROW() -> 119 | F119: PVC | G119: CIOD (DR)-C900 | H119: 4 | I119: 4 | J119: 150 psi DR-27.5 | K119: 27.5 | L119: =VLOOKUP(K119,Tables!$C$17:$D$34,2,FALSE) -> 150 | M119: 4.8 | N119: OD | O119: 0.1 | P119: 0.176 | Q119: 0.021 | R119: =VLOOKUP(F119,Tables!$G$5:$H$14,2,FALSE)*(M119-(P119+Q119*Tables!$C$6))*(P119+Q119*Tables!$C$6)*1.36136 -> 1.639873631 | S119: ="Controlled OD (DR-"&K119&") Cast Iron OD" -> Controlled OD (DR-27.5) Cast Iron OD | T119: AWWA C900
E120: =ROW() -> 120 | F120: PVC | G120: CIOD (DR)-C900 | H120: 4 | I120: 4 | J120: 165 psi DR-25 | K120: 25 | L120: =VLOOKUP(K120,Tables!$C$17:$D$34,2,FALSE) -> 165 | M120: 4.8 | N120: OD | O120: 0.1 | P120: 0.192 | Q120: 0.023 | R120: =VLOOKUP(F120,Tables!$G$5:$H$14,2,FALSE)*(M120-(P120+Q120*Tables!$C$6))*(P120+Q120*Tables!$C$6)*1.36136 -> 1.782759254 | S120: ="Controlled OD (DR-"&K120&") Cast Iron OD" -> Controlled OD (DR-25) Cast Iron OD | T120: AWWA C900
E121: =ROW() -> 121 | F121: PVC | G121: CIOD (DR)-C900 | H121: 4 | I121: 4 | J121: 200 psi DR-21 | K121: 21 | L121: =VLOOKUP(K121,Tables!$C$17:$D$34,2,FALSE) -> 200 | M121: 4.8 | N121: OD | O121: 0.1 | P121: 0.229 | Q121: 0.027 | R121: =VLOOKUP(F121,Tables!$G$5:$H$14,2,FALSE)*(M121-(P121+Q121*Tables!$C$6))*(P121+Q121*Tables!$C$6)*1.36136 -> 2.106393189 | S121: Controlled OD (DR-21) Cast Iron OD | T121: AWWA C900
E122: =ROW() -> 122 | F122: PVC | G122: CIOD (DR)-C900 | H122: 4 | I122: 4 | J122: 235 psi DR-18 | K122: 18 | L122: =VLOOKUP(K122,Tables!$C$17:$D$34,2,FALSE) -> 235 | M122: 4.8 | N122: OD | O122: 0.1 | P122: 0.267 | Q122: 0.032 | R122: =VLOOKUP(F122,Tables!$G$5:$H$14,2,FALSE)*(M122-(P122+Q122*Tables!$C$6))*(P122+Q122*Tables!$C$6)*1.36136 -> 2.436338048 | S122: Controlled OD (DR-18) Cast Iron OD | T122: AWWA C900
E123: =ROW() -> 123 | F123: PVC | G123: CIOD (DR)-C900 | H123: 4 | I123: 4 | J123: 250 psi DR-17 | K123: 17 | L123: =VLOOKUP(K123,Tables!$C$17:$D$34,2,FALSE) -> 250 | M123: 4.8 | N123: OD | O123: 0.1 | P123: 0.282 | Q123: 0.034 | R123: =VLOOKUP(F123,Tables!$G$5:$H$14,2,FALSE)*(M123-(P123+Q123*Tables!$C$6))*(P123+Q123*Tables!$C$6)*1.36136 -> 2.564963697 | S123: Controlled OD (DR-17) Cast Iron OD | T123: AWWA C900
E124: =ROW() -> 124 | F124: PVC | G124: CIOD (DR)-C900 | H124: 4 | I124: 4 | J124: =L124&" psi DR-"&K124 -> 305 psi DR-14 | K124: 14 | L124: =VLOOKUP(K124,Tables!$C$17:$D$34,2,FALSE) -> 305 | M124: 4.8 | N124: OD | O124: 0.1 | P124: 0.343 | Q124: 0.041 | R124: =VLOOKUP(F124,Tables!$G$5:$H$14,2,FALSE)*(M124-(P124+Q124*Tables!$C$6))*(P124+Q124*Tables!$C$6)*1.36136 -> 3.073589915 | S124: Controlled OD (DR-14) Cast Iron OD | T124: AWWA C900
E125: =ROW() -> 125 | F125: PVC | G125: CIOD (DR)-C900 | H125: 6 | I125: 6 | J125: 150 psi DR-27.5 | K125: 27.5 | L125: =VLOOKUP(K125,Tables!$C$17:$D$34,2,FALSE) -> 150 | M125: 6.9 | N125: OD | O125: 0.12 | P125: 0.251 | Q125: 0.03 | R125: =VLOOKUP(F125,Tables!$G$5:$H$14,2,FALSE)*(M125-(P125+Q125*Tables!$C$6))*(P125+Q125*Tables!$C$6)*1.36136 -> 3.363242058 | S125: Controlled OD (DR-27.5) Cast Iron OD | T125: AWWA C900
E126: =ROW() -> 126 | F126: PVC | G126: CIOD (DR)-C900 | H126: 6 | I126: 6 | J126: 165 psi DR-25 | K126: 25 | L126: =VLOOKUP(K126,Tables!$C$17:$D$34,2,FALSE) -> 165 | M126: 6.9 | N126: OD | O126: 0.12 | P126: 0.276 | Q126: 0.033 | R126: =VLOOKUP(F126,Tables!$G$5:$H$14,2,FALSE)*(M126-(P126+Q126*Tables!$C$6))*(P126+Q126*Tables!$C$6)*1.36136 -> 3.683528749 | S126: Controlled OD (DR-25) Cast Iron OD | T126: AWWA C900
E127: =ROW() -> 127 | F127: PVC | G127: CIOD (DR)-C900 | H127: 6 | I127: 6 | J127: 200 psi DR-21 | K127: 21 | L127: =VLOOKUP(K127,Tables!$C$17:$D$34,2,FALSE) -> 200 | M127: 6.9 | N127: OD | O127: 0.12 | P127: 0.329 | Q127: 0.039 | R127: =VLOOKUP(F127,Tables!$G$5:$H$14,2,FALSE)*(M127-(P127+Q127*Tables!$C$6))*(P127+Q127*Tables!$C$6)*1.36136 -> 4.351555725 | S127: Controlled OD (DR-21) Cast Iron OD | T127: AWWA C900
E128: =ROW() -> 128 | F128: PVC | G128: CIOD (DR)-C900 | H128: 6 | I128: 6 | J128: 235 psi DR-18 | K128: 18 | L128: =VLOOKUP(K128,Tables!$C$17:$D$34,2,FALSE) -> 235 | M128: 6.9 | N128: OD | O128: 0.12 | P128: 0.383 | Q128: 0.046 | R128: =VLOOKUP(F128,Tables!$G$5:$H$14,2,FALSE)*(M128-(P128+Q128*Tables!$C$6))*(P128+Q128*Tables!$C$6)*1.36136 -> 5.025037874 | S128: Controlled OD (DR-18) Cast Iron OD | T128: AWWA C900
E129: =ROW() -> 129 | F129: PVC | G129: CIOD (DR)-C900 | H129: 6 | I129: 6 | J129: 250 psi DR-17 | K129: 17 | L129: =VLOOKUP(K129,Tables!$C$17:$D$34,2,FALSE) -> 250 | M129: 6.9 | N129: OD | O129: 0.12 | P129: 0.406 | Q129: 0.049 | R129: =VLOOKUP(F129,Tables!$G$5:$H$14,2,FALSE)*(M129-(P129+Q129*Tables!$C$6))*(P129+Q129*Tables!$C$6)*1.36136 -> 5.308170872 | S129: Controlled OD (DR-17) Cast Iron OD | T129: AWWA C900
E130: =ROW() -> 130 | F130: PVC | G130: CIOD (DR)-C900 | H130: 6 | I130: 6 | J130: 305 psi DR-14 | K130: 14 | L130: =VLOOKUP(K130,Tables!$C$17:$D$34,2,FALSE) -> 305 | M130: 6.9 | N130: OD | O130: 0.12 | P130: 0.493 | Q130: 0.059 | R130: =VLOOKUP(F130,Tables!$G$5:$H$14,2,FALSE)*(M130-(P130+Q130*Tables!$C$6))*(P130+Q130*Tables!$C$6)*1.36136 -> 6.350936692 | S130: Controlled OD (DR-14) Cast Iron OD | T130: AWWA C900
E131: =ROW() -> 131 | F131: PVC | G131: CIOD (DR)-C900 | H131: 8 | I131: 8 | J131: 150 psi DR-27.5 | K131: 27.5 | L131: =VLOOKUP(K131,Tables!$C$17:$D$34,2,FALSE) -> 150 | M131: 9.05 | N131: OD | O131: 0.16 | P131: 0.329 | Q131: 0.039 | R131: =VLOOKUP(F131,Tables!$G$5:$H$14,2,FALSE)*(M131-(P131+Q131*Tables!$C$6))*(P131+Q131*Tables!$C$6)*1.36136 -> 5.779601944 | S131: Controlled OD (DR-27.5) Cast Iron OD | T131: AWWA C900
E132: =ROW() -> 132 | F132: PVC | G132: CIOD (DR)-C900 | H132: 8 | I132: 8 | J132: 165 psi DR-25 | K132: 25 | L132: =VLOOKUP(K132,Tables!$C$17:$D$34,2,FALSE) -> 165 | M132: 9.05 | N132: OD | O132: 0.16 | P132: 0.362 | Q132: 0.043 | R132: =VLOOKUP(F132,Tables!$G$5:$H$14,2,FALSE)*(M132-(P132+Q132*Tables!$C$6))*(P132+Q132*Tables!$C$6)*1.36136 -> 6.334467776 | S132: Controlled OD (DR-25) Cast Iron OD | T132: AWWA C900
E133: =ROW() -> 133 | F133: PVC | G133: CIOD (DR)-C900 | H133: 8 | I133: 8 | J133: 200 psi DR-21 | K133: 21 | L133: =VLOOKUP(K133,Tables!$C$17:$D$34,2,FALSE) -> 200 | M133: 9.05 | N133: OD | O133: 0.16 | P133: 0.431 | Q133: 0.052 | R133: =VLOOKUP(F133,Tables!$G$5:$H$14,2,FALSE)*(M133-(P133+Q133*Tables!$C$6))*(P133+Q133*Tables!$C$6)*1.36136 -> 7.484486914 | S133: Controlled OD (DR-21) Cast Iron OD | T133: AWWA C900
E134: =ROW() -> 134 | F134: PVC | G134: CIOD (DR)-C900 | H134: 8 | I134: 8 | J134: 235 psi DR-18 | K134: 18 | L134: =VLOOKUP(K134,Tables!$C$17:$D$34,2,FALSE) -> 235 | M134: 9.05 | N134: OD | O134: 0.16 | P134: 0.503 | Q134: 0.06 | R134: =VLOOKUP(F134,Tables!$G$5:$H$14,2,FALSE)*(M134-(P134+Q134*Tables!$C$6))*(P134+Q134*Tables!$C$6)*1.36136 -> 8.651967468 | S134: Controlled OD (DR-18) Cast Iron OD | T134: AWWA C900
E135: =ROW() -> 135 | F135: PVC | G135: CIOD (DR)-C900 | H135: 8 | I135: 8 | J135: 250 psi DR-17 | K135: 17 | L135: =VLOOKUP(K135,Tables!$C$17:$D$34,2,FALSE) -> 250 | M135: 9.05 | N135: OD | O135: 0.16 | P135: 0.532 | Q135: 0.064 | R135: =VLOOKUP(F135,Tables!$G$5:$H$14,2,FALSE)*(M135-(P135+Q135*Tables!$C$6))*(P135+Q135*Tables!$C$6)*1.36136 -> 9.121854758 | S135: Controlled OD (DR-17) Cast Iron OD | T135: AWWA C900
E136: =ROW() -> 136 | F136: PVC | G136: CIOD (DR)-C900 | H136: 8 | I136: 8 | J136: 305 psi DR-14 | K136: 14 | L136: =VLOOKUP(K136,Tables!$C$17:$D$34,2,FALSE) -> 305 | M136: 9.05 | N136: OD | O136: 0.16 | P136: 0.646 | Q136: 0.078 | R136: =VLOOKUP(F136,Tables!$G$5:$H$14,2,FALSE)*(M136-(P136+Q136*Tables!$C$6))*(P136+Q136*Tables!$C$6)*1.36136 -> 10.92087757 | S136: Controlled OD (DR-14) Cast Iron OD | T136: AWWA C900
E137: =ROW() -> 137 | F137: PVC | G137: CIOD (DR)-C900 | H137: 10 | I137: 10 | J137: 150 psi DR-27.5 | K137: 27.5 | L137: =VLOOKUP(K137,Tables!$C$17:$D$34,2,FALSE) -> 150 | M137: 11.1 | N137: OD | O137: 0.2 | P137: 0.404 | Q137: 0.048 | R137: =VLOOKUP(F137,Tables!$G$5:$H$14,2,FALSE)*(M137-(P137+Q137*Tables!$C$6))*(P137+Q137*Tables!$C$6)*1.36136 -> 8.705437605 | S137: Controlled OD (DR-27.5) Cast Iron OD | T137: AWWA C900
E138: =ROW() -> 138 | F138: PVC | G138: CIOD (DR)-C900 | H138: 10 | I138: 10 | J138: 165 psi DR-25 | K138: 25 | L138: =VLOOKUP(K138,Tables!$C$17:$D$34,2,FALSE) -> 165 | M138: 11.1 | N138: OD | O138: 0.2 | P138: 0.444 | Q138: 0.053 | R138: =VLOOKUP(F138,Tables!$G$5:$H$14,2,FALSE)*(M138-(P138+Q138*Tables!$C$6))*(P138+Q138*Tables!$C$6)*1.36136 -> 9.53176849 | S138: Controlled OD (DR-25) Cast Iron OD | T138: AWWA C900
E139: =ROW() -> 139 | F139: PVC | G139: CIOD (DR)-C900 | H139: 10 | I139: 10 | J139: 200 psi DR-21 | K139: 21 | L139: =VLOOKUP(K139,Tables!$C$17:$D$34,2,FALSE) -> 200 | M139: 11.1 | N139: OD | O139: 0.2 | P139: 0.529 | Q139: 0.063 | R139: =VLOOKUP(F139,Tables!$G$5:$H$14,2,FALSE)*(M139-(P139+Q139*Tables!$C$6))*(P139+Q139*Tables!$C$6)*1.36136 -> 11.25891775 | S139: Controlled OD (DR-21) Cast Iron OD | T139: AWWA C900
E140: =ROW() -> 140 | F140: PVC | G140: CIOD (DR)-C900 | H140: 10 | I140: 10 | J140: 235 psi DR-18 | K140: 18 | L140: =VLOOKUP(K140,Tables!$C$17:$D$34,2,FALSE) -> 235 | M140: 11.1 | N140: OD | O140: 0.2 | P140: 0.617 | Q140: 0.074 | R140: =VLOOKUP(F140,Tables!$G$5:$H$14,2,FALSE)*(M140-(P140+Q140*Tables!$C$6))*(P140+Q140*Tables!$C$6)*1.36136 -> 13.02053386 | S140: Controlled OD (DR-18) Cast Iron OD | T140: AWWA C900
E141: =ROW() -> 141 | F141: PVC | G141: CIOD (DR)-C900 | H141: 10 | I141: 10 | J141: 250 psi DR-17 | K141: 17 | L141: =VLOOKUP(K141,Tables!$C$17:$D$34,2,FALSE) -> 250 | M141: 11.1 | N141: OD | O141: 0.2 | P141: 0.653 | Q141: 0.078 | R141: =VLOOKUP(F141,Tables!$G$5:$H$14,2,FALSE)*(M141-(P141+Q141*Tables!$C$6))*(P141+Q141*Tables!$C$6)*1.36136 -> 13.72696099 | S141: Controlled OD (DR-17) Cast Iron OD | T141: AWWA C900
E142: =ROW() -> 142 | F142: PVC | G142: CIOD (DR)-C900 | H142: 10 | I142: 10 | J142: 305 psi DR-14 | K142: 14 | L142: =VLOOKUP(K142,Tables!$C$17:$D$34,2,FALSE) -> 305 | M142: 11.1 | N142: OD | O142: 0.2 | P142: 0.793 | Q142: 0.095 | R142: =VLOOKUP(F142,Tables!$G$5:$H$14,2,FALSE)*(M142-(P142+Q142*Tables!$C$6))*(P142+Q142*Tables!$C$6)*1.36136 -> 16.43481936 | S142: Controlled OD (DR-14) Cast Iron OD | T142: AWWA C900
E143: =ROW() -> 143 | F143: PVC | G143: CIOD (DR)-C900 | H143: 12 | I143: 12 | J143: 150 psi DR-27.5 | K143: 27.5 | L143: =VLOOKUP(K143,Tables!$C$17:$D$34,2,FALSE) -> 150 | M143: 13.2 | N143: OD | O143: 0.24 | P143: 0.48 | Q143: 0.058 | R143: =VLOOKUP(F143,Tables!$G$5:$H$14,2,FALSE)*(M143-(P143+Q143*Tables!$C$6))*(P143+Q143*Tables!$C$6)*1.36136 -> 12.31160428 | S143: Controlled OD (DR-27.5) Cast Iron OD | T143: AWWA C900
E144: =ROW() -> 144 | F144: PVC | G144: CIOD (DR)-C900 | H144: 12 | I144: 12 | J144: 165 psi DR-25 | K144: 25 | L144: =VLOOKUP(K144,Tables!$C$17:$D$34,2,FALSE) -> 165 | M144: 13.2 | N144: OD | O144: 0.24 | P144: 0.528 | Q144: 0.063 | R144: =VLOOKUP(F144,Tables!$G$5:$H$14,2,FALSE)*(M144-(P144+Q144*Tables!$C$6))*(P144+Q144*Tables!$C$6)*1.36136 -> 13.47923874 | S144: Controlled OD (DR-25) Cast Iron OD | T144: AWWA C900
E145: =ROW() -> 145 | F145: PVC | G145: CIOD (DR)-C900 | H145: 12 | I145: 12 | J145: 200 psi DR-21 | K145: 21 | L145: =VLOOKUP(K145,Tables!$C$17:$D$34,2,FALSE) -> 200 | M145: 13.2 | N145: OD | O145: 0.24 | P145: 0.629 | Q145: 0.075 | R145: =VLOOKUP(F145,Tables!$G$5:$H$14,2,FALSE)*(M145-(P145+Q145*Tables!$C$6))*(P145+Q145*Tables!$C$6)*1.36136 -> 15.92111725 | S145: Controlled OD (DR-21) Cast Iron OD | T145: AWWA C900
E146: =ROW() -> 146 | F146: PVC | G146: CIOD (DR)-C900 | H146: 12 | I146: 12 | J146: 235 psi DR-18 | K146: 18 | L146: =VLOOKUP(K146,Tables!$C$17:$D$34,2,FALSE) -> 235 | M146: 13.2 | N146: OD | O146: 0.24 | P146: 0.733 | Q146: 0.088 | R146: =VLOOKUP(F146,Tables!$G$5:$H$14,2,FALSE)*(M146-(P146+Q146*Tables!$C$6))*(P146+Q146*Tables!$C$6)*1.36136 -> 18.39706427 | S146: Controlled OD (DR-18) Cast Iron OD | T146: AWWA C900
E147: =ROW() -> 147 | F147: PVC | G147: CIOD (DR)-C900 | H147: 12 | I147: 12 | J147: 250 psi DR-17 | K147: 17 | L147: =VLOOKUP(K147,Tables!$C$17:$D$34,2,FALSE) -> 250 | M147: 13.2 | N147: OD | O147: 0.24 | P147: 0.776 | Q147: 0.093 | R147: =VLOOKUP(F147,Tables!$G$5:$H$14,2,FALSE)*(M147-(P147+Q147*Tables!$C$6))*(P147+Q147*Tables!$C$6)*1.36136 -> 19.40304376 | S147: Controlled OD (DR-17) Cast Iron OD | T147: AWWA C900
E148: =ROW() -> 148 | F148: PVC | G148: CIOD (DR)-C900 | H148: 12 | I148: 12 | J148: 305 psi DR-14 | K148: 14 | L148: =VLOOKUP(K148,Tables!$C$17:$D$34,2,FALSE) -> 305 | M148: 13.2 | N148: OD | O148: 0.24 | P148: 0.943 | Q148: 0.113 | R148: =VLOOKUP(F148,Tables!$G$5:$H$14,2,FALSE)*(M148-(P148+Q148*Tables!$C$6))*(P148+Q148*Tables!$C$6)*1.36136 -> 23.24135526 | S148: Controlled OD (DR-14) Cast Iron OD | T148: AWWA C900
E149: =ROW() -> 149 | F149: PVC | G149: CIOD (DR)-C900 | H149: 14 | I149: 14 | J149: 100 psi DR-41 | K149: 41 | L149: =VLOOKUP(K149,Tables!$C$17:$D$34,2,FALSE) -> 100 | M149: 15.3 | N149: OD | O149: 0.3 | P149: 0.373 | Q149: 0.052 | R149: =VLOOKUP(F149,Tables!$G$5:$H$14,2,FALSE)*(M149-(P149+Q149*Tables!$C$6))*(P149+Q149*Tables!$C$6)*1.36136 -> 11.33155033 | S149: Controlled OD (DR-41) Cast Iron OD | T149: AWWA C900
E150: =ROW() -> 150 | F150: PVC | G150: CIOD (DR)-C900 | H150: 14 | I150: 14 | J150: 125 psi DR-32.5 | K150: 32.5 | L150: =VLOOKUP(K150,Tables!$C$17:$D$34,2,FALSE) -> 125 | M150: 15.3 | N150: OD | O150: 0.3 | P150: 0.471 | Q150: 0.056 | R150: =VLOOKUP(F150,Tables!$G$5:$H$14,2,FALSE)*(M150-(P150+Q150*Tables!$C$6))*(P150+Q150*Tables!$C$6)*1.36136 -> 14.07643327 | S150: Controlled OD (DR-32.5) Cast Iron OD | T150: AWWA C900
E151: =ROW() -> 151 | F151: PVC | G151: CIOD (DR)-C900 | H151: 14 | I151: 14 | J151: 150 psi DR-27.5 | K151: 27.5 | L151: =VLOOKUP(K151,Tables!$C$17:$D$34,2,FALSE) -> 150 | M151: 15.3 | N151: OD | O151: 0.3 | P151: 0.556 | Q151: 0.067 | R151: =VLOOKUP(F151,Tables!$G$5:$H$14,2,FALSE)*(M151-(P151+Q151*Tables!$C$6))*(P151+Q151*Tables!$C$6)*1.36136 -> 16.52769407 | S151: Controlled OD (DR-27.5) Cast Iron OD | T151: AWWA C900
E152: =ROW() -> 152 | F152: PVC | G152: CIOD (DR)-C900 | H152: 14 | I152: 14 | J152: 165 psi DR-25 | K152: 25 | L152: =VLOOKUP(K152,Tables!$C$17:$D$34,2,FALSE) -> 165 | M152: 15.3 | N152: OD | O152: 0.3 | P152: 0.612 | Q152: 0.073 | R152: =VLOOKUP(F152,Tables!$G$5:$H$14,2,FALSE)*(M152-(P152+Q152*Tables!$C$6))*(P152+Q152*Tables!$C$6)*1.36136 -> 18.10894257 | S152: Controlled OD (DR-25) Cast Iron OD | T152: AWWA C900
E153: =ROW() -> 153 | F153: PVC | G153: CIOD (DR)-C900 | H153: 14 | I153: 14 | J153: 200 psi DR-21 | K153: 21 | L153: =VLOOKUP(K153,Tables!$C$17:$D$34,2,FALSE) -> 200 | M153: 15.3 | N153: OD | O153: 0.3 | P153: 0.729 | Q153: 0.088 | R153: =VLOOKUP(F153,Tables!$G$5:$H$14,2,FALSE)*(M153-(P153+Q153*Tables!$C$6))*(P153+Q153*Tables!$C$6)*1.36136 -> 21.40210311 | S153: Controlled OD (DR-21) Cast Iron OD | T153: AWWA C900
E154: =ROW() -> 154 | F154: PVC | G154: CIOD (DR)-C900 | H154: 14 | I154: 14 | J154: 235 psi DR-18 | K154: 18 | L154: =VLOOKUP(K154,Tables!$C$17:$D$34,2,FALSE) -> 235 | M154: 15.3 | N154: OD | O154: 0.3 | P154: 0.85 | Q154: 0.102 | R154: =VLOOKUP(F154,Tables!$G$5:$H$14,2,FALSE)*(M154-(P154+Q154*Tables!$C$6))*(P154+Q154*Tables!$C$6)*1.36136 -> 24.72624364 | S154: Controlled OD (DR-18) Cast Iron OD | T154: AWWA C900
E155: =ROW() -> 155 | F155: PVC | G155: CIOD (DR)-C900 | H155: 14 | I155: 14 | J155: 250 psi DR-17 | K155: 17 | L155: =VLOOKUP(K155,Tables!$C$17:$D$34,2,FALSE) -> 250 | M155: 15.3 | N155: OD | O155: 0.2 | P155: 0.9 | Q155: 0.108 | R155: =VLOOKUP(F155,Tables!$G$5:$H$14,2,FALSE)*(M155-(P155+Q155*Tables!$C$6))*(P155+Q155*Tables!$C$6)*1.36136 -> 26.08436224 | S155: Controlled OD (DR-17) Cast Iron OD | T155: AWWA C900
E156: =ROW() -> 156 | F156: PVC | G156: CIOD (DR)-C900 | H156: 14 | I156: 14 | J156: 305 psi DR-14 | K156: 14 | L156: =VLOOKUP(K156,Tables!$C$17:$D$34,2,FALSE) -> 305 | M156: 15.3 | N156: OD | O156: 0.2 | P156: 1.093 | Q156: 0.131 | R156: =VLOOKUP(F156,Tables!$G$5:$H$14,2,FALSE)*(M156-(P156+Q156*Tables!$C$6))*(P156+Q156*Tables!$C$6)*1.36136 -> 31.22428753 | S156: Controlled OD (DR-14) Cast Iron OD | T156: AWWA C900
E157: =ROW() -> 157 | F157: PVC | G157: CIOD (DR)-C900 | H157: 16 | I157: 16 | J157: 100 psi DR-41 | K157: 41 | L157: =VLOOKUP(K157,Tables!$C$17:$D$34,2,FALSE) -> 100 | M157: 17.4 | N157: OD | O157: 0.32 | P157: 0.424 | Q157: 0.059 | R157: =VLOOKUP(F157,Tables!$G$5:$H$14,2,FALSE)*(M157-(P157+Q157*Tables!$C$6))*(P157+Q157*Tables!$C$6)*1.36136 -> 14.64732537 | S157: Controlled OD (DR-41) Cast Iron OD | T157: AWWA C900
E158: =ROW() -> 158 | F158: PVC | G158: CIOD (DR)-C900 | H158: 16 | I158: 16 | J158: 125 psi DR-32.5 | K158: 32.5 | L158: =VLOOKUP(K158,Tables!$C$17:$D$34,2,FALSE) -> 125 | M158: 17.4 | N158: OD | O158: 0.32 | P158: 0.535 | Q158: 0.064 | R158: =VLOOKUP(F158,Tables!$G$5:$H$14,2,FALSE)*(M158-(P158+Q158*Tables!$C$6))*(P158+Q158*Tables!$C$6)*1.36136 -> 18.19054051 | S158: Controlled OD (DR-32.5) Cast Iron OD | T158: AWWA C900
E159: =ROW() -> 159 | F159: PVC | G159: CIOD (DR)-C900 | H159: 16 | I159: 16 | J159: 150 psi DR-27.5 | K159: 27.5 | L159: =VLOOKUP(K159,Tables!$C$17:$D$34,2,FALSE) -> 150 | M159: 17.4 | N159: OD | O159: 0.32 | P159: 0.633 | Q159: 0.076 | R159: =VLOOKUP(F159,Tables!$G$5:$H$14,2,FALSE)*(M159-(P159+Q159*Tables!$C$6))*(P159+Q159*Tables!$C$6)*1.36136 -> 21.39407544 | S159: Controlled OD (DR-27.5) Cast Iron OD | T159: AWWA C900
E160: =ROW() -> 160 | F160: PVC | G160: CIOD (DR)-C900 | H160: 16 | I160: 16 | J160: 165 psi DR-25 | K160: 25 | L160: =VLOOKUP(K160,Tables!$C$17:$D$34,2,FALSE) -> 165 | M160: 17.4 | N160: OD | O160: 0.32 | P160: 0.696 | Q160: 0.084 | R160: =VLOOKUP(F160,Tables!$G$5:$H$14,2,FALSE)*(M160-(P160+Q160*Tables!$C$6))*(P160+Q160*Tables!$C$6)*1.36136 -> 23.43605527 | S160: Controlled OD (DR-25) Cast Iron OD | T160: AWWA C900
E161: =ROW() -> 161 | F161: PVC | G161: CIOD (DR)-C900 | H161: 16 | I161: 16 | J161: 200 psi DR-21 | K161: 21 | L161: =VLOOKUP(K161,Tables!$C$17:$D$34,2,FALSE) -> 200 | M161: 17.4 | N161: OD | O161: 0.32 | P161: 0.829 | Q161: 0.1 | R161: =VLOOKUP(F161,Tables!$G$5:$H$14,2,FALSE)*(M161-(P161+Q161*Tables!$C$6))*(P161+Q161*Tables!$C$6)*1.36136 -> 27.67745975 | S161: Controlled OD (DR-21) Cast Iron OD | T161: AWWA C900
E162: =ROW() -> 162 | F162: PVC | G162: CIOD (DR)-C900 | H162: 16 | I162: 16 | J162: 235 psi DR-18 | K162: 18 | L162: =VLOOKUP(K162,Tables!$C$17:$D$34,2,FALSE) -> 235 | M162: 17.4 | N162: OD | O162: 0.32 | P162: 0.967 | Q162: 0.116 | R162: =VLOOKUP(F162,Tables!$G$5:$H$14,2,FALSE)*(M162-(P162+Q162*Tables!$C$6))*(P162+Q162*Tables!$C$6)*1.36136 -> 31.98940745 | S162: Controlled OD (DR-18) Cast Iron OD | T162: AWWA C900
E163: =ROW() -> 163 | F163: PVC | G163: CIOD (DR)-C900 | H163: 16 | I163: 16 | J163: 250 psi DR-17 | K163: 17 | L163: =VLOOKUP(K163,Tables!$C$17:$D$34,2,FALSE) -> 250 | M163: 17.4 | N163: OD | O163: 0.32 | P163: 1.024 | Q163: 0.123 | R163: =VLOOKUP(F163,Tables!$G$5:$H$14,2,FALSE)*(M163-(P163+Q163*Tables!$C$6))*(P163+Q163*Tables!$C$6)*1.36136 -> 33.75239676 | S163: Controlled OD (DR-17) Cast Iron OD | T163: AWWA C900
E164: =ROW() -> 164 | F164: PVC | G164: CIOD (DR)-C900 | H164: 16 | I164: 16 | J164: 305 psi DR-14 | K164: 14 | L164: =VLOOKUP(K164,Tables!$C$17:$D$34,2,FALSE) -> 305 | M164: 17.4 | N164: OD | O164: 0.32 | P164: 1.243 | Q164: 0.149 | R164: =VLOOKUP(F164,Tables!$G$5:$H$14,2,FALSE)*(M164-(P164+Q164*Tables!$C$6))*(P164+Q164*Tables!$C$6)*1.36136 -> 40.38361617 | S164: Controlled OD (DR-14) Cast Iron OD | T164: AWWA C900
E165: =ROW() -> 165 | F165: PVC | G165: CIOD (DR)-C900 | H165: 18 | I165: 18 | J165: =" "&L165&" psi DR-"&K165 -> 80 psi DR-51 | K165: 51 | L165: =VLOOKUP(K165,Tables!$C$17:$D$34,2,FALSE) -> 80 | M165: 19.5 | N165: OD | O165: 0.36 | P165: 0.382 | Q165: 0.053 | R165: =VLOOKUP(F165,Tables!$G$5:$H$14,2,FALSE)*(M165-(P165+Q165*Tables!$C$6))*(P165+Q165*Tables!$C$6)*1.36136 -> 14.8639123 | S165: Controlled OD (DR-51) Cast Iron OD | T165: AWWA C900
E166: =ROW() -> 166 | F166: PVC | G166: CIOD (DR)-C900 | H166: 18 | I166: 18 | J166: 100 psi DR-41 | K166: 41 | L166: =VLOOKUP(K166,Tables!$C$17:$D$34,2,FALSE) -> 100 | M166: 19.5 | N166: OD | O166: 0.36 | P166: 0.476 | Q166: 0.067 | R166: =VLOOKUP(F166,Tables!$G$5:$H$14,2,FALSE)*(M166-(P166+Q166*Tables!$C$6))*(P166+Q166*Tables!$C$6)*1.36136 -> 18.44087862 | S166: Controlled OD (DR-41) Cast Iron OD | T166: AWWA C900
E167: =ROW() -> 167 | F167: PVC | G167: CIOD (DR)-C900 | H167: 18 | I167: 18 | J167: 125 psi DR-32.5 | K167: 32.5 | L167: =VLOOKUP(K167,Tables!$C$17:$D$34,2,FALSE) -> 125 | M167: 19.5 | N167: OD | O167: 0.36 | P167: 0.6 | Q167: 0.072 | R167: =VLOOKUP(F167,Tables!$G$5:$H$14,2,FALSE)*(M167-(P167+Q167*Tables!$C$6))*(P167+Q167*Tables!$C$6)*1.36136 -> 22.86609086 | S167: Controlled OD (DR-32.5) Cast Iron OD | T167: AWWA C900
E168: =ROW() -> 168 | F168: PVC | G168: CIOD (DR)-C900 | H168: 18 | I168: 18 | J168: 150 psi DR-27.5 | K168: 27.5 | L168: =VLOOKUP(K168,Tables!$C$17:$D$34,2,FALSE) -> 150 | M168: 19.5 | N168: OD | O168: 0.36 | P168: 0.709 | Q168: 0.085 | R168: =VLOOKUP(F168,Tables!$G$5:$H$14,2,FALSE)*(M168-(P168+Q168*Tables!$C$6))*(P168+Q168*Tables!$C$6)*1.36136 -> 26.85323012 | S168: Controlled OD (DR-27.5) Cast Iron OD | T168: AWWA C900
E169: =ROW() -> 169 | F169: PVC | G169: CIOD (DR)-C900 | H169: 18 | I169: 18 | J169: 165 psi DR-25 | K169: 25 | L169: =VLOOKUP(K169,Tables!$C$17:$D$34,2,FALSE) -> 165 | M169: 19.5 | N169: OD | O169: 0.36 | P169: 0.78 | Q169: 0.094 | R169: =VLOOKUP(F169,Tables!$G$5:$H$14,2,FALSE)*(M169-(P169+Q169*Tables!$C$6))*(P169+Q169*Tables!$C$6)*1.36136 -> 29.43205784 | S169: Controlled OD (DR-25) Cast Iron OD | T169: AWWA C900
E170: =ROW() -> 170 | F170: PVC | G170: CIOD (DR)-C900 | H170: 18 | I170: 18 | J170: 200 psi DR-21 | K170: 21 | L170: =VLOOKUP(K170,Tables!$C$17:$D$34,2,FALSE) -> 200 | M170: 19.5 | N170: OD | O170: 0.36 | P170: 0.929 | Q170: 0.111 | R170: =VLOOKUP(F170,Tables!$G$5:$H$14,2,FALSE)*(M170-(P170+Q170*Tables!$C$6))*(P170+Q170*Tables!$C$6)*1.36136 -> 34.74178965 | S170: Controlled OD (DR-21) Cast Iron OD | T170: AWWA C900
E171: =ROW() -> 171 | F171: PVC | G171: CIOD (DR)-C900 | H171: 18 | I171: 18 | J171: 235 psi DR-18 | K171: 18 | L171: =VLOOKUP(K171,Tables!$C$17:$D$34,2,FALSE) -> 235 | M171: 19.5 | N171: OD | O171: 0.36 | P171: 1.083 | Q171: 0.13 | R171: =VLOOKUP(F171,Tables!$G$5:$H$14,2,FALSE)*(M171-(P171+Q171*Tables!$C$6))*(P171+Q171*Tables!$C$6)*1.36136 -> 40.15376844 | S171: Controlled OD (DR-18) Cast Iron OD | T171: AWWA C900
E172: =ROW() -> 172 | F172: PVC | G172: CIOD (DR)-C900 | H172: 18 | I172: 18 | J172: 250 psi DR-17 | K172: 17 | L172: =VLOOKUP(K172,Tables!$C$17:$D$34,2,FALSE) -> 250 | M172: 19.5 | N172: OD | O172: 0.36 | P172: 1.147 | Q172: 0.138 | R172: =VLOOKUP(F172,Tables!$G$5:$H$14,2,FALSE)*(M172-(P172+Q172*Tables!$C$6))*(P172+Q172*Tables!$C$6)*1.36136 -> 42.37461926 | S172: Controlled OD (DR-17) Cast Iron OD | T172: AWWA C900
E173: =ROW() -> 173 | F173: PVC | G173: CIOD (DR)-C900 | H173: 18 | I173: 18 | J173: 305 psi DR-14 | K173: 14 | L173: =VLOOKUP(K173,Tables!$C$17:$D$34,2,FALSE) -> 305 | M173: 19.5 | N173: OD | O173: 0.36 | P173: 1.393 | Q173: 0.167 | R173: =VLOOKUP(F173,Tables!$G$5:$H$14,2,FALSE)*(M173-(P173+Q173*Tables!$C$6))*(P173+Q173*Tables!$C$6)*1.36136 -> 50.71934119 | S173: Controlled OD (DR-14) Cast Iron OD | T173: AWWA C900
E174: =ROW() -> 174 | F174: PVC | G174: CIOD (DR)-C900 | H174: 20 | I174: 20 | J174: =" "&L174&" psi DR-"&K174 -> 80 psi DR-51 | K174: 51 | L174: =VLOOKUP(K174,Tables!$C$17:$D$34,2,FALSE) -> 80 | M174: 21.6 | N174: OD | O174: 0.4 | P174: 0.424 | Q174: 0.059 | R174: =VLOOKUP(F174,Tables!$G$5:$H$14,2,FALSE)*(M174-(P174+Q174*Tables!$C$6))*(P174+Q174*Tables!$C$6)*1.36136 -> 18.27750072 | S174: Controlled OD (DR-51) Cast Iron OD | T174: AWWA C900
E175: =ROW() -> 175 | F175: PVC | G175: CIOD (DR)-C900 | H175: 20 | I175: 20 | J175: 100 psi DR-41 | K175: 41 | L175: =VLOOKUP(K175,Tables!$C$17:$D$34,2,FALSE) -> 100 | M175: 21.6 | N175: OD | O175: 0.4 | P175: 0.527 | Q175: 0.074 | R175: =VLOOKUP(F175,Tables!$G$5:$H$14,2,FALSE)*(M175-(P175+Q175*Tables!$C$6))*(P175+Q175*Tables!$C$6)*1.36136 -> 22.61222445 | S175: Controlled OD (DR-41) Cast Iron OD | T175: AWWA C900
E176: =ROW() -> 176 | F176: PVC | G176: CIOD (DR)-C900 | H176: 20 | I176: 20 | J176: 125 psi DR-32.5 | K176: 32.5 | L176: =VLOOKUP(K176,Tables!$C$17:$D$34,2,FALSE) -> 125 | M176: 21.6 | N176: OD | O176: 0.4 | P176: 0.665 | Q176: 0.08 | R176: =VLOOKUP(F176,Tables!$G$5:$H$14,2,FALSE)*(M176-(P176+Q176*Tables!$C$6))*(P176+Q176*Tables!$C$6)*1.36136 -> 28.07582418 | S176: Controlled OD (DR-32.5) Cast Iron OD | T176: AWWA C900
E177: =ROW() -> 177 | F177: PVC | G177: CIOD (DR)-C900 | H177: 20 | I177: 20 | J177: 150 psi DR-27.5 | K177: 27.5 | L177: =VLOOKUP(K177,Tables!$C$17:$D$34,2,FALSE) -> 150 | M177: 21.6 | N177: OD | O177: 0.4 | P177: 0.785 | Q177: 0.094 | R177: =VLOOKUP(F177,Tables!$G$5:$H$14,2,FALSE)*(M177-(P177+Q177*Tables!$C$6))*(P177+Q177*Tables!$C$6)*1.36136 -> 32.93206947 | S177: Controlled OD (DR-27.5) Cast Iron OD | T177: AWWA C900
E178: =ROW() -> 178 | F178: PVC | G178: CIOD (DR)-C900 | H178: 20 | I178: 20 | J178: 165 psi DR-25 | K178: 25 | L178: =VLOOKUP(K178,Tables!$C$17:$D$34,2,FALSE) -> 165 | M178: 21.6 | N178: OD | O178: 0.4 | P178: 0.864 | Q178: 0.104 | R178: =VLOOKUP(F178,Tables!$G$5:$H$14,2,FALSE)*(M178-(P178+Q178*Tables!$C$6))*(P178+Q178*Tables!$C$6)*1.36136 -> 36.110294 | S178: Controlled OD (DR-25) Cast Iron OD | T178: AWWA C900
E179: =ROW() -> 179 | F179: PVC | G179: CIOD (DR)-C900 | H179: 20 | I179: 20 | J179: 200 psi DR-21 | K179: 21 | L179: =VLOOKUP(K179,Tables!$C$17:$D$34,2,FALSE) -> 200 | M179: 21.6 | N179: OD | O179: 0.4 | P179: 1.029 | Q179: 0.123 | R179: =VLOOKUP(F179,Tables!$G$5:$H$14,2,FALSE)*(M179-(P179+Q179*Tables!$C$6))*(P179+Q179*Tables!$C$6)*1.36136 -> 42.62670508 | S179: Controlled OD (DR-21) Cast Iron OD | T179: AWWA C900
E180: =ROW() -> 180 | F180: PVC | G180: CIOD (DR)-C900 | H180: 20 | I180: 20 | J180: 235 psi DR-18 | K180: 18 | L180: =VLOOKUP(K180,Tables!$C$17:$D$34,2,FALSE) -> 235 | M180: 21.6 | N180: OD | O180: 0.4 | P180: 1.2 | Q180: 0.144 | R180: =VLOOKUP(F180,Tables!$G$5:$H$14,2,FALSE)*(M180-(P180+Q180*Tables!$C$6))*(P180+Q180*Tables!$C$6)*1.36136 -> 49.2813714 | S180: Controlled OD (DR-18) Cast Iron OD | T180: AWWA C900
E181: =ROW() -> 181 | F181: PVC | G181: CIOD (DR)-C900 | H181: 20 | I181: 20 | J181: 250 psi DR-17 | K181: 17 | L181: =VLOOKUP(K181,Tables!$C$17:$D$34,2,FALSE) -> 250 | M181: 21.6 | N181: OD | O181: 0.4 | P181: 1.271 | Q181: 0.153 | R181: =VLOOKUP(F181,Tables!$G$5:$H$14,2,FALSE)*(M181-(P181+Q181*Tables!$C$6))*(P181+Q181*Tables!$C$6)*1.36136 -> 52.01258472 | S181: Controlled OD (DR-17) Cast Iron OD | T181: AWWA C900
E182: =ROW() -> 182 | F182: PVC | G182: CIOD (DR)-C900 | H182: 20 | I182: 20 | J182: 305 psi DR-14 | K182: 14 | L182: =VLOOKUP(K182,Tables!$C$17:$D$34,2,FALSE) -> 305 | M182: 21.6 | N182: OD | O182: 0.4 | P182: 1.543 | Q182: 0.185 | R182: =VLOOKUP(F182,Tables!$G$5:$H$14,2,FALSE)*(M182-(P182+Q182*Tables!$C$6))*(P182+Q182*Tables!$C$6)*1.36136 -> 62.23146258 | S182: Controlled OD (DR-14) Cast Iron OD | T182: AWWA C900
E183: =ROW() -> 183 | F183: PVC | G183: CIOD (DR)-C900 | H183: 24 | I183: 24 | J183: =" "&L183&" psi DR-"&K183 -> 80 psi DR-51 | K183: 51 | L183: =VLOOKUP(K183,Tables!$C$17:$D$34,2,FALSE) -> 80 | M183: 25.8 | N183: OD | O183: 0.48 | P183: 0.506 | Q183: 0.071 | R183: =VLOOKUP(F183,Tables!$G$5:$H$14,2,FALSE)*(M183-(P183+Q183*Tables!$C$6))*(P183+Q183*Tables!$C$6)*1.36136 -> 26.06795955 | S183: Controlled OD (DR-51) Cast Iron OD | T183: AWWA C900
E184: =ROW() -> 184 | F184: PVC | G184: CIOD (DR)-C900 | H184: 24 | I184: 24 | J184: 100 psi DR-41 | K184: 41 | L184: =VLOOKUP(K184,Tables!$C$17:$D$34,2,FALSE) -> 100 | M184: 25.8 | N184: OD | O184: 0.48 | P184: 0.629 | Q184: 0.088 | R184: =VLOOKUP(F184,Tables!$G$5:$H$14,2,FALSE)*(M184-(P184+Q184*Tables!$C$6))*(P184+Q184*Tables!$C$6)*1.36136 -> 32.22973432 | S184: ="Controlled OD (DR-"&K184&") Cast Iron OD" -> Controlled OD (DR-41) Cast Iron OD | T184: AWWA C900
E185: =ROW() -> 185 | F185: PVC | G185: CIOD (DR)-C900 | H185: 24 | I185: 24 | J185: 125 psi DR-32.5 | K185: 32.5 | L185: =VLOOKUP(K185,Tables!$C$17:$D$34,2,FALSE) -> 125 | M185: 25.8 | N185: OD | O185: 0.48 | P185: 0.794 | Q185: 0.095 | R185: =VLOOKUP(F185,Tables!$G$5:$H$14,2,FALSE)*(M185-(P185+Q185*Tables!$C$6))*(P185+Q185*Tables!$C$6)*1.36136 -> 40.02889694 | S185: Controlled OD (DR-32.5) Cast Iron OD | T185: AWWA C900
E186: =ROW() -> 186 | F186: PVC | G186: CIOD (DR)-C900 | H186: 24 | I186: 24 | J186: 150 psi DR-27.5 | K186: 27.5 | L186: =VLOOKUP(K186,Tables!$C$17:$D$34,2,FALSE) -> 150 | M186: 25.8 | N186: OD | O186: 0.48 | P186: 0.938 | Q186: 0.113 | R186: =VLOOKUP(F186,Tables!$G$5:$H$14,2,FALSE)*(M186-(P186+Q186*Tables!$C$6))*(P186+Q186*Tables!$C$6)*1.36136 -> 47.01687871 | S186: Controlled OD (DR-27.5) Cast Iron OD | T186: AWWA C900
E187: =ROW() -> 187 | F187: PVC | G187: CIOD (DR)-C900 | H187: 24 | I187: 24 | J187: 165 psi DR-25 | K187: 25 | L187: =VLOOKUP(K187,Tables!$C$17:$D$34,2,FALSE) -> 165 | M187: 25.8 | N187: OD | O187: 0.48 | P187: 1.032 | Q187: 0.124 | R187: =VLOOKUP(F187,Tables!$G$5:$H$14,2,FALSE)*(M187-(P187+Q187*Tables!$C$6))*(P187+Q187*Tables!$C$6)*1.36136 -> 51.51346706 | S187: Controlled OD (DR-25) Cast Iron OD | T187: AWWA C900
E188: =ROW() -> 188 | F188: PVC | G188: CIOD (DR)-C900 | H188: 24 | I188: 24 | J188: =L188&" psi DR-"&K188 -> 200 psi DR-21 | K188: 21 | L188: =VLOOKUP(K188,Tables!$C$17:$D$34,2,FALSE) -> 200 | M188: 25.8 | N188: OD | O188: 0.48 | P188: 1.229 | Q188: 0.147 | R188: =VLOOKUP(F188,Tables!$G$5:$H$14,2,FALSE)*(M188-(P188+Q188*Tables!$C$6))*(P188+Q188*Tables!$C$6)*1.36136 -> 60.81357292 | S188: Controlled OD (DR-21) Cast Iron OD | T188: AWWA C900
E189: =ROW() -> 189 | F189: PVC | G189: CIOD (DR)-C900 | H189: 24 | I189: 24 | J189: 235 psi DR-18 | K189: 18 | L189: =VLOOKUP(K189,Tables!$C$17:$D$34,2,FALSE) -> 235 | M189: 25.8 | N189: OD | O189: 0.48 | P189: 1.433 | Q189: 0.172 | R189: =VLOOKUP(F189,Tables!$G$5:$H$14,2,FALSE)*(M189-(P189+Q189*Tables!$C$6))*(P189+Q189*Tables!$C$6)*1.36136 -> 70.29515038 | S189: Controlled OD (DR-18) Cast Iron OD | T189: AWWA C900
E190: =ROW() -> 190 | F190: PVC | G190: CIOD (DR)-C900 | H190: 24 | I190: 24 | J190: 250 psi DR-17 | K190: 17 | L190: =VLOOKUP(K190,Tables!$C$17:$D$34,2,FALSE) -> 250 | M190: 25.8 | N190: OD | O190: 0.48 | P190: 1.518 | Q190: 0.182 | R190: =VLOOKUP(F190,Tables!$G$5:$H$14,2,FALSE)*(M190-(P190+Q190*Tables!$C$6))*(P190+Q190*Tables!$C$6)*1.36136 -> 74.18410938 | S190: Controlled OD (DR-17) Cast Iron OD | T190: AWWA C900
E191: =ROW() -> 191 | F191: PVC | G191: CIOD (DR)-C900 | H191: 24 | I191: 24 | J191: 305 psi DR-14 | K191: 14 | L191: =VLOOKUP(K191,Tables!$C$17:$D$34,2,FALSE) -> 305 | M191: 25.8 | N191: OD | O191: 0.48 | P191: 1.843 | Q191: 0.221 | R191: =VLOOKUP(F191,Tables!$G$5:$H$14,2,FALSE)*(M191-(P191+Q191*Tables!$C$6))*(P191+Q191*Tables!$C$6)*1.36136 -> 88.78489447 | S191: Controlled OD (DR-14) Cast Iron OD | T191: AWWA C900
E192: =ROW() -> 192 | F192: PVC | G192: CIOD (DR)-C900 | H192: 30 | I192: 30 | J192: =" "&L192&" psi DR-"&K192 -> 80 psi DR-51 | K192: 51 | L192: =VLOOKUP(K192,Tables!$C$17:$D$34,2,FALSE) -> 80 | M192: 32 | N192: OD | O192: 0.6 | P192: 0.627 | Q192: 0.088 | R192: =VLOOKUP(F192,Tables!$G$5:$H$14,2,FALSE)*(M192-(P192+Q192*Tables!$C$6))*(P192+Q192*Tables!$C$6)*1.36136 -> 40.06545457 | S192: Controlled OD (DR-51) Cast Iron OD | T192: AWWA C900
E193: =ROW() -> 193 | F193: PVC | G193: CIOD (DR)-C900 | H193: 30 | I193: 30 | J193: 100 psi DR-41 | K193: 41 | L193: =VLOOKUP(K193,Tables!$C$17:$D$34,2,FALSE) -> 100 | M193: 32 | N193: OD | O193: 0.6 | P193: 0.78 | Q193: 0.109 | R193: =VLOOKUP(F193,Tables!$G$5:$H$14,2,FALSE)*(M193-(P193+Q193*Tables!$C$6))*(P193+Q193*Tables!$C$6)*1.36136 -> 49.56800745 | S193: Controlled OD (DR-41) Cast Iron OD | T193: AWWA C900
E194: =ROW() -> 194 | F194: PVC | G194: CIOD (DR)-C900 | H194: 30 | I194: 30 | J194: 125 psi DR-32.5 | K194: 32.5 | L194: =VLOOKUP(K194,Tables!$C$17:$D$34,2,FALSE) -> 125 | M194: 32 | N194: OD | O194: 0.6 | P194: 0.985 | Q194: 0.118 | R194: =VLOOKUP(F194,Tables!$G$5:$H$14,2,FALSE)*(M194-(P194+Q194*Tables!$C$6))*(P194+Q194*Tables!$C$6)*1.36136 -> 61.59512745 | S194: Controlled OD (DR-32.5) Cast Iron OD | T194: AWWA C900
E195: =ROW() -> 195 | F195: PVC | G195: CIOD (DR)-C900 | H195: 30 | I195: 30 | J195: 150 psi DR-27.5 | K195: 27.5 | L195: =VLOOKUP(K195,Tables!$C$17:$D$34,2,FALSE) -> 150 | M195: 32 | N195: OD | O195: 0.6 | P195: 1.164 | Q195: 0.14 | R195: =VLOOKUP(F195,Tables!$G$5:$H$14,2,FALSE)*(M195-(P195+Q195*Tables!$C$6))*(P195+Q195*Tables!$C$6)*1.36136 -> 72.3581104 | S195: Controlled OD (DR-27.5) Cast Iron OD | T195: AWWA C900
E196: =ROW() -> 196 | F196: PVC | G196: CIOD (DR)-C900 | H196: 30 | I196: 30 | J196: 165 psi DR-25 | K196: 25 | L196: =VLOOKUP(K196,Tables!$C$17:$D$34,2,FALSE) -> 165 | M196: 32 | N196: OD | O196: 0.6 | P196: 1.28 | Q196: 0.154 | R196: =VLOOKUP(F196,Tables!$G$5:$H$14,2,FALSE)*(M196-(P196+Q196*Tables!$C$6))*(P196+Q196*Tables!$C$6)*1.36136 -> 79.25235028 | S196: Controlled OD (DR-25) Cast Iron OD | T196: AWWA C900
E197: =ROW() -> 197 | F197: PVC | G197: CIOD (DR)-C900 | H197: 30 | I197: 30 | J197: 200 psi DR-21 | K197: 21 | L197: =VLOOKUP(K197,Tables!$C$17:$D$34,2,FALSE) -> 200 | M197: 32 | N197: OD | O197: 0.6 | P197: 1.524 | Q197: 0.183 | R197: =VLOOKUP(F197,Tables!$G$5:$H$14,2,FALSE)*(M197-(P197+Q197*Tables!$C$6))*(P197+Q197*Tables!$C$6)*1.36136 -> 93.55350821 | S197: Controlled OD (DR-21) Cast Iron OD | T197: AWWA C900
E198: =ROW() -> 198 | F198: PVC | G198: CIOD (DR)-C900 | H198: 30 | I198: 30 | J198: 235 psi DR-18 | K198: 18 | L198: =VLOOKUP(K198,Tables!$C$17:$D$34,2,FALSE) -> 235 | M198: 32 | N198: OD | O198: 0.6 | P198: 1.778 | Q198: 0.213 | R198: =VLOOKUP(F198,Tables!$G$5:$H$14,2,FALSE)*(M198-(P198+Q198*Tables!$C$6))*(P198+Q198*Tables!$C$6)*1.36136 -> 108.1651212 | S198: Controlled OD (DR-18) Cast Iron OD | T198: AWWA C900
E199: =ROW() -> 199 | F199: PVC | G199: CIOD (DR)-C900 | H199: 30 | I199: 30 | J199: 250 psi DR-17 | K199: 17 | L199: =VLOOKUP(K199,Tables!$C$17:$D$34,2,FALSE) -> 250 | M199: 32 | N199: OD | O199: 0.6 | P199: 1.882 | Q199: 0.226 | R199: =VLOOKUP(F199,Tables!$G$5:$H$14,2,FALSE)*(M199-(P199+Q199*Tables!$C$6))*(P199+Q199*Tables!$C$6)*1.36136 -> 114.0873658 | S199: Controlled OD (DR-17) Cast Iron OD | T199: AWWA C900
E200: =ROW() -> 200 | F200: PVC | G200: CIOD (DR)-C900 | H200: 36 | I200: 36 | J200: =" "&L200&" psi DR-"&K200 -> 80 psi DR-51 | K200: 51 | L200: =VLOOKUP(K200,Tables!$C$17:$D$34,2,FALSE) -> 80 | M200: 38.3 | N200: OD | O200: 0.72 | P200: 0.751 | Q200: 0.105 | R200: =VLOOKUP(F200,Tables!$G$5:$H$14,2,FALSE)*(M200-(P200+Q200*Tables!$C$6))*(P200+Q200*Tables!$C$6)*1.36136 -> 57.42191002 | S200: Controlled OD (DR-51) Cast Iron OD | T200: AWWA C900
... 2000 more rows

Sheet Tables (hidden)
C2: Additional Input | G2: Specific Gravity Table
C3: Resin Used For Polyethylene (PE) Pipe Weight Estimation | G3: Material Type | H3: Specific Gravity | I3: Warning | U3: ASABE, ASTM & MFR | V3: Year | W3: Title | X3: Pipe Material Type
C4: =IF(C5=4710,0.958,0.955) -> 0.958 | G4: [-] | H4: [-] | P4: PVC Schedule 40, 80, 120 | U4: AgPipe Old PWC | V4: 20 | W4: Concrete Cylinder Pipe, Pipe Weight taken from AgPipe Data Tables using the Old Pipe Weight Calculator tables. | X4: Concrete RCP | AK4: 1 Pipe Material Type | AL4: RAW!F2:F3000
C5: 4710 | G5: Typical Scenario (PE) | H5: =IF(C5=4710,0.958,0.955) -> 0.958 | I5: =IF(OR(AND(C5=4710,H5<>0.958),AND(C5=3408,H5<>0.955)),"PE(Typ) SG="&H5&" vs "&C4,"") ->  | P5: Dia | Q5: 40 | R5: 80 | S5: 120 | U5: ASABE S376.3 | V5: 20 | W5: Design, Installation and Performance of Underground, Thermoplastic Irrigation Pipelines | X5: PVC | AK5: 2 Pipe Diameter Standard | AL5: RAW!G2:G3000
C6: =IF(C9="Min WT",0,IF(C9="Max WT",1,0.5)) -> 0.5 | G6: ABS | H6: 1.05 | I6: =IF(H6<>1.05,"ABS SG="&H6&" vs 1.05","") ->  | P6: [in] | Q6: Pressure Class [psi] | U6: ASTM A53 | V6: 24 | W6: Standard Specification for Cold-Formed Welded and Seamless Carbon Steel Structural Tubing in Rounds and Shapes | X6: Steel | AK6: 3 Nominal Diameter [in] | AL6: RAW!H2:H3000
C7: Method Used for Estimating Average Wall Thickness (see note) | G7: Aluminum | H7: 2.7 | I7: =IF(H7<>2.7,"Alum. SG="&H7&" vs 2.70","") ->  | P7: 0.125 | Q7: 810 | R7: 1230 | U7: ASTM A500 | V7: 23 | W7: Standard Practice for Structural Design of Corruganted Steel Pipe, Pipe-Arches, and Arches for Storm and Sanitary Sewers and Other Buried Applications | X7: Steel | AK7: 4 SDR_Pressure Combined | AL7: RAW!J2:J3000
C8: Estimating Average Wall Thickness (see note) | G8: Concrete RCP | H8: 2.72 | I8: =IF(H8<>2.72,"RCP SG="&H8&" vs 2.72","") ->  | P8: 0.25 | Q8: 780 | R8: 1130 | U8: ASTM A796 | V8: 21 | W8: Standard Practice for Structural Design of Corruganted Steel Pipe, Pipe-Arches, and Arches for Storm and Sanitary Sewers and Other Buried Applications | X8: Steel | AK8: 2 Pressure [psi] | AL8: RAW!L2:L3000
C9: Ave WT | G9: Concrete NRCP | H9: 2.56 | I9: =IF(H9<>2.56,"NRCP SG="&H9&" vs 2.56","") ->  | P9: 0.375 | Q9: 620 | R9: 920 | U9: ASTM B241 | V9: 22 | W9: Standard Specification for Aluminum and Aluminum-Alloy Seamless Pipe and Seamless Extruded Tube | X9: Aluminum | AK9: 4 OD/ID - Pipe Dia. Stan. | AL9: RAW!S2:S3000
G10: PE | H10: =IF(C5=4710,0.958,0.955) -> 0.958 | I10: =IF(OR(AND(C5=4710,H10<>0.958),AND(C5=3408,H10<>0.955)),"PE SG="&H10&" vs "&C4,"") ->  | P10: 0.5 | Q10: 600 | R10: 850 | S10: 1010 | U10: ASTM C76 | V10: 22 | W10: Standard Specification for Reinforced Concrete Culvert, Storm Drain, and Sewer Pipe | X10: Concrete RCP | AK10: 1 ASTM | AL10: RAW!T2:T3000
C11: PVC 112-/1220 | G11: PEX | H11: 0.926 | I11: =IF(H11<>0.926,"PEX SG="&H11&" vs 0.926","") ->  | P11: 0.75 | Q11: 480 | R11: 690 | S11: 770 | U11: ASTM C118 | V11: 24 | W11: Standard Speciﬁcation for Concrete Pipe for Irrigation or Drainage | X11: Concrete NRCP
G12: PVC | H12: 1.4 | I12: =IF(H12<>1.4,"PVC SG="&H12&" vs 1.40","") ->  | P12: 1 | Q12: 450 | R12: 630 | S12: 720 | U12: ASTM C505 | V12: 19 | W12: Standard Specification for Nonreinforced Concrete Irrigation Pipe with Rubber Gasket Joints | X12: Concrete RCP
C13: DR | D13: ASTM D2241 | E13: ASTM D3034 | G13: Steel | H13: 7.84 | I13: =IF(H13<>7.84,"Steel SG="&H13&" vs 7.84","") ->  | P13: 1.25 | Q13: 370 | R13: 520 | S13: 600 | U13: ASTM D1785 | V13: 21 | W13: Standard Specification for Poly(Vinyl Chloride) (PVC) Plastic Pipe, Schedules 40, 80, and 120 | X13: PVC
D14: PC | E14: Sewer Pipe | G14: Custom | H14: 0.959 | P14: 1.5 | Q14: 330 | R14: 470 | S14: 540 | U14: ASTM D2239 | V14: 25 | W14: Standard Specification for Polyethylene (PE) Plastic Pipe (SIDR-PR) Based on Controlled Inside Diameter | X14: PE
E15: Stiffness | P15: 2 | Q15: 280 | R15: 400 | S15: 470 | U15: ASTM D2241 | V15: 25 | W15: Standard Specification for Poly(Vinyl Chloride) (PVC) Pressure-Rated Pipe (SDR Series) | X15: PVC
C16: [-] | D16: [psi] | E16: [psi] | P16: 2.5 | Q16: 300 | R16: 420 | S16: 470 | U16: ASTM D2661 | V16: 24 | W16: Standard Specification for Acrylonitrile-Butadiene-Styrene (ABS) Scheduled 40 Plastic Drain, Waste, and Vent Pipe and Fittings | X16: ABS
D17: 22 | P17: 3 | Q17: 260 | R17: 370 | S17: 440 | U17: ASTM D2737 | V17: 25 | W17: Standard Specification for Polyethylene (PE) Plastic Tubing | X17: PE
D18: 44 | P18: 3.5 | Q18: 240 | R18: 350 | S18: 380 | U18: ASTM D3034 | V18: 24 | W18: Standard Specification for Type PSM Poly(Vinyl Chloride) (PVC) Sewer Pipe and Fittings | X18: PVC
C19: 81 | D19: 50 | P19: 4 | Q19: 220 | R19: 320 | S19: 430 | U19: ASTM D3035 | V19: 22 | W19: Standard Specification for Polyethylene (PE) Plastic Pipe (DR-PR) Based on Controlled Outside Diameter | X19: PE
C20: 64 | D20: 63 | P20: 5 | Q20: 190 | R20: 290 | S20: 400 | U20: ASTM F714 | V20: 25 | W20: Standard Specification for Polyethylene (PE) Plastic Pipe (DR-PR) Based on Outside Diameter | X20: PE
C21: 51 | D21: 80 | P21: 6 | Q21: 180 | R21: 280 | S21: 370 | U21: ASTM F876 | V21: 25 | W21: Standard Specification for Crosslinked Polyethylene (PEX) Tubing | X21: PEX
C22: 50 | D22: 81 | P22: 8 | Q22: 160 | R22: 250 | S22: 380 | U22: ASTM F2648 | V22: 23 | W22: Standard Specification for 50mm to 1500mm [2 in. to 60 in.] Annular Corrugated Profile Wall Polyethylene (PE) Pipe and Fittings for Land Drainage Applications - (Weight Comes from Average of ADS, Hancor, Diamond Plastic) | X22: PE
C23: 41 | D23: 100 | E23: 28 | P23: 10 | Q23: 140 | R23: 230 | S23: 370 | U23: ASTM F2969 | V23: 20 | W23: Standard Specification for Acrylonitrile-Butadiene-Styrene (ABS) IPS Dimensioned Pressure Pipe | X23: ABS
C24: 35 | D24: 118 | E24: 46 | P24: 12 | Q24: 130 | R24: 230 | S24: 340 | U24: AWWA C302 | V24: 22 | W24: Reinforced Concrete Pressure Pipe, Noncylinder Type | X24: Concrete RCP
C25: 32.5 | D25: 125 | P25: 14 | Q25: 130 | R25: 220 | U25: AWWA C900 | V25: 22 | W25: Standard Polyvinyl Chloride (PVC) Pressure Pipe and Fabricated Fittings, 4 In. Through 60 In. (100 mm through 1,500 mm) | X25: PVC
C26: 27.5 | D26: 150 | P26: 16 | Q26: 130 | R26: 220 | U26: MFR ADS | V26: 23 | W26: Values taken from the manufacturer of ADS-N12 which follows AASHTO M294, M252, and ASTM F2648-23 Standard Specification for 50mm to 1500mm [2 in. to 60 in.] Annular Corrugated Profile Wall Polyethylene (PE) Pipe and Fittings for Land Drainage Applications | X26: PE
C27: 25 | D27: 165 | P27: 18 | Q27: 130 | R27: 220 | U27: MFR DR5-6 (PE) | V27: 25 | W27: https://unitedpolysystems.com | X27: PE
C28: 26 | D28: 160 | E28: 115 | P28: 20 | Q28: 120 | R28: 220 | U28: MFR Layflat (PE) | V28: 25 | W28: https://brentwoodplastics.com/handy-math-feet-layflat | X28: PE (Layflat)
C29: 23.5 | D29: 178 | E29: 153 | P29: 24 | Q29: 120 | R29: 210 | U29: MFR Layflat (PVC) | V29: 25 | W29: https://static1.squarespace.com/static/5afdd022697a98383c7bd31d/t/5b4e34ec8a922d1898377b0b/1531852018433/RAGCO+PVC+DISCHARGE+HOSE+PRODUCTS.pdf | X29: PVC (Layflat)
C30: 21 | D30: 200 | U30: MFR Layflat (PVC1) | V30: 25 | W30: https://toppower.en.made-in-china.com/product/bdYTpDXhANrV/China-2-3-4-Inch-Flexible-PVC-Layflat-Hose-Pipe-for-Agricultural-Irrigation.html | X30: PVC (Layflat)
C31: 18 | D31: 235
C32: 17 | D32: 250 | U32: AWWA C303 | V32: 24 | W32: Concrete Pressure Pipe, Bar-Wrapped Steel-Cylinder Type | X32: Not added
C33: 14 | D33: 305
C34: 13.5 | D34: 315
C35: IPS-SDR | D35: PIP | E35: Sewer | F35: Open and Dual Wall (PS10)
C36: AWWA | F36: RSCs 40, 63, 100, 160
B38: PE 3408/4710 | C38: DR | D38: ASTM D 3035 (SDR) | F38: ASTM D 2239 (SIDR) | H38: ASTM F 714 (SDR) | J38: ASTM D 2737 (SDR)
D40: PE3408/3608 | E40: PE4710 | F40: PE3408/3608 | G40: PE4710 | H40: PE3408/3608 | I40: PE4710 | J40: PE3408/3608 | K40: PE4710
D41: Pressure Class [psi] | F41: Pressure Class [psi] | H41: Pressure Class [psi] | J41: Pressure Class [psi]
C42: 41 | D42: 40 | E42: 50 | F42: 40 | G42: 50 | H42: 40 | I42: 50
C43: 32.5 | D43: 50 | E43: 65 | F43: 50 | G43: 60 | H43: 51 | I43: 63
C44: 26 | D44: 65 | E44: 80 | F44: 60 | G44: 75 | H44: 64 | I44: 80
C45: 21 | D45: 80 | E45: 100 | F45: 75 | G45: 90 | H45: 80 | I45: 100
C46: 19 | D46: 90 | E46: 111 | F46: 80 | G46: 100
C47: 17 | D47: 100 | E47: 125 | F47: 90 | G47: 110 | H47: 100 | I47: 125
C48: 15 | D48: 115 | E48: 145 | F48: 100 | G48: 125
C49: 15.5 | D49: 110 | E49: 140 | F49: 105 | G49: 130
C50: 13.5 | D50: 130 | E50: 160 | F50: 110 | G50: 140 | H50: 128 | I50: 160
C51: 11.5 | D51: 155 | E51: 190 | F51: 130 | G51: 160
C52: 11 | D52: 160 | E52: 200 | F52: 135 | G52: 165 | H52: 160 | I52: 200 | J52: 160 | K52: 200
C53: 9 | D53: 200 | E53: 250 | F53: 160 | G53: 200 | H53: 200 | I53: 250 | J53: 200 | K53: 250
C54: 7.3 | D54: 254 | E54: 317 | F54: 190 | G54: 240 | J54: 250 | K54: 315
C55: 7 | D55: 267 | E55: 335 | F55: 200 | G55: 250 | I55: 335
B56: MFR | C56: 6 | D56: 315 | E56: 400
C57: 5.3 | D57: 355 | E57: 400 | F57: 250 | G57: 315
B58: MFR | C58: 5 | D58: 400 | E58: 500 | F58: 250 | G58: 315
C59: Note: Shaded Values are Computed from Graphs
C62: For Steel: Compute Pressure Rating
C63: P = 2*S*t/D
C64: Where: | D64: S = Allowable stress [psi] | F64: 15000 | G64: Assumed for ASTM A53
D65: t = wall thickness [in] | G65: NEH Part 636 CH52
D66: D = Outer Diameter [in]
CE69: F | CF69: L | CG69: H | CH69: S | CI69: E
CE70: =VLOOKUP(Calc_Adv!B9,Tables!AK4:AL10,2,FALSE) -> RAW!H2:H3000 | CF70: =VLOOKUP(Calc_Adv!C9,Tables!AK4:AL10,2,FALSE) -> RAW!L2:L3000 | CG70: =VLOOKUP(Calc_Adv!D9,Tables!AK4:AL10,2,FALSE) -> RAW!F2:F3000 | CH70: =VLOOKUP(Calc_Adv!E9,Tables!AK4:AL10,2,FALSE) -> RAW!J2:J3000
B71: Table 1: | C71: Table 2: | D71: Table 3: | E71: Table 4: | F71: 1st Row() | G71: Table 5: | H71: Table 6: | I71: Table 7: | J71: 2nd Row() | K71: Table 8: | L71: Table 9: | M71: Table 10: | N71: 3rd Row() | O71: Table 11: | P71: Table 12: | Q71: Table 13: | R71: 4th Row() | S71: Table 14: | T71: Table 15: | U71: Table 16: | V71: 5th Row() | W71: Table 17: | X71: Table 18: | Y71: Table 19: | Z71: 6th Row() | AA71: Table 20: | AB71: Table 21: | AC71: Table 22: | AD71: 7th Row() | AE71: Table 23: | AF71: Table 24: | AG71: Table 25: | AH71: 8th Row() | AI71: Table 26: | AJ71: Table 27: | AK71: Table 28: | AL71: 9th Row() | AM71: Table 29: | AN71: Table 30: | AO71: Table 31: | AP71: 10th Row() | AQ71: Table 32 | AR71: Table 33 | AS71: Table 34 | AT71: 1st Row() Plan | AU71: Table 35 | AV71: Table 36 | AW71: Table 37 | AX71: 2nd Row() Plan | AY71: Table 38 | AZ71: Table 39 | BA71: Table 40 | BB71: 3rd Row() Plan | BC71: Table 41 | BD71: Table 42 | BE71: Table 43 | BF71: 4th Row() Plan | BG71: Table 44 | BH71: Table 45 | BI71: Table 46 | BJ71: 5th Row() Plan | BK71: Table 47 | BL71: Table 48 | BM71: Table 49 | BN71: 6th Row() Plan | BO71: Table 50 | BP71: Table 51 | BQ71: Table 52 | BR71: 7th Row() Plan | BS71: Table 53 | BT71: Table 54 | BU71: Table 55 | BV71: 8th Row() Plan | BW71: Table 56 | BX71: Table 57 | BY71: Table 58 | BZ71: 9thRow() Plan | CA71: Table 59 | CB71: Table 60 | CC71: Table 61 | CD71: 10th Row() Plan | CE71: Table 1A | CF71: Table 62 | CG71: Table 63 | CH71: Table 64 | CI71: 1st Row() Plan | CJ71: Table 65 | CK71: Table 66 | CL71: Table 67 | CM71: 2nd Row() Plan | CN71: Table 68 | CO71: Table 69 | CP71: Table 70 | CQ71: 3rd Row() Plan | CR71: Table 71 | CS71: Table 72 | CT71: Table 73 | CU71: 4th Row() Plan | CV71: Table 74 | CW71: Table 75 | CX71: Table 76 | CY71: 5th Row() Plan | CZ71: Table 77 | DA71: Table 78 | DB71: Table 79 | DC71: 6th Row() Plan | DD71: Table 80 | DE71: Table 81 | DF71: Table 82 | DG71: 7th Row() Plan | DH71: Table 83 | DI71: Table 84 | DJ71: Table 85 | DK71: 8th Row() Plan | DL71: Table 86 | DM71: Table 87 | DN71: Table 88 | DO71: 9thRow() Plan | DP71: Table 89 | DQ71: Table 90 | DR71: Table 91 | DS71: 10th Row() Plan
B72: =_xlfn._xlws.SORT(_xlfn.UNIQUE(RAW!F2:F2200)) -> Typical Scenario (PE) | C72: =_xlfn._xlws.SORT(_xlfn.UNIQUE(_xlfn._xlws.FILTER(RAW!G2:G2200,RAW!F2:F2200=Calc_Engr!B10,""))) ->  | D72: =_xlfn._xlws.SORT(_xlfn.UNIQUE(_xlfn._xlws.FILTER(RAW!H2:H2200,(RAW!F2:F2200=Calc_Engr!B10)*(RAW!G2:G2200=Calc_Engr!C10),""))) ->  | E72: =_xlfn._xlws.SORT(_xlfn.UNIQUE(_xlfn._xlws.FILTER(RAW!J2:J2200,(RAW!F2:F2200=Calc_Engr!B10)*(RAW!G2:G2200=Calc_Engr!C10)*(RAW!H2:H2200=Calc_Engr!D10),""))) ->  | F72: =_xlfn._xlws.SORT(_xlfn.UNIQUE(_xlfn._xlws.FILTER(RAW!E2:E2200,(RAW!F2:F2200=Calc_Engr!B10)*(RAW!G2:G2200=Calc_Engr!C10)*(RAW!H2:H2200=Calc_Engr!D10)*(RAW!J2:J2200=Calc_Engr!E10),""))) ->  | G72: =_xlfn._xlws.SORT(_xlfn.UNIQUE(_xlfn._xlws.FILTER(RAW!G2:G2200,RAW!F2:F2200=Calc_Engr!B11,""))) ->  | H72: =_xlfn._xlws.SORT(_xlfn.UNIQUE(_xlfn._xlws.FILTER(RAW!H2:H2200,(RAW!F2:F2200=Calc_Engr!B11)*(RAW!G2:G2200=Calc_Engr!C11),""))) ->  | I72: =_xlfn._xlws.SORT(_xlfn.UNIQUE(_xlfn._xlws.FILTER(RAW!J2:J2200,(RAW!F2:F2200=Calc_Engr!B11)*(RAW!G2:G2200=Calc_Engr!C11)*(RAW!H2:H2200=Calc_Engr!D11),""))) ->  | J72: =_xlfn._xlws.SORT(_xlfn.UNIQUE(_xlfn._xlws.FILTER(RAW!E2:E2200,(RAW!F2:F2200=Calc_Engr!B11)*(RAW!G2:G2200=Calc_Engr!C11)*(RAW!H2:H2200=Calc_Engr!D11)*(RAW!J2:J2200=Calc_Engr!E11),""))) ->  | K72: =_xlfn._xlws.SORT(_xlfn.UNIQUE(_xlfn._xlws.FILTER(RAW!G2:G2200,RAW!F2:F2200=Calc_Engr!B12,""))) ->  | L72: =_xlfn._xlws.SORT(_xlfn.UNIQUE(_xlfn._xlws.FILTER(RAW!H2:H2200,(RAW!F2:F2200=Calc_Engr!B12)*(RAW!G2:G2200=Calc_Engr!C12),""))) ->  | M72: =_xlfn._xlws.SORT(_xlfn.UNIQUE(_xlfn._xlws.FILTER(RAW!J2:J2200,(RAW!F2:F2200=Calc_Engr!B12)*(RAW!G2:G2200=Calc_Engr!C12)*(RAW!H2:H2200=Calc_Engr!D12),""))) ->  | N72: =_xlfn._xlws.SORT(_xlfn.UNIQUE(_xlfn._xlws.FILTER(RAW!E2:E2200,(RAW!F2:F2200=Calc_Engr!B12)*(RAW!G2:G2200=Calc_Engr!C12)*(RAW!H2:H2200=Calc_Engr!D12)*(RAW!J2:J2200=Calc_Engr!E12),""))) ->  | O72: =_xlfn._xlws.SORT(_xlfn.UNIQUE(_xlfn._xlws.FILTER(RAW!G2:G2200,RAW!F2:F2200=Calc_Engr!B13,""))) ->  | P72: =_xlfn._xlws.SORT(_xlfn.UNIQUE(_xlfn._xlws.FILTER(RAW!H2:H2200,(RAW!F2:F2200=Calc_Engr!B13)*(RAW!G2:G2200=Calc_Engr!C13),""))) ->  | Q72: =_xlfn._xlws.SORT(_xlfn.UNIQUE(_xlfn._xlws.FILTER(RAW!J2:J2200,(RAW!F2:F2200=Calc_Engr!B13)*(RAW!G2:G2200=Calc_Engr!C13)*(RAW!H2:H2200=Calc_Engr!D13),""))) ->  | R72: =_xlfn._xlws.SORT(_xlfn.UNIQUE(_xlfn._xlws.FILTER(RAW!E2:E2200,(RAW!F2:F2200=Calc_Engr!B13)*(RAW!G2:G2200=Calc_Engr!C13)*(RAW!H2:H2200=Calc_Engr!D13)*(RAW!J2:J2200=Calc_Engr!E13),""))) ->  | S72: =_xlfn._xlws.SORT(_xlfn.UNIQUE(_xlfn._xlws.FILTER(RAW!G2:G2200,RAW!F2:F2200=Calc_Engr!B14,""))) ->  | T72: =_xlfn._xlws.SORT(_xlfn.UNIQUE(_xlfn._xlws.FILTER(RAW!H2:H2200,(RAW!F2:F2200=Calc_Engr!B14)*(RAW!G2:G2200=Calc_Engr!C14),""))) ->  | U72: =_xlfn._xlws.SORT(_xlfn.UNIQUE(_xlfn._xlws.FILTER(RAW!J2:J2200,(RAW!F2:F2200=Calc_Engr!B14)*(RAW!G2:G2200=Calc_Engr!C14)*(RAW!H2:H2200=Calc_Engr!D14),""))) ->  | V72: =_xlfn._xlws.SORT(_xlfn.UNIQUE(_xlfn._xlws.FILTER(RAW!E2:E2200,(RAW!F2:F2200=Calc_Engr!B14)*(RAW!G2:G2200=Calc_Engr!C14)*(RAW!H2:H2200=Calc_Engr!D14)*(RAW!J2:J2200=Calc_Engr!E14),""))) ->  | W72: =_xlfn._xlws.SORT(_xlfn.UNIQUE(_xlfn._xlws.FILTER(RAW!G2:G2200,RAW!F2:F2200=Calc_Engr!B15,""))) ->  | X72: =_xlfn._xlws.SORT(_xlfn.UNIQUE(_xlfn._xlws.FILTER(RAW!H2:H2200,(RAW!F2:F2200=Calc_Engr!B15)*(RAW!G2:G2200=Calc_Engr!C15),""))) ->  | Y72: =_xlfn._xlws.SORT(_xlfn.UNIQUE(_xlfn._xlws.FILTER(RAW!J2:J2200,(RAW!F2:F2200=Calc_Engr!B15)*(RAW!G2:G2200=Calc_Engr!C15)*(RAW!H2:H2200=Calc_Engr!D15),""))) ->  | Z72: =_xlfn._xlws.SORT(_xlfn.UNIQUE(_xlfn._xlws.FILTER(RAW!E2:E2200,(RAW!F2:F2200=Calc_Engr!B15)*(RAW!G2:G2200=Calc_Engr!C15)*(RAW!H2:H2200=Calc_Engr!D15)*(RAW!J2:J2200=Calc_Engr!E15),""))) ->  | AA72: =_xlfn._xlws.SORT(_xlfn.UNIQUE(_xlfn._xlws.FILTER(RAW!G2:G2200,RAW!F2:F2200=Calc_Engr!B16,""))) ->  | AB72: =_xlfn._xlws.SORT(_xlfn.UNIQUE(_xlfn._xlws.FILTER(RAW!H2:H2200,(RAW!F2:F2200=Calc_Engr!B16)*(RAW!G2:G2200=Calc_Engr!C16),""))) ->  | AC72: =_xlfn._xlws.SORT(_xlfn.UNIQUE(_xlfn._xlws.FILTER(RAW!J2:J2200,(RAW!F2:F2200=Calc_Engr!B16)*(RAW!G2:G2200=Calc_Engr!C16)*(RAW!H2:H2200=Calc_Engr!D16),""))) ->  | AD72: =_xlfn._xlws.SORT(_xlfn.UNIQUE(_xlfn._xlws.FILTER(RAW!E2:E2200,(RAW!F2:F2200=Calc_Engr!B16)*(RAW!G2:G2200=Calc_Engr!C16)*(RAW!H2:H2200=Calc_Engr!D16)*(RAW!J2:J2200=Calc_Engr!E16),""))) ->  | AE72: =_xlfn._xlws.SORT(_xlfn.UNIQUE(_xlfn._xlws.FILTER(RAW!G2:G2200,RAW!F2:F2200=Calc_Engr!B17,""))) ->  | AF72: =_xlfn._xlws.SORT(_xlfn.UNIQUE(_xlfn._xlws.FILTER(RAW!H2:H2200,(RAW!F2:F2200=Calc_Engr!B17)*(RAW!G2:G2200=Calc_Engr!C17),""))) ->  | AG72: =_xlfn._xlws.SORT(_xlfn.UNIQUE(_xlfn._xlws.FILTER(RAW!J2:J2200,(RAW!F2:F2200=Calc_Engr!B17)*(RAW!G2:G2200=Calc_Engr!C17)*(RAW!H2:H2200=Calc_Engr!D17),""))) ->  | AH72: =_xlfn._xlws.SORT(_xlfn.UNIQUE(_xlfn._xlws.FILTER(RAW!E2:E2200,(RAW!F2:F2200=Calc_Engr!B17)*(RAW!G2:G2200=Calc_Engr!C17)*(RAW!H2:H2200=Calc_Engr!D17)*(RAW!J2:J2200=Calc_Engr!E17),""))) ->  | AI72: =_xlfn._xlws.SORT(_xlfn.UNIQUE(_xlfn._xlws.FILTER(RAW!G2:G2200,RAW!F2:F2200=Calc_Engr!B18,""))) ->  | AJ72: =_xlfn._xlws.SORT(_xlfn.UNIQUE(_xlfn._xlws.FILTER(RAW!H2:H2200,(RAW!F2:F2200=Calc_Engr!B18)*(RAW!G2:G2200=Calc_Engr!C18),""))) ->  | AK72: =_xlfn._xlws.SORT(_xlfn.UNIQUE(_xlfn._xlws.FILTER(RAW!J2:J2200,(RAW!F2:F2200=Calc_Engr!B18)*(RAW!G2:G2200=Calc_Engr!C18)*(RAW!H2:H2200=Calc_Engr!D18),""))) ->  | AL72: =_xlfn._xlws.SORT(_xlfn.UNIQUE(_xlfn._xlws.FILTER(RAW!E2:E2200,(RAW!F2:F2200=Calc_Engr!B18)*(RAW!G2:G2200=Calc_Engr!C18)*(RAW!H2:H2200=Calc_Engr!D18)*(RAW!J2:J2200=Calc_Engr!E18),""))) ->  | AM72: =_xlfn._xlws.SORT(_xlfn.UNIQUE(_xlfn._xlws.FILTER(RAW!G2:G2200,RAW!F2:F2200=Calc_Engr!B19,""))) ->  | AN72: =_xlfn._xlws.SORT(_xlfn.UNIQUE(_xlfn._xlws.FILTER(RAW!H2:H2200,(RAW!F2:F2200=Calc_Engr!B19)*(RAW!G2:G2200=Calc_Engr!C19),""))) ->  | AO72: =_xlfn._xlws.SORT(_xlfn.UNIQUE(_xlfn._xlws.FILTER(RAW!J2:J2200,(RAW!F2:F2200=Calc_Engr!B19)*(RAW!G2:G2200=Calc_Engr!C19)*(RAW!H2:H2200=Calc_Engr!D19),""))) ->  | AP72: =_xlfn._xlws.SORT(_xlfn.UNIQUE(_xlfn._xlws.FILTER(RAW!E2:E2200,(RAW!F2:F2200=Calc_Engr!B19)*(RAW!G2:G2200=Calc_Engr!C19)*(RAW!H2:H2200=Calc_Engr!D19)*(RAW!J2:J2200=Calc_Engr!E19),""))) ->  | AQ72: =_xlfn._xlws.SORT(_xlfn.UNIQUE(_xlfn._xlws.FILTER(RAW!L2:L2200,RAW!F2:F2200=Calc_Plan!B10,""))) -> 0 | AR72: =_xlfn._xlws.SORT(_xlfn.UNIQUE(_xlfn._xlws.FILTER(RAW!H2:H2200,(RAW!F2:F2200=Calc_Plan!B10)*(RAW!L2:L2200=Calc_Plan!C10),""))) ->  | AS72: =_xlfn._xlws.SORT(_xlfn.UNIQUE(_xlfn._xlws.FILTER(RAW!S2:S2200,(RAW!F2:F2200=Calc_Plan!B10)*(RAW!L2:L2200=Calc_Plan!C10)*(RAW!H2:H2200=Calc_Plan!D10),""))) ->  | AT72: =_xlfn._xlws.SORT(_xlfn.UNIQUE(_xlfn._xlws.FILTER(RAW!E2:E2200,(RAW!F2:F2200=Calc_Plan!B10)*(RAW!L2:L2200=Calc_Plan!C10)*(RAW!H2:H2200=Calc_Plan!D10)*(RAW!S2:S2200=Calc_Plan!E10),""))) ->  | AU72: =_xlfn._xlws.SORT(_xlfn.UNIQUE(_xlfn._xlws.FILTER(RAW!L2:L2200,RAW!F2:F2200=Calc_Plan!B11,""))) -> 0 | AV72: =_xlfn._xlws.SORT(_xlfn.UNIQUE(_xlfn._xlws.FILTER(RAW!H2:H2200,(RAW!F2:F2200=Calc_Plan!B11)*(RAW!L2:L2200=Calc_Plan!C11),""))) ->  | AW72: =_xlfn._xlws.SORT(_xlfn.UNIQUE(_xlfn._xlws.FILTER(RAW!S2:S2200,(RAW!F2:F2200=Calc_Plan!B11)*(RAW!L2:L2200=Calc_Plan!C11)*(RAW!H2:H2200=Calc_Plan!D11),""))) ->  | AX72: =_xlfn._xlws.SORT(_xlfn.UNIQUE(_xlfn._xlws.FILTER(RAW!E2:E2200,(RAW!F2:F2200=Calc_Plan!B11)*(RAW!L2:L2200=Calc_Plan!C11)*(RAW!H2:H2200=Calc_Plan!D11)*(RAW!S2:S2200=Calc_Plan!E11),""))) ->  | AY72: =_xlfn._xlws.SORT(_xlfn.UNIQUE(_xlfn._xlws.FILTER(RAW!L2:L2200,RAW!F2:F2200=Calc_Plan!B12,""))) -> 0 | AZ72: =_xlfn._xlws.SORT(_xlfn.UNIQUE(_xlfn._xlws.FILTER(RAW!H2:H2200,(RAW!F2:F2200=Calc_Plan!B12)*(RAW!L2:L2200=Calc_Plan!C12),""))) ->  | BA72: =_xlfn._xlws.SORT(_xlfn.UNIQUE(_xlfn._xlws.FILTER(RAW!S2:S2200,(RAW!F2:F2200=Calc_Plan!B12)*(RAW!L2:L2200=Calc_Plan!C12)*(RAW!H2:H2200=Calc_Plan!D12),""))) ->  | BB72: =_xlfn._xlws.SORT(_xlfn.UNIQUE(_xlfn._xlws.FILTER(RAW!E2:E2200,(RAW!F2:F2200=Calc_Plan!B12)*(RAW!L2:L2200=Calc_Plan!C12)*(RAW!H2:H2200=Calc_Plan!D12)*(RAW!S2:S2200=Calc_Plan!E12),""))) ->  | BC72: =_xlfn._xlws.SORT(_xlfn.UNIQUE(_xlfn._xlws.FILTER(RAW!L2:L2200,RAW!F2:F2200=Calc_Plan!B13,""))) -> 0 | BD72: =_xlfn._xlws.SORT(_xlfn.UNIQUE(_xlfn._xlws.FILTER(RAW!H2:H2200,(RAW!F2:F2200=Calc_Plan!B13)*(RAW!L2:L2200=Calc_Plan!C13),""))) ->  | BE72: =_xlfn._xlws.SORT(_xlfn.UNIQUE(_xlfn._xlws.FILTER(RAW!S2:S2200,(RAW!F2:F2200=Calc_Plan!B13)*(RAW!L2:L2200=Calc_Plan!C13)*(RAW!H2:H2200=Calc_Plan!D13),""))) ->  | BF72: =_xlfn._xlws.SORT(_xlfn.UNIQUE(_xlfn._xlws.FILTER(RAW!E2:E2200,(RAW!F2:F2200=Calc_Plan!B13)*(RAW!L2:L2200=Calc_Plan!C13)*(RAW!H2:H2200=Calc_Plan!D13)*(RAW!S2:S2200=Calc_Plan!E13),""))) ->  | BG72: =_xlfn._xlws.SORT(_xlfn.UNIQUE(_xlfn._xlws.FILTER(RAW!L2:L2200,RAW!F2:F2200=Calc_Plan!B14,""))) -> 0 | BH72: =_xlfn._xlws.SORT(_xlfn.UNIQUE(_xlfn._xlws.FILTER(RAW!H2:H2200,(RAW!F2:F2200=Calc_Plan!B14)*(RAW!L2:L2200=Calc_Plan!C14),""))) ->  | BI72: =_xlfn._xlws.SORT(_xlfn.UNIQUE(_xlfn._xlws.FILTER(RAW!S2:S2200,(RAW!F2:F2200=Calc_Plan!B14)*(RAW!L2:L2200=Calc_Plan!C14)*(RAW!H2:H2200=Calc_Plan!D14),""))) ->  | BJ72: =_xlfn._xlws.SORT(_xlfn.UNIQUE(_xlfn._xlws.FILTER(RAW!E2:E2200,(RAW!F2:F2200=Calc_Plan!B14)*(RAW!L2:L2200=Calc_Plan!C14)*(RAW!H2:H2200=Calc_Plan!D14)*(RAW!S2:S2200=Calc_Plan!E14),""))) ->  | BK72: =_xlfn._xlws.SORT(_xlfn.UNIQUE(_xlfn._xlws.FILTER(RAW!L2:L2200,RAW!F2:F2200=Calc_Plan!B15,""))) -> 0 | BL72: =_xlfn._xlws.SORT(_xlfn.UNIQUE(_xlfn._xlws.FILTER(RAW!H2:H2200,(RAW!F2:F2200=Calc_Plan!B15)*(RAW!L2:L2200=Calc_Plan!C15),""))) ->  | BM72: =_xlfn._xlws.SORT(_xlfn.UNIQUE(_xlfn._xlws.FILTER(RAW!S2:S2200,(RAW!F2:F2200=Calc_Plan!B15)*(RAW!L2:L2200=Calc_Plan!C15)*(RAW!H2:H2200=Calc_Plan!D15),""))) ->  | BN72: =_xlfn._xlws.SORT(_xlfn.UNIQUE(_xlfn._xlws.FILTER(RAW!E2:E2200,(RAW!F2:F2200=Calc_Plan!B15)*(RAW!L2:L2200=Calc_Plan!C15)*(RAW!H2:H2200=Calc_Plan!D15)*(RAW!S2:S2200=Calc_Plan!E15),""))) ->  | BO72: =_xlfn._xlws.SORT(_xlfn.UNIQUE(_xlfn._xlws.FILTER(RAW!L2:L2200,RAW!F2:F2200=Calc_Plan!B16,""))) -> 0 | BP72: =_xlfn._xlws.SORT(_xlfn.UNIQUE(_xlfn._xlws.FILTER(RAW!H2:H2200,(RAW!F2:F2200=Calc_Plan!B16)*(RAW!L2:L2200=Calc_Plan!C16),""))) ->  | BQ72: =_xlfn._xlws.SORT(_xlfn.UNIQUE(_xlfn._xlws.FILTER(RAW!S2:S2200,(RAW!F2:F2200=Calc_Plan!B16)*(RAW!L2:L2200=Calc_Plan!C16)*(RAW!H2:H2200=Calc_Plan!D16),""))) ->  | BR72: =_xlfn._xlws.SORT(_xlfn.UNIQUE(_xlfn._xlws.FILTER(RAW!E2:E2200,(RAW!F2:F2200=Calc_Plan!B16)*(RAW!L2:L2200=Calc_Plan!C16)*(RAW!H2:H2200=Calc_Plan!D16)*(RAW!S2:S2200=Calc_Plan!E16),""))) ->  | BS72: =_xlfn._xlws.SORT(_xlfn.UNIQUE(_xlfn._xlws.FILTER(RAW!L2:L2200,RAW!F2:F2200=Calc_Plan!B17,""))) -> 0 | BT72: =_xlfn._xlws.SORT(_xlfn.UNIQUE(_xlfn._xlws.FILTER(RAW!H2:H2200,(RAW!F2:F2200=Calc_Plan!B17)*(RAW!L2:L2200=Calc_Plan!C17),""))) ->  | BU72: =_xlfn._xlws.SORT(_xlfn.UNIQUE(_xlfn._xlws.FILTER(RAW!S2:S2200,(RAW!F2:F2200=Calc_Plan!B17)*(RAW!L2:L2200=Calc_Plan!C17)*(RAW!H2:H2200=Calc_Plan!D17),""))) ->  | BV72: =_xlfn._xlws.SORT(_xlfn.UNIQUE(_xlfn._xlws.FILTER(RAW!E2:E2200,(RAW!F2:F2200=Calc_Plan!B17)*(RAW!L2:L2200=Calc_Plan!C17)*(RAW!H2:H2200=Calc_Plan!D17)*(RAW!S2:S2200=Calc_Plan!E17),""))) ->  | BW72: =_xlfn._xlws.SORT(_xlfn.UNIQUE(_xlfn._xlws.FILTER(RAW!L2:L2200,RAW!F2:F2200=Calc_Plan!B18,""))) -> 0 | BX72: =_xlfn._xlws.SORT(_xlfn.UNIQUE(_xlfn._xlws.FILTER(RAW!H2:H2200,(RAW!F2:F2200=Calc_Plan!B18)*(RAW!L2:L2200=Calc_Plan!C18),""))) ->  | BY72: =_xlfn._xlws.SORT(_xlfn.UNIQUE(_xlfn._xlws.FILTER(RAW!S2:S2200,(RAW!F2:F2200=Calc_Plan!B18)*(RAW!L2:L2200=Calc_Plan!C18)*(RAW!H2:H2200=Calc_Plan!D18),""))) ->  | BZ72: =_xlfn._xlws.SORT(_xlfn.UNIQUE(_xlfn._xlws.FILTER(RAW!E2:E2200,(RAW!F2:F2200=Calc_Plan!B18)*(RAW!L2:L2200=Calc_Plan!C18)*(RAW!H2:H2200=Calc_Plan!D18)*(RAW!S2:S2200=Calc_Plan!E18),""))) ->  | CA72: =_xlfn._xlws.SORT(_xlfn.UNIQUE(_xlfn._xlws.FILTER(RAW!L2:L2200,RAW!F2:F2200=Calc_Plan!B19,""))) -> 0 | CB72: =_xlfn._xlws.SORT(_xlfn.UNIQUE(_xlfn._xlws.FILTER(RAW!H2:H2200,(RAW!F2:F2200=Calc_Plan!B19)*(RAW!L2:L2200=Calc_Plan!C19),""))) ->  | CC72: =_xlfn._xlws.SORT(_xlfn.UNIQUE(_xlfn._xlws.FILTER(RAW!S2:S2200,(RAW!F2:F2200=Calc_Plan!B19)*(RAW!L2:L2200=Calc_Plan!C19)*(RAW!H2:H2200=Calc_Plan!D19),""))) ->  | CD72: =_xlfn._xlws.SORT(_xlfn.UNIQUE(_xlfn._xlws.FILTER(RAW!E2:E2200,(RAW!F2:F2200=Calc_Plan!B19)*(RAW!L2:L2200=Calc_Plan!C19)*(RAW!H2:H2200=Calc_Plan!D19)*(RAW!S2:S2200=Calc_Plan!E19),""))) ->  | CE72: =_xlfn._xlws.SORT(_xlfn.UNIQUE(INDIRECT($CE$70))) -> 0.125 | CF72: =_xlfn._xlws.SORT(_xlfn.UNIQUE(_xlfn._xlws.FILTER(INDIRECT($CF$70),INDIRECT($CE$70)=Calc_Adv!B10,""))) -> 0 | CG72: =_xlfn._xlws.SORT(_xlfn.UNIQUE(_xlfn._xlws.FILTER(INDIRECT($CG$70),(INDIRECT($CE$70)=Calc_Adv!B10)*(INDIRECT($CF$70)=Calc_Adv!C10),""))) -> 0 | CH72: =_xlfn._xlws.SORT(_xlfn.UNIQUE(_xlfn._xlws.FILTER(INDIRECT($CH$70),(INDIRECT($CE$70)=Calc_Adv!B10)*(INDIRECT($CF$70)=Calc_Adv!C10)*(INDIRECT($CG$70)=Calc_Adv!D10),""))) -> 0 | CI72: =_xlfn._xlws.SORT(_xlfn.UNIQUE(_xlfn._xlws.FILTER(RAW!E2:E3000,(INDIRECT($CE$70)=Calc_Adv!B10)*(INDIRECT($CF$70)=Calc_Adv!C10)*(INDIRECT($CG$70)=Calc_Adv!D10)*(INDIRECT($CH$70)=Calc_Adv!E10),""))) -> 0 | CJ72: =_xlfn._xlws.SORT(_xlfn.UNIQUE(_xlfn._xlws.FILTER(INDIRECT($CF$70),INDIRECT($CE$70)=Calc_Adv!B11,""))) -> 0 | CK72: =_xlfn._xlws.SORT(_xlfn.UNIQUE(_xlfn._xlws.FILTER(INDIRECT($CG$70),(INDIRECT($CE$70)=Calc_Adv!B11)*(INDIRECT($CF$70)=Calc_Adv!C11),""))) -> 0 | CL72: =_xlfn._xlws.SORT(_xlfn.UNIQUE(_xlfn._xlws.FILTER(INDIRECT($CH$70),(INDIRECT($CE$70)=Calc_Adv!B11)*(INDIRECT($CF$70)=Calc_Adv!C11)*(INDIRECT($CG$70)=Calc_Adv!D11),""))) -> 0 | CM72: =_xlfn._xlws.SORT(_xlfn.UNIQUE(_xlfn._xlws.FILTER(RAW!E2:E3000,(INDIRECT($CE$70)=Calc_Adv!B11)*(INDIRECT($CF$70)=Calc_Adv!C11)*(INDIRECT($CG$70)=Calc_Adv!D11)*(INDIRECT($CH$70)=Calc_Adv!E11),""))) -> 0 | CN72: =_xlfn._xlws.SORT(_xlfn.UNIQUE(_xlfn._xlws.FILTER(INDIRECT($CF$70),INDIRECT($CE$70)=Calc_Adv!B12,""))) -> 0 | CO72: =_xlfn._xlws.SORT(_xlfn.UNIQUE(_xlfn._xlws.FILTER(INDIRECT($CG$70),(INDIRECT($CE$70)=Calc_Adv!B12)*(INDIRECT($CF$70)=Calc_Adv!C12),""))) -> 0 | CP72: =_xlfn._xlws.SORT(_xlfn.UNIQUE(_xlfn._xlws.FILTER(INDIRECT($CH$70),(INDIRECT($CE$70)=Calc_Adv!B12)*(INDIRECT($CF$70)=Calc_Adv!C12)*(INDIRECT($CG$70)=Calc_Adv!D12),""))) -> 0 | CQ72: =_xlfn._xlws.SORT(_xlfn.UNIQUE(_xlfn._xlws.FILTER(RAW!E2:E3000,(INDIRECT($CE$70)=Calc_Adv!B12)*(INDIRECT($CF$70)=Calc_Adv!C12)*(INDIRECT($CG$70)=Calc_Adv!D12)*(INDIRECT($CH$70)=Calc_Adv!E12),""))) -> 0 | CR72: =_xlfn._xlws.SORT(_xlfn.UNIQUE(_xlfn._xlws.FILTER(INDIRECT($CF$70),INDIRECT($CE$70)=Calc_Adv!B13,""))) -> 0 | CS72: =_xlfn._xlws.SORT(_xlfn.UNIQUE(_xlfn._xlws.FILTER(INDIRECT($CG$70),(INDIRECT($CE$70)=Calc_Adv!B13)*(INDIRECT($CF$70)=Calc_Adv!C13),""))) -> 0 | CT72: =_xlfn._xlws.SORT(_xlfn.UNIQUE(_xlfn._xlws.FILTER(INDIRECT($CH$70),(INDIRECT($CE$70)=Calc_Adv!B13)*(INDIRECT($CF$70)=Calc_Adv!C13)*(INDIRECT($CG$70)=Calc_Adv!D13),""))) -> 0 | CU72: =_xlfn._xlws.SORT(_xlfn.UNIQUE(_xlfn._xlws.FILTER(RAW!E2:E3000,(INDIRECT($CE$70)=Calc_Adv!B13)*(INDIRECT($CF$70)=Calc_Adv!C13)*(INDIRECT($CG$70)=Calc_Adv!D13)*(INDIRECT($CH$70)=Calc_Adv!E13),""))) -> 0 | CV72: =_xlfn._xlws.SORT(_xlfn.UNIQUE(_xlfn._xlws.FILTER(INDIRECT($CF$70),INDIRECT($CE$70)=Calc_Adv!B14,""))) -> 0 | CW72: =_xlfn._xlws.SORT(_xlfn.UNIQUE(_xlfn._xlws.FILTER(INDIRECT($CG$70),(INDIRECT($CE$70)=Calc_Adv!B14)*(INDIRECT($CF$70)=Calc_Adv!C14),""))) -> 0 | CX72: =_xlfn._xlws.SORT(_xlfn.UNIQUE(_xlfn._xlws.FILTER(INDIRECT($CH$70),(INDIRECT($CE$70)=Calc_Adv!B14)*(INDIRECT($CF$70)=Calc_Adv!C14)*(INDIRECT($CG$70)=Calc_Adv!D14),""))) -> 0 | CY72: =_xlfn._xlws.SORT(_xlfn.UNIQUE(_xlfn._xlws.FILTER(RAW!E2:E3000,(INDIRECT($CE$70)=Calc_Adv!B14)*(INDIRECT($CF$70)=Calc_Adv!C14)*(INDIRECT($CG$70)=Calc_Adv!D14)*(INDIRECT($CH$70)=Calc_Adv!E14),""))) -> 0 | CZ72: =_xlfn._xlws.SORT(_xlfn.UNIQUE(_xlfn._xlws.FILTER(INDIRECT($CF$70),INDIRECT($CE$70)=Calc_Adv!B15,""))) -> 0 | DA72: =_xlfn._xlws.SORT(_xlfn.UNIQUE(_xlfn._xlws.FILTER(INDIRECT($CG$70),(INDIRECT($CE$70)=Calc_Adv!B15)*(INDIRECT($CF$70)=Calc_Adv!C15),""))) -> 0 | DB72: =_xlfn._xlws.SORT(_xlfn.UNIQUE(_xlfn._xlws.FILTER(INDIRECT($CH$70),(INDIRECT($CE$70)=Calc_Adv!B15)*(INDIRECT($CF$70)=Calc_Adv!C15)*(INDIRECT($CG$70)=Calc_Adv!D15),""))) -> 0 | DC72: =_xlfn._xlws.SORT(_xlfn.UNIQUE(_xlfn._xlws.FILTER(RAW!E2:E3000,(INDIRECT($CE$70)=Calc_Adv!B15)*(INDIRECT($CF$70)=Calc_Adv!C15)*(INDIRECT($CG$70)=Calc_Adv!D15)*(INDIRECT($CH$70)=Calc_Adv!E15),""))) -> 0 | DD72: =_xlfn._xlws.SORT(_xlfn.UNIQUE(_xlfn._xlws.FILTER(INDIRECT($CF$70),INDIRECT($CE$70)=Calc_Adv!B16,""))) -> 0 | DE72: =_xlfn._xlws.SORT(_xlfn.UNIQUE(_xlfn._xlws.FILTER(INDIRECT($CG$70),(INDIRECT($CE$70)=Calc_Adv!B16)*(INDIRECT($CF$70)=Calc_Adv!C16),""))) -> 0 | DF72: =_xlfn._xlws.SORT(_xlfn.UNIQUE(_xlfn._xlws.FILTER(INDIRECT($CH$70),(INDIRECT($CE$70)=Calc_Adv!B16)*(INDIRECT($CF$70)=Calc_Adv!C16)*(INDIRECT($CG$70)=Calc_Adv!D16),""))) -> 0 | DG72: =_xlfn._xlws.SORT(_xlfn.UNIQUE(_xlfn._xlws.FILTER(RAW!E2:E3000,(INDIRECT($CE$70)=Calc_Adv!B16)*(INDIRECT($CF$70)=Calc_Adv!C16)*(INDIRECT($CG$70)=Calc_Adv!D16)*(INDIRECT($CH$70)=Calc_Adv!E16),""))) -> 0 | DH72: =_xlfn._xlws.SORT(_xlfn.UNIQUE(_xlfn._xlws.FILTER(INDIRECT($CF$70),INDIRECT($CE$70)=Calc_Adv!B17,""))) -> 0 | DI72: =_xlfn._xlws.SORT(_xlfn.UNIQUE(_xlfn._xlws.FILTER(INDIRECT($CG$70),(INDIRECT($CE$70)=Calc_Adv!B17)*(INDIRECT($CF$70)=Calc_Adv!C17),""))) -> 0 | DJ72: =_xlfn._xlws.SORT(_xlfn.UNIQUE(_xlfn._xlws.FILTER(INDIRECT($CH$70),(INDIRECT($CE$70)=Calc_Adv!B17)*(INDIRECT($CF$70)=Calc_Adv!C17)*(INDIRECT($CG$70)=Calc_Adv!D17),""))) -> 0 | DK72: =_xlfn._xlws.SORT(_xlfn.UNIQUE(_xlfn._xlws.FILTER(RAW!E2:E3000,(INDIRECT($CE$70)=Calc_Adv!B17)*(INDIRECT($CF$70)=Calc_Adv!C17)*(INDIRECT($CG$70)=Calc_Adv!D17)*(INDIRECT($CH$70)=Calc_Adv!E17),""))) -> 0 | DL72: =_xlfn._xlws.SORT(_xlfn.UNIQUE(_xlfn._xlws.FILTER(INDIRECT($CF$70),INDIRECT($CE$70)=Calc_Adv!B18,""))) -> 0 | DM72: =_xlfn._xlws.SORT(_xlfn.UNIQUE(_xlfn._xlws.FILTER(INDIRECT($CG$70),(INDIRECT($CE$70)=Calc_Adv!B18)*(INDIRECT($CF$70)=Calc_Adv!C18),""))) -> 0 | DN72: =_xlfn._xlws.SORT(_xlfn.UNIQUE(_xlfn._xlws.FILTER(INDIRECT($CH$70),(INDIRECT($CE$70)=Calc_Adv!B18)*(INDIRECT($CF$70)=Calc_Adv!C18)*(INDIRECT($CG$70)=Calc_Adv!D18),""))) -> 0 | DO72: =_xlfn._xlws.SORT(_xlfn.UNIQUE(_xlfn._xlws.FILTER(RAW!E2:E3000,(INDIRECT($CE$70)=Calc_Adv!B18)*(INDIRECT($CF$70)=Calc_Adv!C18)*(INDIRECT($CG$70)=Calc_Adv!D18)*(INDIRECT($CH$70)=Calc_Adv!E18),""))) -> 0 | DP72: =_xlfn._xlws.SORT(_xlfn.UNIQUE(_xlfn._xlws.FILTER(INDIRECT($CF$70),INDIRECT($CE$70)=Calc_Adv!B19,""))) -> 0 | DQ72: =_xlfn._xlws.SORT(_xlfn.UNIQUE(_xlfn._xlws.FILTER(INDIRECT($CG$70),(INDIRECT($CE$70)=Calc_Adv!B19)*(INDIRECT($CF$70)=Calc_Adv!C19),""))) -> 0 | DR72: =_xlfn._xlws.SORT(_xlfn.UNIQUE(_xlfn._xlws.FILTER(INDIRECT($CH$70),(INDIRECT($CE$70)=Calc_Adv!B19)*(INDIRECT($CF$70)=Calc_Adv!C19)*(INDIRECT($CG$70)=Calc_Adv!D19),""))) -> 0 | DS72: =_xlfn._xlws.SORT(_xlfn.UNIQUE(_xlfn._xlws.FILTER(RAW!E2:E3000,(INDIRECT($CE$70)=Calc_Adv!B19)*(INDIRECT($CF$70)=Calc_Adv!C19)*(INDIRECT($CG$70)=Calc_Adv!D19)*(INDIRECT($CH$70)=Calc_Adv!E19),""))) -> 0
B73: ABS | CE73: 0.25
B74: Aluminum | CE74: 0.375
B75: Concrete NRCP | CE75: 0.5
B76: Concrete RCP | CE76: 0.625
B77: PE | CE77: 0.75
B78: PE (Layflat) | CE78: 1
B79: PEX | CE79: 1.25
B80: PVC | CE80: 1.5
B81: PVC (Layflat) | CE81: 2
B82: Steel | CE82: 2.5
B83: 0 | CE83: 3
CE84: 3.5
CE85: 4
CE86: 4.5
CE87: 5
CE88: 6
CE89: 7
CE90: 8
CE91: 9
CE92: 10
CE93: 11
CE94: 12
CE95: 14
CE96: 15
CE97: 16
CE98: 18
CE99: 20
CE100: 21
CE101: 22
CE102: 24
CE103: 26
CE104: 27
CE105: 28
CE106: 30
CE107: 32
CE108: 33
CE109: 34
CE110: 36
CE111: 39
CE112: 42
CE113: 48
CE114: 54
CE115: 60
CE116: 63
CE117: 65
CE118: 66
CE119: 72
CE120: 78
CE121: 84
CE122: 90
CE123: 96
CE124: 102
CE125: 108
CE126: 114
CE127: 120
CE128: 132
CE129: 144
CE131: 42D
CE132: 42S
CE133: 48 Type D
CE134: 48 Type S
CE135: 60 Type D
CE136: 60 Type S
CE137: 0

Sheet Outdated_Pipe (hidden)
E1: Row() | F1: Pipe Material | G1: Diameter Type | H1: Nominal Diameter [in] | I1: Diameter Display [in] | J1: SDR_Pressure Combined | K1: SDR [-] | L1: Pressure [psi] | M1: Min Inside or Outside Diameter [in] | N1: Controlled Diameter [in] | O1: Out OF Round [in] | P1: Wall Thickness [in] | Q1: Wall Tolerance [in] | R1: Pipe Weight [lbs/ft] | S1: Combined for Calc_Plan Worksheet Drop Down Menu | T1: Reference
F2: PVC | G2: PSM (DR) | H2: 9 | I2: 9 | J2: =L2&" psi DR-"&K2 -> 100 psi DR-41 | K2: 41 | L2: =VLOOKUP(K2,Tables!$C$17:$D$34,2,FALSE) -> 100 | M2: 9.44 | N2: OD | P2: 0.23 | Q2: 0.014 | R2: =VLOOKUP(F2,Tables!$G$5:$H$14,2,FALSE)*(M2-(P2+Q2*Tables!$C$6))*(P2+Q2*Tables!$C$6)*1.36196 -> 4.158820313 | S2: ="Controlled OD (DR-"&K2&") Sewer Pipe" -> Controlled OD (DR-41) Sewer Pipe | T2: ASTM D3034-14: Standard Specification for Type PSM Poly(Vinyl Chloride) (PVC) Sewer Pipe and Fittings | U2: Sewer Pipe
F3: PE | G3: IPS (SIDR) | H3: 3 | I3: 3 | J3: =L3&" psi SIDR-"&K3 -> 100 psi SIDR-19 | K3: 19 | L3: =VLOOKUP(K3,Tables!$C$42:$G$58,IF(Tables!$C$5=4710,IF(N3="ID",5,3),IF(N3="ID",4,2)),FALSE) -> 100 | M3: 3.068 | N3: ID | P3: 0.161 | Q3: 0.02 | R3: =VLOOKUP(F3,Tables!$G$5:$H$14,2,FALSE)*(M3-(P3+Q3*Tables!$C$6))*(P3+Q3*Tables!$C$6)*1.36196 -> 0.6463599928 | S3: ="Controlled ID (SIDR-"&K3&") Iron Pipe Size" -> Controlled ID (SIDR-19) Iron Pipe Size | T3: ASTM D2239-03 Standard Specification for Polyethylene (PE) Plastic Pipe (SIDR-PR) Based on Controlled Inside Diameter
F4: PE | G4: IPS (SIDR) | H4: 3 | I4: 3 | J4: =L4&" psi SIDR-"&K4 -> 125 psi SIDR-15 | K4: 15 | L4: =VLOOKUP(K4,Tables!$C$42:$G$58,IF(Tables!$C$5=4710,IF(N4="ID",5,3),IF(N4="ID",4,2)),FALSE) -> 125 | M4: 3.068 | N4: ID | P4: 0.205 | Q4: 0.02 | R4: =VLOOKUP(F4,Tables!$G$5:$H$14,2,FALSE)*(M4-(P4+Q4*Tables!$C$6))*(P4+Q4*Tables!$C$6)*1.36196 -> 0.8003318371 | S4: ="Controlled ID (SIDR-"&K4&") Iron Pipe Size" -> Controlled ID (SIDR-15) Iron Pipe Size | T4: ASTM D2239-03 Standard Specification for Polyethylene (PE) Plastic Pipe (SIDR-PR) Based on Controlled Inside Diameter
F5: PE | G5: IPS (SIDR) | H5: 3 | I5: 3 | J5: 160 psi SIDR-11.5 | K5: 11.5 | L5: =VLOOKUP(K5,Tables!$C$42:$G$58,IF(Tables!$C$5=4710,IF(N5="ID",5,3),IF(N5="ID",4,2)),FALSE) -> 160 | M5: 3.068 | N5: ID | P5: 0.267 | Q5: 0.032 | R5: =VLOOKUP(F5,Tables!$G$5:$H$14,2,FALSE)*(M5-(P5+Q5*Tables!$C$6))*(P5+Q5*Tables!$C$6)*1.36196 -> 1.028351289 | S5: Controlled ID (SIDR-11.5) Iron Pipe Size | T5: ASTM D2239-03 Standard Specification for Polyethylene (PE) Plastic Pipe (SIDR-PR) Based on Controlled Inside Diameter
F6: PE | G6: IPS (SIDR) | H6: 4 | I6: 4 | J6: 100 psi SIDR-19 | K6: 19 | L6: =VLOOKUP(K6,Tables!$C$42:$G$58,IF(Tables!$C$5=4710,IF(N6="ID",5,3),IF(N6="ID",4,2)),FALSE) -> 100 | M6: 4.026 | N6: ID | P6: 0.212 | Q6: 0.025 | R6: =VLOOKUP(F6,Tables!$G$5:$H$14,2,FALSE)*(M6-(P6+Q6*Tables!$C$6))*(P6+Q6*Tables!$C$6)*1.36196 -> 1.113528154 | S6: Controlled ID (SIDR-19) Iron Pipe Size | T6: ASTM D2239-03 Standard Specification for Polyethylene (PE) Plastic Pipe (SIDR-PR) Based on Controlled Inside Diameter
F7: PE | G7: IPS (SIDR) | H7: 4 | I7: 4 | J7: 125 psi SIDR-15 | K7: 15 | L7: =VLOOKUP(K7,Tables!$C$42:$G$58,IF(Tables!$C$5=4710,IF(N7="ID",5,3),IF(N7="ID",4,2)),FALSE) -> 125 | M7: 4.026 | N7: ID | P7: 0.268 | Q7: 0.032 | R7: =VLOOKUP(F7,Tables!$G$5:$H$14,2,FALSE)*(M7-(P7+Q7*Tables!$C$6))*(P7+Q7*Tables!$C$6)*1.36196 -> 1.38660252 | S7: Controlled ID (SIDR-15) Iron Pipe Size | T7: ASTM D2239-03 Standard Specification for Polyethylene (PE) Plastic Pipe (SIDR-PR) Based on Controlled Inside Diameter
F8: PE | G8: IPS (SIDR) | H8: 4 | I8: 4 | J8: 160 psi SIDR-11.5 | K8: 11.5 | L8: =VLOOKUP(K8,Tables!$C$42:$G$58,IF(Tables!$C$5=4710,IF(N8="ID",5,3),IF(N8="ID",4,2)),FALSE) -> 160 | M8: 4.026 | N8: ID | P8: 0.35 | Q8: 0.042 | R8: =VLOOKUP(F8,Tables!$G$5:$H$14,2,FALSE)*(M8-(P8+Q8*Tables!$C$6))*(P8+Q8*Tables!$C$6)*1.36196 -> 1.769257938 | S8: Controlled ID (SIDR-11.5) Iron Pipe Size | T8: ASTM D2239-03 Standard Specification for Polyethylene (PE) Plastic Pipe (SIDR-PR) Based on Controlled Inside Diameter
F9: PE | G9: IPS (SIDR) | H9: 6 | I9: 6 | J9: 100 psi SIDR-19 | K9: 19 | L9: =VLOOKUP(K9,Tables!$C$42:$G$58,IF(Tables!$C$5=4710,IF(N9="ID",5,3),IF(N9="ID",4,2)),FALSE) -> 100 | M9: 6.065 | N9: ID | P9: 0.319 | Q9: 0.038 | R9: =VLOOKUP(F9,Tables!$G$5:$H$14,2,FALSE)*(M9-(P9+Q9*Tables!$C$6))*(P9+Q9*Tables!$C$6)*1.36196 -> 2.525653365 | S9: Controlled ID (SIDR-19) Iron Pipe Size | T9: ASTM D2239-03 Standard Specification for Polyethylene (PE) Plastic Pipe (SIDR-PR) Based on Controlled Inside Diameter
F10: PE | G10: IPS (SIDR) | H10: 6 | I10: 6 | J10: 125 psi SIDR-15 | K10: 15 | L10: =VLOOKUP(K10,Tables!$C$42:$G$58,IF(Tables!$C$5=4710,IF(N10="ID",5,3),IF(N10="ID",4,2)),FALSE) -> 125 | M10: 6.065 | N10: ID | P10: 0.404 | Q10: 0.048 | R10: =VLOOKUP(F10,Tables!$G$5:$H$14,2,FALSE)*(M10-(P10+Q10*Tables!$C$6))*(P10+Q10*Tables!$C$6)*1.36196 -> 3.14790535 | S10: Controlled ID (SIDR-15) Iron Pipe Size | T10: ASTM D2239-03 Standard Specification for Polyethylene (PE) Plastic Pipe (SIDR-PR) Based on Controlled Inside Diameter
F11: PE | G11: IPS (SIDR) | H11: 6 | I11: 6 | J11: 160 psi SIDR-11.5 | K11: 11.5 | L11: =VLOOKUP(K11,Tables!$C$42:$G$58,IF(Tables!$C$5=4710,IF(N11="ID",5,3),IF(N11="ID",4,2)),FALSE) -> 160 | M11: 6.065 | N11: ID | P11: 0.527 | Q11: 0.063 | R11: =VLOOKUP(F11,Tables!$G$5:$H$14,2,FALSE)*(M11-(P11+Q11*Tables!$C$6))*(P11+Q11*Tables!$C$6)*1.36196 -> 4.012626 | S11: Controlled ID (SIDR-11.5) Iron Pipe Size | T11: ASTM D2239-03 Standard Specification for Polyethylene (PE) Plastic Pipe (SIDR-PR) Based on Controlled Inside Diameter
F12: PE | G12: IPS (SCH - ID) | H12: 0.5 | I12: 1/2 | J12: =L12&" psi SCH-"&K12 -> 190 psi SCH-40 | K12: 40 | L12: 190 | M12: 0.622 | N12: ID | P12: 0.109 | Q12: 0.02 | R12: =VLOOKUP(F12,Tables!$G$5:$H$14,2,FALSE)*(M12+(P326+Q12*Tables!$C$6))*(P12+Q12*Tables!$C$6)*1.36196 -> 0.0981282156 | S12: ="Controlled ID (SCH-"&K12&") Iron Pipe Size" -> Controlled ID (SCH-40) Iron Pipe Size | T12: ASTM D2104
F13: PE | G13: IPS (SCH - ID) | H13: 0.75 | I13: 3/4 | J13: =L13&" psi SCH-"&K13 -> 150 psi SCH-40 | K13: 40 | L13: 150 | M13: 0.824 | N13: ID | P13: 0.113 | Q13: 0.02 | R13: =VLOOKUP(F13,Tables!$G$5:$H$14,2,FALSE)*(M13+(P328+Q13*Tables!$C$6))*(P13+Q13*Tables!$C$6)*1.36196 -> 0.1338446523 | S13: ="Controlled ID (SCH-"&K13&") Iron Pipe Size" -> Controlled ID (SCH-40) Iron Pipe Size | T13: ASTM D2104
F14: PE | G14: IPS (SCH - ID) | H14: 1 | I14: 1 | J14: 140 psi SCH-40 | K14: 40 | L14: 140 | M14: 1.049 | N14: ID | P14: 0.133 | Q14: 0.02 | R14: =VLOOKUP(F14,Tables!$G$5:$H$14,2,FALSE)*(M14+(P330+Q14*Tables!$C$6))*(P14+Q14*Tables!$C$6)*1.36196 -> 0.1975885888 | S14: Controlled ID (SCH-40) Iron Pipe Size | T14: ASTM D2104
F15: PE | G15: IPS (SCH - ID) | H15: 1.25 | I15: 1 1/4 | J15: 120 psi SCH-40 | K15: 40 | L15: 120 | M15: 1.38 | N15: ID | P15: 0.14 | Q15: 0.02 | R15: =VLOOKUP(F15,Tables!$G$5:$H$14,2,FALSE)*(M15+(P332+Q15*Tables!$C$6))*(P15+Q15*Tables!$C$6)*1.36196 -> 0.2720419763 | S15: Controlled ID (SCH-40) Iron Pipe Size | T15: ASTM D2104
F16: PE | G16: IPS (SCH - ID) | H16: 1.5 | I16: 1 1/2 | J16: 100 psi SCH-40 | K16: 40 | L16: 100 | M16: 1.61 | N16: ID | P16: 0.145 | Q16: 0.02 | R16: =VLOOKUP(F16,Tables!$G$5:$H$14,2,FALSE)*(M16+(P334+Q16*Tables!$C$6))*(P16+Q16*Tables!$C$6)*1.36196 -> 0.3276246534 | S16: Controlled ID (SCH-40) Iron Pipe Size | T16: ASTM D2104
F17: PE | G17: IPS (SCH - ID) | H17: 2 | I17: 2 | J17: 90 psi SCH-40 | K17: 40 | L17: 90 | M17: 2.067 | N17: ID | P17: 0.154 | Q17: 0.02 | R17: =VLOOKUP(F17,Tables!$G$5:$H$14,2,FALSE)*(M17+(P336+Q17*Tables!$C$6))*(P17+Q17*Tables!$C$6)*1.36196 -> 0.444436999 | S17: Controlled ID (SCH-40) Iron Pipe Size | T17: ASTM D2104
F18: PE | G18: IPS (SCH - ID) | H18: 2.5 | I18: 2 1/2 | J18: 100 psi SCH-40 | K18: 40 | L18: 100 | M18: 2.469 | N18: ID | P18: 0.203 | Q18: 0.027 | R18: =VLOOKUP(F18,Tables!$G$5:$H$14,2,FALSE)*(M18+(P338+Q18*Tables!$C$6))*(P18+Q18*Tables!$C$6)*1.36196 -> 0.7012566936 | S18: Controlled ID (SCH-40) Iron Pipe Size | T18: ASTM D2104
F19: PE | G19: IPS (SCH - ID) | H19: 3 | I19: 3 | J19: 80 psi SCH-40 | K19: 40 | L19: 80 | M19: 3.068 | N19: ID | P19: 0.216 | Q19: 0.026 | R19: =VLOOKUP(F19,Tables!$G$5:$H$14,2,FALSE)*(M19+(P340+Q19*Tables!$C$6))*(P19+Q19*Tables!$C$6)*1.36196 -> 0.9205704764 | S19: Controlled ID (SCH-40) Iron Pipe Size | T19: ASTM D2104
F20: PE | G20: IPS (SCH - ID) | H20: 4 | I20: 4 | J20: 70 psi SCH-40 | K20: 40 | L20: 70 | M20: 4.026 | N20: ID | P20: 0.237 | Q20: 0.028 | R20: =VLOOKUP(F20,Tables!$G$5:$H$14,2,FALSE)*(M20+(P342+Q20*Tables!$C$6))*(P20+Q20*Tables!$C$6)*1.36196 -> 1.323076478 | S20: Controlled ID (SCH-40) Iron Pipe Size | T20: ASTM D2104
F21: PE | G21: IPS (SCH - ID) | H21: 6 | I21: 6 | J21: 60 psi SCH-40 | K21: 40 | L21: 60 | M21: 6.065 | N21: ID | P21: 0.28 | Q21: 0.034 | R21: =VLOOKUP(F21,Tables!$G$5:$H$14,2,FALSE)*(M21+(P344+Q21*Tables!$C$6))*(P21+Q21*Tables!$C$6)*1.36196 -> 2.356854254 | S21: Controlled ID (SCH-40) Iron Pipe Size | T21: ASTM D2104
F22: PE | G22: IPS (SCH - OD) | H22: 0.5 | I22: 1/2 | J22: 188 psi SCH-40 | K22: 40 | L22: 188 | M22: 0.84 | N22: OD | P22: 0.109 | Q22: 0.02 | R22: =VLOOKUP(F22,Tables!$G$5:$H$14,2,FALSE)*(M22+(P346+Q22*Tables!$C$6))*(P22+Q22*Tables!$C$6)*1.36196 -> 0.1319762393 | S22: ="Controlled OD (SCH-"&K22&") Iron Pipe Size" -> Controlled OD (SCH-40) Iron Pipe Size | T22: ASTM D2447
F23: PE | G23: IPS (SCH - OD) | H23: 0.5 | I23: 1/2 | J23: 267 psi SCH-80 | K23: 80 | L23: 267 | M23: 0.84 | N23: OD | P23: 0.147 | Q23: 0.02 | R23: =VLOOKUP(F23,Tables!$G$5:$H$14,2,FALSE)*(M23+(P347+Q23*Tables!$C$6))*(P23+Q23*Tables!$C$6)*1.36196 -> 0.1741199124 | S23: ="Controlled OD (SCH-"&K23&") Iron Pipe Size" -> Controlled OD (SCH-80) Iron Pipe Size | T23: ASTM D2447
F24: PE | G24: IPS (SCH - OD) | H24: 0.75 | I24: 3/4 | J24: 152 psi SCH-40 | K24: 40 | L24: 152 | M24: 1.05 | N24: OD | P24: 0.113 | Q24: 0.02 | R24: =VLOOKUP(F24,Tables!$G$5:$H$14,2,FALSE)*(M24+(P348+Q24*Tables!$C$6))*(P24+Q24*Tables!$C$6)*1.36196 -> 0.1701143063 | S24: Controlled OD (SCH-40) Iron Pipe Size | T24: ASTM D2447
F25: PE | G25: IPS (SCH - OD) | H25: 0.75 | I25: 3/4 | J25: 217 psi SCH-80 | K25: 80 | L25: 217 | M25: 1.05 | N25: OD | P25: 0.154 | Q25: 0.02 | R25: =VLOOKUP(F25,Tables!$G$5:$H$14,2,FALSE)*(M25+(P349+Q25*Tables!$C$6))*(P25+Q25*Tables!$C$6)*1.36196 -> 0.2268190751 | S25: Controlled OD (SCH-80) Iron Pipe Size | T25: ASTM D2447
F26: PE | G26: IPS (SCH - OD) | H26: 1 | I26: 1 | J26: 142 psi SCH-40 | K26: 40 | L26: 142 | M26: 1.315 | N26: OD | P26: 0.133 | Q26: 0.02 | R26: =VLOOKUP(F26,Tables!$G$5:$H$14,2,FALSE)*(M26+(P350+Q26*Tables!$C$6))*(P26+Q26*Tables!$C$6)*1.36196 -> 0.2472189614 | S26: Controlled OD (SCH-40) Iron Pipe Size | T26: ASTM D2447
F27: PE | G27: IPS (SCH - OD) | H27: 1 | I27: 1 | J27: 199 psi SCH-80 | K27: 80 | L27: 199 | M27: 1.315 | N27: OD | P27: 0.179 | Q27: 0.021 | R27: =VLOOKUP(F27,Tables!$G$5:$H$14,2,FALSE)*(M27+(P351+Q27*Tables!$C$6))*(P27+Q27*Tables!$C$6)*1.36196 -> 0.3277319698 | S27: Controlled OD (SCH-80) Iron Pipe Size | T27: ASTM D2447
F28: PE | G28: IPS (SCH - OD) | H28: 1.25 | I28: 1 1/4 | J28: 116 psi SCH-40 | K28: 40 | L28: 116 | M28: 1.66 | N28: OD | P28: 0.14 | Q28: 0.02 | R28: =VLOOKUP(F28,Tables!$G$5:$H$14,2,FALSE)*(M28+(P352+Q28*Tables!$C$6))*(P28+Q28*Tables!$C$6)*1.36196 -> 0.3268417988 | S28: Controlled OD (SCH-40) Iron Pipe Size | T28: ASTM D2447
F29: PE | G29: IPS (SCH - OD) | H29: 1.25 | I29: 1 1/4 | J29: 164 psi SCH-80 | K29: 80 | L29: 164 | M29: 1.66 | N29: OD | P29: 0.191 | Q29: 0.023 | R29: =VLOOKUP(F29,Tables!$G$5:$H$14,2,FALSE)*(M29+(P353+Q29*Tables!$C$6))*(P29+Q29*Tables!$C$6)*1.36196 -> 0.4416327486 | S29: Controlled OD (SCH-80) Iron Pipe Size | T29: ASTM D2447
F30: PE | G30: IPS (SCH - OD) | H30: 1.5 | I30: 1 1/2 | J30: 104 psi SCH-40 | K30: 40 | L30: 104 | M30: 1.9 | N30: OD | P30: 0.145 | Q30: 0.02 | R30: =VLOOKUP(F30,Tables!$G$5:$H$14,2,FALSE)*(M30+(P354+Q30*Tables!$C$6))*(P30+Q30*Tables!$C$6)*1.36196 -> 0.3862735112 | S30: Controlled OD (SCH-40) Iron Pipe Size | T30: ASTM D2447
F31: PE | G31: IPS (SCH - OD) | H31: 1.5 | I31: 1 1/2 | J31: 148 psi SCH-80 | K31: 80 | L31: 148 | M31: 1.9 | N31: OD | P31: 0.2 | Q31: 0.024 | R31: =VLOOKUP(F31,Tables!$G$5:$H$14,2,FALSE)*(M31+(P355+Q31*Tables!$C$6))*(P31+Q31*Tables!$C$6)*1.36196 -> 0.528875697 | S31: Controlled OD (SCH-80) Iron Pipe Size | T31: ASTM D2447
F32: PE | G32: IPS (SCH - OD) | H32: 2 | I32: 2 | J32: 87 psi SCH-40 | K32: 40 | L32: 87 | M32: 2.375 | N32: OD | P32: 0.154 | Q32: 0.02 | R32: =VLOOKUP(F32,Tables!$G$5:$H$14,2,FALSE)*(M32+(P356+Q32*Tables!$C$6))*(P32+Q32*Tables!$C$6)*1.36196 -> 0.510342919 | S32: Controlled OD (SCH-40) Iron Pipe Size | T32: ASTM D2447
F33: PE | G33: IPS (SCH - OD) | H33: 2 | I33: 2 | J33: 127 psi SCH-80 | K33: 80 | L33: 127 | M33: 2.375 | N33: OD | P33: 0.218 | Q33: 0.026 | R33: =VLOOKUP(F33,Tables!$G$5:$H$14,2,FALSE)*(M33+(P357+Q33*Tables!$C$6))*(P33+Q33*Tables!$C$6)*1.36196 -> 0.7197408695 | S33: Controlled OD (SCH-80) Iron Pipe Size | T33: ASTM D2447
F34: PE | G34: IPS (SCH - OD) | H34: 2.5 | I34: 2 1/2 | J34: 96 psi SCH-40 | K34: 40 | L34: 96 | M34: 2.875 | N34: OD | P34: 0.203 | Q34: 0.027 | R34: =VLOOKUP(F34,Tables!$G$5:$H$14,2,FALSE)*(M34+(P358+Q34*Tables!$C$6))*(P34+Q34*Tables!$C$6)*1.36196 -> 0.815943589 | S34: Controlled OD (SCH-40) Iron Pipe Size | T34: ASTM D2447
F35: PE | G35: IPS (SCH - OD) | H35: 2.5 | I35: 2 1/2 | J35: 134 psi SCH-80 | K35: 80 | L35: 134 | M35: 2.875 | N35: OD | P35: 0.276 | Q35: 0.033 | R35: =VLOOKUP(F35,Tables!$G$5:$H$14,2,FALSE)*(M35+(P359+Q35*Tables!$C$6))*(P35+Q35*Tables!$C$6)*1.36196 -> 1.103516748 | S35: Controlled OD (SCH-80) Iron Pipe Size | T35: ASTM D2447
F36: PE | G36: IPS (SCH - OD) | H36: 3 | I36: 3 | J36: 83 psi SCH-40 | K36: 40 | L36: 83 | M36: 3.5 | N36: OD | P36: 0.216 | Q36: 0.026 | R36: =VLOOKUP(F36,Tables!$G$5:$H$14,2,FALSE)*(M36+(P360+Q36*Tables!$C$6))*(P36+Q36*Tables!$C$6)*1.36196 -> 1.049647544 | S36: Controlled OD (SCH-40) Iron Pipe Size | T36: ASTM D2447
F37: PE | G37: IPS (SCH - OD) | H37: 3 | I37: 3 | J37: 118 psi SCH-80 | K37: 80 | L37: 118 | M37: 3.5 | N37: OD | P37: 0.3 | Q37: 0.036 | R37: =VLOOKUP(F37,Tables!$G$5:$H$14,2,FALSE)*(M37+(P361+Q37*Tables!$C$6))*(P37+Q37*Tables!$C$6)*1.36196 -> 1.459663731 | S37: Controlled OD (SCH-80) Iron Pipe Size | T37: ASTM D2447
F38: PE | G38: IPS (SCH - OD) | H38: 3.5 | I38: 3.5 | J38: 75 psi SCH-40 | K38: 40 | L38: 75 | M38: 4 | N38: OD | P38: 0.226 | Q38: 0.027 | R38: =VLOOKUP(F38,Tables!$G$5:$H$14,2,FALSE)*(M38+(P362+Q38*Tables!$C$6))*(P38+Q38*Tables!$C$6)*1.36196 -> 1.254176465 | S38: Controlled OD (SCH-40) Iron Pipe Size | T38: ASTM D2447
F39: PE | G39: IPS (SCH - OD) | H39: 3.5 | I39: 3.5 | J39: 109 psi SCH-80 | K39: 80 | L39: 109 | M39: 4 | N39: OD | P39: 0.318 | Q39: 0.038 | R39: =VLOOKUP(F39,Tables!$G$5:$H$14,2,FALSE)*(M39+(P363+Q39*Tables!$C$6))*(P39+Q39*Tables!$C$6)*1.36196 -> 1.767167716 | S39: Controlled OD (SCH-80) Iron Pipe Size | T39: ASTM D2447
F40: PE | G40: IPS (SCH - OD) | H40: 4 | I40: 4 | J40: 70 psi SCH-40 | K40: 40 | L40: 70 | M40: 4.5 | N40: OD | P40: 0.237 | Q40: 0.028 | R40: =VLOOKUP(F40,Tables!$G$5:$H$14,2,FALSE)*(M40+(P364+Q40*Tables!$C$6))*(P40+Q40*Tables!$C$6)*1.36196 -> 1.478308718 | S40: Controlled OD (SCH-40) Iron Pipe Size | T40: ASTM D2447
F41: PE | G41: IPS (SCH - OD) | H41: 4 | I41: 4 | J41: 102 psi SCH-80 | K41: 80 | L41: 102 | M41: 4.5 | N41: OD | P41: 0.337 | Q41: 0.04 | R41: =VLOOKUP(F41,Tables!$G$5:$H$14,2,FALSE)*(M41+(P365+Q41*Tables!$C$6))*(P41+Q41*Tables!$C$6)*1.36196 -> 2.105409183 | S41: Controlled OD (SCH-80) Iron Pipe Size | T41: ASTM D2447
F42: PE | G42: IPS (SCH - OD) | H42: 5 | I42: 5 | J42: 61 psi SCH-40 | K42: 40 | L42: 61 | M42: 5.563 | N42: OD | P42: 0.258 | Q42: 0.031 | R42: =VLOOKUP(F42,Tables!$G$5:$H$14,2,FALSE)*(M42+(P366+Q42*Tables!$C$6))*(P42+Q42*Tables!$C$6)*1.36196 -> 1.990694561 | S42: Controlled OD (SCH-40) Iron Pipe Size | T42: ASTM D2447
F43: PE | G43: IPS (SCH - OD) | H43: 5 | I43: 5 | J43: 91 psi SCH-80 | K43: 80 | L43: 91 | M43: 5.563 | N43: OD | P43: 0.375 | Q43: 0.045 | R43: =VLOOKUP(F43,Tables!$G$5:$H$14,2,FALSE)*(M43+(P367+Q43*Tables!$C$6))*(P43+Q43*Tables!$C$6)*1.36196 -> 2.896870299 | S43: Controlled OD (SCH-80) Iron Pipe Size | T43: ASTM D2447
F44: PE | G44: IPS (SCH - OD) | H44: 6 | I44: 6 | J44: 55 psi SCH-40 | K44: 40 | L44: 55 | M44: 6.625 | N44: OD | P44: 0.28 | Q44: 0.034 | R44: =VLOOKUP(F44,Tables!$G$5:$H$14,2,FALSE)*(M44+(P368+Q44*Tables!$C$6))*(P44+Q44*Tables!$C$6)*1.36196 -> 2.573861552 | S44: Controlled OD (SCH-40) Iron Pipe Size | T44: ASTM D2447
F45: PE | G45: IPS (SCH - OD) | H45: 6 | I45: 6 | J45: 88 psi SCH-80 | K45: 80 | L45: 88 | M45: 6.625 | N45: OD | P45: 0.432 | Q45: 0.052 | R45: =VLOOKUP(F45,Tables!$G$5:$H$14,2,FALSE)*(M45+(P369+Q45*Tables!$C$6))*(P45+Q45*Tables!$C$6)*1.36196 -> 3.974498045 | S45: Controlled OD (SCH-80) Iron Pipe Size | T45: ASTM D2447
F46: PE | G46: IPS (SCH - OD) | H46: 8 | I46: 8 | J46: 50 psi SCH-40 | K46: 40 | L46: 50 | M46: 8.625 | N46: OD | P46: 0.322 | Q46: 0.039 | R46: =VLOOKUP(F46,Tables!$G$5:$H$14,2,FALSE)*(M46+(P370+Q46*Tables!$C$6))*(P46+Q46*Tables!$C$6)*1.36196 -> 3.851770907 | S46: Controlled OD (SCH-40) Iron Pipe Size | T46: ASTM D2447
F47: PE | G47: IPS (SCH - OD) | H47: 10 | I47: 10 | J47: NPR psi SCH-40 | K47: 40 | L47: NPR | M47: 10.75 | N47: OD | P47: 0.365 | Q47: 0.044 | R47: =VLOOKUP(F47,Tables!$G$5:$H$14,2,FALSE)*(M47+(P371+Q47*Tables!$C$6))*(P47+Q47*Tables!$C$6)*1.36196 -> 5.439226845 | S47: Controlled OD (SCH-40) Iron Pipe Size | T47: ASTM D2447
F48: PE | G48: IPS (SCH - OD) | H48: 12 | I48: 12 | J48: NPR psi SCH-40 | K48: 40 | L48: NPR | M48: 12.75 | N48: OD | P48: 0.406 | Q48: 0.049 | R48: =VLOOKUP(F48,Tables!$G$5:$H$14,2,FALSE)*(M48+(P372+Q48*Tables!$C$6))*(P48+Q48*Tables!$C$6)*1.36196 -> 7.175413416 | S48: Controlled OD (SCH-40) Iron Pipe Size | T48: ASTM D2447
